Workbook

Sheet SPLOŠNE ZAHTEVE
B1: SPLOŠNE ZAHTEVE
A2: Ponudnik mora v cene po enoti všteti vse potrebne in spodaj navedene stroške, vkolikor ni samostojna postavka v popisu del:
A3: Cena na enoto za več in manj dela se ne spreminja.
A4: Ponudnik mora nadzoru in naročniku predati seznam ponujene opreme in materiala. K ponudbi obvezno priložiti cenik po urnih postavkah posameznih kvalifikacij delavcev ter kompleten cenik prevozov, strojev in opreme ter vseh ponujenih materialov.
A5: Vse manipulativne stroške.
A6: Pri zemeljskih delih se vsa izkopna dela in transporti izkopnih materialov obračunajo po prostornini zemljine v raščenem stanju. Vsa razsipna dela se obračunajo po prostornini zemljine v vgrajenem stanju. Izračun količin na podlagi profilov, posnetih pred in po izkopih. V ceno je vključen tudi višek količin zaradi faktorja razrahljivosti.
A7: Meritve posameznih slojev nasipov.
A8: Organizacija in oprema gradbišča:
A9: Izdelati je potrebno projekt ureditve gradbišča ter vkalkulirati stroške organizacije, ureditve deponij, priprave in opreme gradbišča.
A10: Stroški izdelave varnostnega načrta skladno z Uredbo o zagotavljanju varnosti in zdravja pri delu na začasnih in premičnih gradbiščih (Ur. List 83/2005 in kasnejše spremembe in dopolnitve). V času izvajanja del je izvajalec odgovoren, da bo gradbišče urejeno v skladu z varnostnim načrtom. Načrte izvajalec preda v potrditev naročniku pet dni pred začetkom gradnje v dveh izvodih..
A11: Priprava in organizacija gradbišča, postavitev gradbiščne ograje, vključno z vsemi potrebnimi deli na celotni dolžini izgradnje. Izvajalec si mora ogledati predvideno traso in v to postavko vključiti vsa potrebna dela pri organizaciji, pripravi in zavarovanju gradbišča.
A12: Ureditev gradbišča skladno z veljavno zakonodajo, obsega vsaj naslednja dela: - varnostni načrt - postavitev gradbiščne ograje - postavitev gradbiščnega kontejnerja, - omarica prve pomoči - gasilnik - gradbiščni el. priključek, skupaj z ozemljitvijo in meritvami - postavitev gradbene table skladno s Pravilnikom o gradbiščih - postavite kemičnega WCja na gradbišču - dobava in namestitev varnostnih znakov in opozorilnih tabel po zahtevah varnostnega načrta in koordinatorja, - odstranitev objektov za ureditev gradbišča, vključno z ureditvijo zemljišča po končani gradnji (vzpostavitvijo v prvotno stanje).
A13: Stroške vseh potrebnih ukrepov, ki so predpisana in določena z veljavnimi predpisi o varstvu pri delu in varstvom pred požarom, ki jih mora izvajalec obvezno upoštevati.
A14: Predhodno urejanje in čiščenje delovišča, zavarovanje delovišča in gradbene jame proti okolici in tretjim osebam. Izvajalec si mora razmere ogledati in obseg podati skladno s svojo tehnologijo, v ceno pa je potrebno všteti najmanj:
A15: - Pridobitev lokacije za začasne gradbiščne objekte in za priročno skladiščenje materiala, uporaba za ves čas gradnje, vzpostavitev prvotnega stanja po zaključku del, morebitna prestavitev objektov in najemnina zemljišča.
A16: - čiščenje vegetacije, posek grmovja ustrezne površine in sekanje potrebnega števila dreves na trasi oz. na gradbišču
A17: - ureditev vseh ostalih ovir na trasi brez stroška za naročnika
A18: - trasna in višinska zakoličba obstoječih komunalnih vodov in oznake križanj, vključno s stroški dodatnega nadzora upravljavcev komunalnih vodov (Vodovod, Elektro, Telekom in drugi telekomunikacijski vodi, plinovod, javna razsvetljava).
A19: - odpravo poškodb zaradi plazenja ali posipanje brežin izkopa - na objektih investitorja ali tretjih oseb - brez stroškov za investitorja.
A20: - zaščita zelenice s plohi, ali PVC folijo. Vkolikor se na zelenice oz. na zaščito odlaga zemeljski material, ga je potrebno po končani gradnji odstraniti in zelenico vzpostaviti v prvotno stanje.
A21: - odstranitev in ponovna postavitev v prvotno stanje - premičnih stvari ali objektov investitorja ali tretjih oseb - brez stroškov za investitorja.
A22: - postavitev gradbiščne table skladno s trenutno veljavnimi predpisi. Podatke za eventualne dodatne zahteve za opremo table in dodatne napise in oznake si mora izvajalec pridobiti pri naročniku ali investitorju.
A23: - stroške električne energije, vode, TK priključkov, razsvetljave za nočno delo, stroške osvetljevanja in označevanja gradbišča in morebitne ostale stroške v času gradnje.
A24: - Vsa sprotna in zaključna čiščenja cevi so všteta v ceno.
A25: - Stroške rednega obveščanja javnosti o morebitnih motnjah ter posledic nastalih zaradi motenj v času gradnje. Predaja podatkov naročniku za objave v medijih, ki so dostopni samo naročniku.
A26: - kakršnakoli dodatna dela se lahko obračunajo le po predhodni potrditvi nadzora in vpisu v gradbeni dnevnik. Za obračun je potrebno izdelati analizo cene.
A27: Pred začetkom izgradnje je izvajalec dolžan zapisniško ugotoviti in dokumentirati obstoječe stanje vseh sosednjih objektov (predvsem zaščitenih), drugih površin in dostopnih poti. Po končanih delih je dolžan povrniti uporabljeno lokacijo v prvotno stanje in odpraviti vse poškodbe nastale zaradi gradnje na drugih objektih, napravah, površinah ter na dostopnih poteh (cestišču). Dokumentiranje stanja pomeni fotografiranje stanja ali snemanje stanja s kamero pred pričetkom del, in sicer območje bodočega gradbišča in njegove okolice (objekti ter površine, ki jih bo uporabljal v času gradnje). V primeru pomanjkanja foto-dokazov o stanju pred gradnjo stroške uveljavljanja odškodnin nosi izvajalec. V tej točki zahtevano dokumentacijo mora izvajalec hraniti najmanj do konca garancijskega obdobja, ter dokumentacijo ob njenem nastanku dostaviti naročniku. V ceni zajeti eventualna mnejnje izvedenca, vkolikor izvajalec smatra, da je potrebno.
A28: Mejnike, ki jih izvajalec odstrani za potrebe gradnje, jih je po končani gradnji potrebno vzpostaviti po pravilih geodetske stroke.
A29: Promet in transporti, deponije
A30: Zagotavljanje 24-urne prevoznosti ceste ter 24-urni dostop predvsem pravnim osebam ter tudi stanovalcem. Izjeme so dovoljene le s predhodnim dogovorom in pisnim potrdilom posameznega pravnega subjekta.
A31: Pridobitev dovoljenj za cestno zaporo z ureditvijo prometnega režima v času gradnje, z obvestili, obveščanje prebivalcev in pravnih oseb v obliki pisnih obvestil, zavarovanje gradbene jame in gradbišča ter postavitev prometne signalizacije. Po končanih delih je prometno signalizacijo odstraniti in prometni režim vzpostaviti v prvotno stanje. V ceno všteta delna ali popolna zapora prometa, predhodno obveščanje in usmerjanje stanovalcev, vključno s stroški najema, postavitve in odstranitve ter stroški za pridobitev soglasij. V času eventualne popolne zapore je potrebno zagotoviti parkirna mesta za stanovalce.
A32: Predvideti prometno ureditev v času gradnje - z ureditvijo prometnega režima v času gradnje, z obvestili, zavarovanje gradbene jame in gradbišča ter postavitev prometne signalizacije. Po končanih delih je prometno signalizacijo odstraniti in prometni režim vzpostaviti v prvotno stanje.
A33: Vse stroške pridobitve potrebnih soglasij in dovoljenj v zvezi s prevozi, organizacijo in opremo gradbišča (eventualno tudi za prečkanja inštalacij - vezana na prevoze in organizacijo gradbišča), zagotavljanju vseh potrebnih zavarovanj in označb gradbišča s predpisano signalizacijo ( ograja, vrvice, označbe, svetlobna telesa,…) - postavitev in odstranitev po končanih delih, kot tudi stroške pri pripravi gradbišča z odstranitvijo morebitnih ovir na trasi, zagotovitev delovnih platojev na in/ali izven gradbišča ter s tem povezanih stroškov.
A34: Stroške priprave in izvedbe začasnih dostopov do in na gradbišču (izdelava vseh potrebnih začasnih prehodov, dovozov, dostopov) in stroški vsakodnevnega zagotavljanja dostopa oz. dovoza stanovalcem do objektov. V kolikor to ne bo mogoče, je potrebno stanovalcem in poslovnim subjektom pravočasno posredovati obvestilo - vsaj en teden pred začetkom del. Enako velja za stroške izvedbe začasnega obhoda (prehoda) mimo ograjenega gradbišča za pešce in sprehajalce (ves čas gradnje). Navesti je treba tudi predviden čas, ko dostop do objektov ne bo možen. V ceni je zajeta tudi prestavitev prehodov na nove lokacije.
A35: Postavitev fiksnih začasnih prehodov za pešce preko jarkov do posameznih objektov ob gradbišču z varovalno ograjo, sprotnim čiščenjem in vzdrževanjem prehodov tekom gradnje in stalnim vzdrževanjem dostopov nanje. V ceni je zajeta tudi prestavitev prehodov na nove lokacije. Izvajalec mora vsakodnevno zagotavljati dostop do objektov.
A36: Postavitev linijskih pomičnih zaščitnih ograj pri gradnji z vso potrebno opremo za zavarovanje gradbene jame in postavitvijo signalizacije in svetlobnih teles za nočno osvetlitev ovire. Zavarovanje je fiksno in stabilno za ves čas trajanja gradnje odseka. V ceni je zajeta tudi večkratna prestavitev ograje skladno z napredovanjem del.
A37: Sprotno čiščenje vozil in čiščenje gradbišča po končanih delih (vključno z zaključnim čiščenjem) in odvoz odvečnega materiala, ter vzpostavitev terena v prvotno stanje.
A38: Vse stroške zunanjega in notranjega transporta, raztovarjanja, skladiščenja materiala na gradbišču, takse, zavarovanja, manipulativne stroške ter vsa pomožna dela.
A39: Sanacija oz. povrnitev v prvotno stanje vseh dostopnih poti, ki jih bo izvajalec uporabljal za vso gradbiščno logistiko.
A40: Vse stroške stalnih in začasnih deponij všteti v ceno (takse, odškodnine, cena razplaniranja…)
A41: Materiali za vgradnjo
A42: Za gradnjo je dovoljeno uporabljati samo proizvode, ki imajo pridobljene ustrezne listine o skladnosti in so skladni s slovenskimi tehničnimi predpisi in slovenskimi standardi. Vsi vgrajeni gradbeni materiali in ostali polizdelki, ki se vgrajujejo v objekt morajo vsebovati vtisnjene ali na drug način razvidne podatke iz katerih je mogoče razbrati in slediti poreklo materiala (serijska številka, tip, št. šarže itd.), najmanj pa izjave o lastnostih, pri čemer morajo biti dokumenti obvezno prevedeni v slovenščino in nostrificirani od pooblaščene institucije v RS
A43: Skladno s prejšnjo točko je potrebno zbrati vso, po predpisih zahtevano, dokumentacijo o kvaliteti materialov in tehnološkemu postopku gradnje, jo pripraviti in predložiti na primopredaji. V ceno všteti stroške sprotnega dokumentiranja in posredovanja nadzorniku in projektantu vseh dokazil o zanesljivosti objektov, atestov, certifikatov,.... ter sprememb za izdelavo projekta izvedenih del, tako da bo PID projektna dokumentacija izdelana pred internim tehničnim pregledom objekta.
A44: Vezano na prejšnji dve točki - Stroški vseh meritev (kot npr. vgrajenih naprav ter regulacija in nastavitve vključno s poročilom in merilnimi listi ter protokolom nastavljenih vrednosti, meritve posameznih slojev nasipov,...) prevozov, drobnega materiala, transportnih stroškov, pridobivanja certifikatov, izdelovanja poročil in pregledov za izdelavo dokazil o zanesljivosti objektov (vodotesnost, zbitost, ustreznost vgrajene opreme,...) in podobno oz. stroški za vso dokumentacijo, ki je potrebna za uspešno opravljen interni tehnični pregled oz. primopredajo.
A45: Za vse vgrajene materiale velja, da jih izvajalec lahko predlaga, vendar je pred vgradnjo potrebna potrditev investitorja, nadzora in projektanta. Že pred vgradnjo je obvezno priložiti dokazila o ustreznosti.
A46: V ceni je zajeto tudi: droben potrošen material, preizkus tesnosti, spiranje in dezinfekcija, tlačni preizkusi vodovoda in vse potrebne meritve za uspešno opravljen teh. pregled, pridobitev pozitivnih izvedeniških mnenj.
A47: Za vsako spremembo je potrebno pridobiti soglasje projektanta in jo zajeti v projekt izvršenih del.
A48: Gradbeni odpadki
A49: Za vse gradbene odpadke je potrebno voditi evidenčne liste, odpadke pa oddati v pooblaščeno zbiralnico; kot dokaz je h gradbeni knjigi potrebno priložiti račun iz zbiralnice. Stroške odvoza, deponiranje in stroške deponije je potrebno všteti v ceno.
A50: Stroške deponije odvečnega gradbenega materiala na pooblaščene deponije ali na lokacije za predelavo gradbenih materialov. Dokazila o primernem deponiranju (lokacija in količina materiala) je potrebno redno dostavljati naročniku oziroma nadzornemu organu naročnika.
A51: Vse deponije izbere izvajalec, vsi gradbeni odpadki in odvečni materiali postanejo last ponudnika.
A52: Ostala in dodatna dela
A53: Kot dodatna dela (po vpisu in potrditvi v gradbeno knjigo) se obračuna prilagoditev obstoječih komunalnih in inštalacijskih vodov na novopredvideno stanje (rušenje, prestavitev, nadvišanje, obdelave, zamenjave pokrovov, AB venci, zaščita v času gradnje...), nalaganje in odvoz ruševin na stalno deponijo z vključenimi vsemi stroški deponiranja.
A54: Vkolikor ni samostojne postavke, v ceno všteta vzpostavitev obstoječega stanja, sanacija poškodb na elementih obstoječih objektov nastalih zaradi izgradnje zaradi del po tem projektu (popravki raznih AB in kamnitih zidov, odstranitev in ponovna vzpostavitev ali sanacija ograj, popravki na fasadah objektov, ureditev linijskih požiralnikov, hortikulturna ureditev...), nalaganje in odvoz ruševin na stalno deponijo z vključenimi vsemi stroški deponiranja.
A55: Zunanji izvajalci
A56: Izvajalec gradnje mora izvajalcu gospodarske javne službe pravočasno sporočiti datume izvajanja preizkusov vodotesnosti vodovodov, da bo upravljavec lahko zagotovil prisotnost nadzora. Za strošek izvajalca javne službe je potrebno pridobiti ponudbo, stroške pa všteti v ceno.
A57: Projektantski nadzor in usklajevanje projekta z dejansko ugotovljenim stanjem na terenu. Izvajalec si mora od projektanta pridobiti ponudbo, stroške pa všteti v ceno.
A58: Končna dokumentacija
A59: Geodetski posnetek pri odprti trasi (pred zasutjem), predložitev posnetka k dokazilu o zanesljivosti.
A60: Izdelava PID projekta v papirni (4 izvodih tiskane obliki) in elektronski obliki skladno s pravilnikom in navodili upravljavca komunalne infrastrukture vključno z vodilno mapo in dokazilom o zanesljivosti, dokumentacija za interni tehnični pregled, izvajalski del dokumentacije.
A61: V ceni je zajeta tudi vsa potrebna dokumentacija, ki je potrebna za interni tehnični pregled in za pridobitev uporabnega dovoljenja in vris v kataster GJI (PVE) – Projekt za vpis v uradne evidence.

Sheet SKUPNA REKAPITULACIJA
A1: objekt: | B1: Glavna cesta G2-106, odsek 0263 Žlebič – Kočevje, od km 1,230 do km 2,350
B2: skozi naselji GRIČ IN BREG
A4: načrt: | B4: 3/1 - načrt ceste
A5: faza: | B5: PZI
A6: št.proj. | B6: 1531 | E6: == AVTOBUSNA POSTAJALIŠČA==
A12: REKAPITULACIJA
A17: 1. | B17: AP | F17: ='REKAPITULACIJA AP'!F29 -> 0
A19: 2. | B19: CESTA | F19: ='REKAPITULACIJA CESTA'!F29 -> 2025
A21: 3. | B21: VOZIŠČE | F21: ='REKAPITULACIJA VOZIŠČE'!F31 -> 53325
A23: 4. | B23: PLOČNIK | F23: ='REKAPITULACIJA PLOČNIK'!F27 -> 0
A25: 5. | B25: JR | F25: ='REKAPITULACIJA JR'!I10 -> 1800
A27: 6. | B27: EL | F27: ='REKAPITULACIJA EL'!I7 -> 630
A29: 7. | B29: TKV | F29: ='REKAPITULACIJA TKV'!I9 -> 2700
A31: 8. | B31: VODOVOD | F31: ='REKAPITULACIJA VODOVOD'!I9 -> 12330
A33: 9. | B33: NEPREDVIDENA DELA 10% | F33: =SUM(F17:F31)*0.1 -> 7281
B34: SKUPAJ | F34: =SUM(F17:F33) -> 80091
B36: +22% DDV | F36: =F34*0.22 -> 17620.02
B38: SKUPAJ Z DDV | F38: =F34+F36 -> 97711.02

Sheet REKAPITULACIJA AP
A1: objekt: | B1: Glavna cesta G2-106, odsek 0263 Žlebič – Kočevje, od km 1,230 do km 2,350
B2: skozi naselji GRIČ IN BREG
A4: načrt: | B4: 3/1 - načrt ceste
A5: faza: | B5: PZI | C5: datum: | E5: maj 2018, po recenziji
A6: št.proj. | B6: 1531 | E6: == AVTOBUSNA POSTAJALIŠČA==
A12: REKAPITULACIJA
A17: 1. | B17: PREDDELA | F17: =AP!F19 -> 0
A19: 2. | B19: ZEMELJSKA DELA | F19: =AP!F54 -> 0
A21: 3. | B21: VOZIŠČNE KONSTRUKCIJE | F21: =AP!F68 -> 0
A23: 5. | B23: =AP!B71 -> GRADBENA IN OBRTNIŠKA DELA | F23: =AP!F73 -> 0
A25: 6. | B25: OPREMA CEST | F25: =AP!F88 -> 0
A27: 8. | B27: OSTALO | F27: =AP!F93 -> 0
B29: SKUPAJ | F29: =SUM(F17:F28) -> 0

Sheet AP
A1: objekt: | B1: Glavna cesta G2-106, odsek 0263 Žlebič – Kočevje, od km 1,230 do km 2,350
B2: skozi naselji GRIČ IN BREG
A4: načrt: | B4: 3/1 - načrt ceste
A5: faza: | B5: PZI
A6: št.proj. | B6: 1531
A8: šifra | B8: opis dela | C8: količina | D8: enota | E8: cena/enota | F8: znesek
A10: 1. | B10: PREDDELA
A11: 1.1 | B11: Geodetska dela
A12: 11 631 | B12: Posnetek višine in položaja točke na terenu/objektu | C12: 100 | D12: kos | F12: =C12 * E12 -> 0
A13: 1.1 | B13: Geodetska dela | F13: =SUM(F12:F12) -> 0
A15: 1.2 | B15: Čiščenje terena
A16: 12 323 | B16: Porušitev in odstranitev asfaltne plasti v debelini nad 10cm | C16: 200 | D16: m2 | F16: =C16 * E16 -> 0
A17: 1.2 | B17: Čiščenje terena | F17: =SUM(F16:F16) -> 0
A19: 1. | B19: PREDDELA | F19: =F13+F17 -> 0
A22: 2. | B22: ZEMELJSKA DELA
A23: 2.1 | B23: Izkopi
A24: 21 114 | B24: Površinski izkop plodne zemljine – 1. kategorije – strojno z nakladanjem | C24: 35 | D24: m3 | F24: =C24 * E24 -> 0
A25: 21 224 | B25: Široki izkop vezljive zemljine – 3. kategorije – strojno z nakladanjem | C25: 329 | D25: m3 | F25: =C25 * E25 -> 0
A26: 21 215 | B26: Široki izkop trde zemljine – 5. kategorije – strojno z nakladanjem | C26: 133 | D26: m3 | F26: =C26 * E26 -> 0
A27: 2.1 | B27: Izkopi | F27: =SUM(F24:F26) -> 0
A29: 2.2 | B29: Planum temeljnih tal
A30: 22 112 | B30: Ureditev planuma temeljnih tal vezljive zemljine – 3. do 5. kategorije | C30: 425 | D30: m2 | F30: =C30 * E30 -> 0
A31: 2.2. | B31: Planum temeljnih tal | F31: =SUM(F30:F30) -> 0
A33: 2.3 | B33: Ločilne, drenažne in filtrske plasti ter delovni plato
A34: 23 315 | B34: Dobava in vgraditev geotekstilije za ločilno plast, natezna trdnost nad 18 kN/m2 (armaturni geosintetik, kratkotrajna natezna trdnost vsaj 40 kN/m) | C34: 495 | D34: m2 | F34: =C34 * E34 -> 0
A35: 2.3 | B35: Ločilne, drenažne in filtrske plasti ter delovni plato | F35: =SUM(F34:F34) -> 0
A37: 2.4 | B37: Nasipi, zasipi, klini, posteljica in glinasti naboj
A38: 24 118 | B38: Izdelava nasipa iz zrnate kamnine - 3.kategorije z dobavo iz gramoznice - kvaliteten kamnit nasipni material frakcije 0/125 | C38: 13 | D38: m3 | F38: =C38 * E38 -> 0
A39: 24 461 | B39: Vgraditev posteljice v debelini plasti do 50cm iz zrnate kamnine – 3.kategorije (posteljica 0/125, kvalitetni drobljenec, zmrzlinsko odpornega kamnitega materiala) | C39: 405 | D39: m3 | F39: =C39 * E39 -> 0
A40: 2.4 | B40: Nasipi, zasipi, klini, posteljica in glinasti naboj | F40: =SUM(F38:F39) -> 0
A42: 2.5 | B42: Brežine in zelenice
A43: 25 122 | B43: Humuziranje brežine z valjanjem, v debelini do 15cm - strojno | C43: 25 | D43: m2 | F43: =C43 * E43 -> 0
B44: Zasaditev s travnim semenom | C44: 25 | D44: m2 | F44: =C44 * E44 -> 0
A45: 2.5 | B45: Brežine in zelenice | F45: =SUM(F43:F44) -> 0
A47: 2.9 | B47: Prevozi, razprostiranje in ureditev deponij materiala
A48: 29 121 | B48: Prevoz materiala na razdaljo nad 10 do 15 km | C48: 845 | D48: t | F48: =C48 * E48 -> 0
A49: 29 131 | B49: Razprostiranje odvečne plodne zemljine - 1.kategorije | C49: 31 | D49: m3 | F49: =C49 * E49 -> 0
A50: 29 152 | B50: Odlaganje odpadne zmesi zemljine in kamnine, vključno s takso in priskrbitvijo evidenčnih listov | C50: 543 | D50: t | F50: =C50 * E50 -> 0
A51: 29 153 | B51: Odlaganje odpadnega asfalta na komunalno deponijo, vključno s takso in priskrbitvijo evidenčnih listov | C51: 42 | D51: t | F51: 0
A52: 2.9 | B52: Prevozi, razprostiranje in ureditev deponij materiala | F52: =SUM(F48:F51) -> 0
A54: 2. | B54: ZEMELJSKA DELA | F54: =F27+F31+F35+F40+F45+F52 -> 0
A57: 3. | B57: VOZIŠČNE KONSTRUKCIJE
A58: 3.1 | B58: Nosilne plasti
A59: 31 132 | B59: Izdelava nevezane nosilne plasti enakomerno zrnatega drobljenca TD32 iz kamnine v debelini 21 do 30cm | C59: 136 | D59: m3 | F59: =C59 * E59 -> 0
A60: 31 372 | B60: Izdelava zgornje nosilne plasti v debelini 6cm - AC 16 bin PmB 45/80-65, A2 | C60: 357 | D60: m2 | F60: =C60 * E60 -> 0
A61: 31 314 | B61: Izdelava zgornje nosilne plasti v debelini 7 cm - AC 22 base B50/70 A2 | C61: 357 | D61: m2 | F61: 0
A62: 3.1 | B62: Nosilne plasti | F62: =SUM(F59:F61) -> 0
A64: 3.2 | B64: Obrabne plasti
A65: 32 293 | B65: Izdelava obrabne in zaporne plasti v debelini 40 mm - SMA 11 PmB45/80-65 A2 | C65: 357 | D65: m2 | F65: =C65 * E65 -> 0
A66: 3.2 | B66: Obrabne plasti | F66: =SUM(F65:F65) -> 0
A68: 3. | B68: VOZIŠČNE KONSTRUKCIJE | F68: =F62+F66 -> 0
A71: 5. | B71: GRADBENA IN OBRTNIŠKA DELA
B72: Izdelava AB zidca z ograjo svetle višine do 2,0m | C72: 46 | D72: m1 | F72: =C72 * E72 -> 0
A73: 5. | B73: GRADBENA IN OBRTNIŠKA DELA | F73: =F72 -> 0
A76: 6. | B76: OPREMA CEST
A77: 6.2 | B77: Označbe na vozišču
A78: 62 126 | B78: Izdelava tankoslojne vzdolžne označbe na vozišču z enokomponentno RUMENO barvo, vključno 250 g/m2 posipa z drobci / kroglicami stekla, strojno, debelina plasti suhe snovi 250 mm, širina črte 30 cm | C78: 170 | D78: m1 | F78: =C78 * E78 -> 0
A79: 62 255 | B79: Doplačilo za izdelavo prekinjenih vzdolžnih označb na vozišču, širina črte 30cm | C79: 170 | D79: m1 | F79: =C79 * E79 -> 0
A80: 62 168 | B80: Izdelava tankoslojne prečne in ostalih označb na vozišču z enokomponentno belo barvo, vključno 250 g/m2 posipa z drobci / kroglicami stekla, strojno, debelina plasti suhe snovi 250 mm, površina označbe nad 1,5 m2 - RUMENA BARVA | C80: 32 | D80: m2 | F80: 0
A81: 62 244 | B81: Doplačilo za ročno izdelavo ostalih označb na vozišču, posamezna površina označbe nad 1,5 m2 | C81: 32 | D81: m2 | F81: 0
A82: 6.2 | B82: Označbe na vozišču | F82: =SUM(F78:F81) -> 0
A84: 6.4. | B84: Oprema za zavarovanje prometa
B85: Dobava in postavitev nadstrešnice kot naprimer tip Lešnik APL K03. | C85: 4 | D85: kos | F85: =C85 * E85 -> 0
A86: 6.4. | B86: Oprema za zavarovanje prometa | F86: =SUM(F85:F85) -> 0
A88: 6. | B88: PROMETNA OPREMA | F88: =F82+F86 -> 0
A91: 8. | B91: OSTALO
D92: kos | F92: =C92 * E92 -> 0
A93: 8. | B93: OSTALO | F93: =SUM(F92:F92) -> 0
B95: SKUPAJ | F95: =F19+F54+F68+F88+F73 -> 0

Sheet REKAPITULACIJA CESTA
A1: objekt: | B1: Glavna cesta G2-106, odsek 0263 Žlebič – Kočevje, od km 1,230 do km 2,350
B2: skozi naselji GRIČ IN BREG
A4: načrt: | B4: 3/1 - načrt ceste
A5: faza: | B5: PZI | C5: datum: | E5: maj 2018, po recenziji
A6: št.proj. | B6: 1531 | E6: == POVEZOVALNA C. ==
A12: REKAPITULACIJA
A17: 1. | B17: PREDDELA | F17: =CESTA!F21 -> 0
A19: 2. | B19: ZEMELJSKA DELA | F19: =CESTA!F59 -> 0
A21: 3. | B21: VOZIŠČNE KONSTRUKCIJE | F21: =CESTA!F72 -> 0
A23: 4. | B23: ODVODNJAVANJE | F23: =CESTA!F93 -> 0
A25: 7. | B25: TUJE STORITVE | F25: =CESTA!F102 -> 2025
A27: 8. | B27: OSTALO | F27: =CESTA!F107 -> 0
B29: SKUPAJ | F29: =SUM(F17:F28) -> 2025

Sheet CESTA
A1: objekt: | B1: Glavna cesta G2-106, odsek 0263 Žlebič – Kočevje, od km 1,230 do km 2,350
B2: skozi naselji GRIČ IN BREG
A4: načrt: | B4: 3/1 - načrt ceste
A5: faza: | B5: PZI
A6: št.proj. | B6: 1531 | E6: == POVEZOVALNA C. ==
A8: šifra | B8: opis dela | C8: količina | D8: enota | E8: cena/enota | F8: znesek
A10: 1. | B10: PREDDELA
A11: 1.1 | B11: Geodetska dela
A12: 11 631 | B12: Posnetek višine in položaja točke na terenu/objektu | C12: 100 | D12: kos | F12: =C12 * E12 -> 0
A13: 1.1 | B13: Geodetska dela | F13: =SUM(F12:F12) -> 0
A15: 1.2 | B15: Čiščenje terena
A16: 12 322 | B16: Porušitev in odstranitev asfaltne plasti v debelini 6 do 10cm | C16: 220 | D16: m2 | F16: =C16 * E16 -> 0
A17: 12 382 | B17: Rezanje asfaltne plasti s talno diamantno žago, debele 6 do 10cm | C17: 12 | D17: m1 | F17: 0
B18: Predhodna obdelava stika in premaz z bitumensko lepilno zmesjo po celotni višin | C18: 12 | D18: m1 | F18: 0
A19: 1.2 | B19: Čiščenje terena | F19: =SUM(F16:F18) -> 0
A21: 1. | B21: PREDDELA | F21: =F13+F19 -> 0
A24: 2. | B24: ZEMELJSKA DELA
A25: 2.1 | B25: Izkopi
A26: 21 114 | B26: Površinski izkop plodne zemljine – 1. kategorije – strojno z nakladanjem | C26: 232 | D26: m3 | F26: =C26 * E26 -> 0
A27: 21 224 | B27: Široki izkop vezljive zemljine – 3. kategorije – strojno z nakladanjem | C27: 495 | D27: m3 | F27: =C27 * E27 -> 0
A28: 21 215 | B28: Široki izkop vezljive zemljine – 5. kategorije – strojno z nakladanjem | C28: 233 | D28: m3 | F28: =C28 * E28 -> 0
A29: 21 314 | B29: Izkop vezljive zemljine/zrnate kamnine – 3. kategorije za temelje, kanalske rove, prepuste, jaške in drenaže, širine do 1,0m in globine do 1,0m – strojno, planiranje dna ročno - METEORNA KANALIZACIJA | C29: 16 | D29: m3 | F29: 0
A30: 21 324 | B30: Izkop vezljive zemljine/zrnate kamnine – 5. kategorije za temelje, kanalske rove, prepuste, jaške in drenaže, širine do 1,0m in globine do 2m – strojno, planiranje dna ročno - METEORNA KANALIZACIJA | C30: 12 | D30: m3 | F30: =C30 * E30 -> 0
A31: 2.1 | B31: Izkopi | F31: =SUM(F26:F30) -> 0
A33: 2.2 | B33: Planum temeljnih tal
A34: 22 112 | B34: Ureditev planuma temeljnih tal vezljive zemljine – 3. kategorije | C34: 1205 | D34: m2 | F34: =C34 * E34 -> 0
A35: 2.2. | B35: Planum temeljnih tal | F35: =SUM(F34:F34) -> 0
A37: 2.3 | B37: Ločilne, drenažne in filtrske plasti ter delovni plato
A38: 23 315 | B38: Dobava in vgraditev geotekstilije za ločilno plast, natezna trdnost nad 18 kN/m2 (armaturni geosintetik, kratkotrajna natezna trdnost vsaj 40 kN/m) | C38: 1526 | D38: m2 | F38: =C38 * E38 -> 0
A39: 2.3 | B39: Ločilne, drenažne in filtrske plasti ter delovni plato | F39: =SUM(F38:F38) -> 0
A41: 2.4 | B41: Nasipi, zasipi, klini, posteljica in glinasti naboj
A42: 24 219 | B42: Zasip z zrnato kamnino - 3.kategorije z dobavo iz gramoznice - METEORNA KANALIZACIJA | C42: 8 | D42: m3 | F42: =C42 * E42 -> 0
A43: 24 229 | B43: Zasip cevi s peskom 0/4 - METEORNA KANALIZACIJA | C43: 2 | D43: m3 | F43: 0
A44: 24 461 | B44: Vgraditev posteljice v debelini plasti do 50cm iz zrnate kamnine – 3.kategorije (posteljica 0/125, kvalitetni drobljenec, zmrzlinsko odpornega kamnitega materiala) | C44: 1094 | D44: m3 | F44: 0
A45: 2.4 | B45: Nasipi, zasipi, klini, posteljica in glinasti naboj | F45: =SUM(F42:F44) -> 0
A47: 2.5 | B47: Brežine in zelenice
A48: 25 142 | B48: Humuziranje zelenice z valjanjem, v debelini do 15cm - strojno | C48: 128 | D48: m2 | F48: =C48 * E48 -> 0
B49: Zasaditev s travnim semenom | C49: 128 | D49: m2 | F49: 0
A50: 2.5 | B50: Brežine in zelenice | F50: =SUM(F48:F49) -> 0
A52: 2.9 | B52: Prevozi, razprostiranje in ureditev deponij materiala
A53: 29 121 | B53: Prevoz materiala na razdaljo nad 10 do 15km | C53: 1261 | D53: t | F53: =C53 * E53 -> 0
A54: 29 131 | B54: Razprostiranje odvečne plodne zemljine - 1.kategorije | C54: 213 | D54: m3 | F54: =C54 * E54 -> 0
A55: 29 152 | B55: Odlaganje odpadne zmesi zemljine in kamnine, vključno s takso in priskrbitvijo evidenčnih listov | C55: 1215 | D55: t | F55: 0
A56: 29 153 | B56: Odlaganje odpadnega asfalta na komunalno deponijo, vključno s takso in priskrbitvijo evidenčnih listov | C56: 46 | D56: t | F56: 0
A57: 2.9 | B57: Prevozi, razprostiranje in ureditev deponij materiala | F57: =SUM(F53:F56) -> 0
A59: 2. | B59: ZEMELJSKA DELA | F59: =F31+F35+F39+F45+F50+F57 -> 0
A62: 3. | B62: VOZIŠČNE KONSTRUKCIJE
A63: 3.1 | B63: Nosilne plasti
A64: 31 132 | B64: Izdelava nevezane nosilne plasti enakomerno zrnatega drobljenca TD32 iz kamnine v debelini 21 do 30cm | C64: 267 | D64: m3 | F64: =C64 * E64 -> 0
A65: 31 314 | B65: Izdelava zgornje nosilne plasti v debelini 7 cm - AC 22 base B70/100 A3 | C65: 1094 | D65: m2 | F65: =C65 * E65 -> 0
A66: 3.1 | B66: Nosilne plasti | F66: =SUM(F64:F65) -> 0
A68: 3.2 | B68: Obrabne plasti
A69: 32 237 | B69: Izdelava obrabne in zaporne plasti v debelini 30mm - AC8 surf B50/70 A3 | C69: 1094 | D69: m2 | F69: =C69 * E69 -> 0
A70: 3.2 | B70: Obrabne plasti | F70: =SUM(F69:F69) -> 0
A72: 3. | B72: VOZIŠČNE KONSTRUKCIJE | F72: =F66+F70 -> 0
A75: 4. | B75: ODVODNJAVANJE
A76: 4.1. | B76: Površinsko odvodnjavanje
B77: Izdelava asfaltne mulde, široke 50cm (asfalt je zajet v postavkah "voziščna konstrukcija") | C77: 204 | D77: m1 | F77: =C77 * E77 -> 0
A78: 4.1. | B78: Površinsko odvodnjavanje | F78: =SUM(F77:F77) -> 0
A80: 4.3 | B80: Globinsko odvodnjavanje - kanalizacija
A81: 43 191 | B81: Izdelava kanalizacije iz cevi iz polietilena, vključno s podložno plastjo iz cementnega betona, premera DN160, v globini do 1,0m | C81: 14 | D81: m1 | F81: =C81 * E81 -> 0
A82: 4.3 | B82: Globinsko odvodnjavanje - kanalizacija | F82: =SUM(F81:F81) -> 0
A84: 4.4 | B84: Jaški
A85: 44 333 | B85: Dobava in vgradnja jaška iz polietilena, krožnega prereza s premerom 50cm, globokega 1,5 do 2,0m | C85: 3 | D85: kos | F85: =C85 * E85 -> 0
A86: 44 854 | B86: Dobava in vgraditev rešetke iz duktilne litine z nosilnostjo 400 kN, s prerezom 500/500mm | C86: 3 | D86: kos | F86: 0
A87: 4.4 | B87: Jaški | F87: =SUM(F85:F86) -> 0
A89: 4.6 | B89: Izviri, vodnjaki, ponikovalnice, vrtače
A90: 46 334 | B90: Ureditev ponikovalnice s perforirano cevjo iz cementnega betona, krožnega prereza, s premerom 80cm, globine 3,1 do 4,0m, vključno s pokrovom iz duktilne litine z nosilnostjo 250kN, krožnega prereza s premerom 600mm, z zaklepom | C90: 3 | D90: kos | F90: =C90 * E90 -> 0
A91: 4.6 | B91: Izviri, vodnjaki, ponikovalnice, vrtače | F91: =SUM(F90:F90) -> 0
A93: 4. | B93: ODVODNJAVANJE | F93: =F82+F87+F78+F91 -> 0
A96: 7. | B96: TUJE STORITVE
A97: 7.9. | B97: Preskusi, nadzor in tehnična dokumentacija
A98: 79 311 | B98: Projektantski nadzor | C98: 30 | D98: ura | E98: 45 | F98: =C98 * E98 -> 1350
A99: 79 351 | B99: Geotehnični nadzor | C99: 15 | D99: ura | E99: 45 | F99: =C99 * E99 -> 675
A100: 7.9. | B100: Preskusi, nadzor in tehnična dokumentacija | F100: =SUM(F98:F99) -> 2025
A102: 7. | B102: TUJE STORITVE | F102: =SUM(F100) -> 2025
A105: 8. | B105: OSTALO
D106: kos | F106: =C106 * E106 -> 0
A107: 8. | B107: OSTALO | F107: =SUM(F106:F106) -> 0
B109: SKUPAJ | F109: =F21+F59+F72+F93+F102 -> 2025

Sheet REKAPITULACIJA VOZIŠČE
A1: objekt: | B1: Glavna cesta G2-106, odsek 0263 Žlebič – Kočevje, od km 1,230 do km 2,350
B2: skozi naselji GRIČ IN BREG
A4: načrt: | B4: 3/1 - načrt ceste
A5: faza: | B5: PZI | C5: datum: | E5: maj 2018, po recenziji
A6: št.proj. | B6: 1531 | E6: == VOZIŠČE ==
A10: REKAPITULACIJA
A15: 1. | B15: PREDDELA | F15: =VOZIŠČE!F43 -> 0
A17: 2. | B17: ZEMELJSKA DELA | F17: =VOZIŠČE!F86 -> 0
A19: 3. | B19: VOZIŠČNE KONSTRUKCIJE | F19: =VOZIŠČE!F118 -> 0
A21: 4. | B21: ODVODNJAVANJE | F21: =VOZIŠČE!F161 -> 0
A23: 5. | B23: =VOZIŠČE!B164 -> GRADBENA IN OBRTNIŠKA DELA | F23: =VOZIŠČE!F166 -> 0
A25: 6. | B25: OPREMA CEST | F25: =VOZIŠČE!F203 -> 0
A27: 7. | B27: TUJE STORITVE | F27: =VOZIŠČE!F214 -> 10125
A29: 8. | B29: OSTALO | F29: =VOZIŠČE!F219 -> 43200
B31: SKUPAJ | F31: =SUM(F15:F30) -> 53325

Sheet VOZIŠČE
A1: objekt: | B1: Glavna cesta G2-106, odsek 0263 Žlebič – Kočevje, od km 1,230 do km 2,350
B2: skozi naselji GRIČ IN BREG
A4: načrt: | B4: 3/1 - načrt ceste
A5: faza: | B5: PZI | C5: datum: | E5: maj 2018, po recenziji
A6: št.proj. | B6: 1531 | E6: == VOZIŠČE ==
A8: šifra | B8: opis dela | C8: količina | D8: enota | E8: cena/enota | F8: znesek
A10: 1. | B10: PREDDELA
A11: 1.1 | B11: Geodetska dela
A12: 11 121 | B12: Obnova in zavarovanje zakoličbe osi trase ostale javne ceste v ravninskem terenu | C12: 1227 | D12: m | F12: =C12 * E12 -> 0
A13: 11 131 | B13: Obnova in zavarovanje zakoličbe trase komunalnih vodov v ravninskem terenu | C13: 1227 | D13: m | F13: =C13 * E13 -> 0
A14: 11 221 | B14: Postavitev in zavarovanje prečnega profila ostale javne ceste v ravninskem terenu | C14: 62 | D14: kos | F14: 0
A15: 11 631 | B15: Posnetek višine in položaja točke na terenu/objektu | C15: 300 | D15: kos | F15: 0
A16: 1.1 | B16: Geodetska dela | F16: =SUM(F12:F15) -> 0
A18: 1.2 | B18: Čiščenje terena
A19: 12 141 | B19: Odstranitev grmovja in dreves z debli premera do 10cm ter vej na gosto porasli površini - ročno | C19: 100 | D19: m2 | F19: =C19 * E19 -> 0
A20: 12 151 | B20: Posek in odstranitev drevesa z deblom premera 11 do 30cm ter odstranitev vej | C20: 5 | D20: kos | F20: =C20 * E20 -> 0
A21: 12 163 | B21: Odstranitev panja s premerom 11 do 30cm z odvozom na deponijo na razdaljo nad 1000m | C21: 5 | D21: kos | F21: 0
A22: 12 211 | B22: Demontaža prometnega znaka na enem podstavku | C22: 22 | D22: kos | F22: 0
A23: 12 261 | B23: Demontaža plastičnega smernika | C23: 80 | D23: kos | F23: 0
B24: Odstranitev lesene ograje in njeno deponiranje za ponovno vgradnjo | C24: 53 | D24: m1 | F24: 0
A25: 12 322 | B25: Porušitev in odstranitev asfaltne plasti v debelini 6 do 10 cm | C25: 710 | D25: m2 | F25: 0
A26: 12 323 | B26: Porušitev in odstranitev asfaltne plasti v debelini nad 10cm | C26: 7390 | D26: m2 | F26: 0
A27: 12 373 | B27: Rezkanje in odvoz asfaltne krovne plasti v debelini 8 do 10cm | C27: 50 | D27: m2 | F27: 0
A28: 12 383 | B28: Rezanje asfaltne plasti s talno diamantno žago, debele 11 do 15 cm | C28: 1483 | D28: m1 | F28: 0
A29: 12 391 | B29: Porušitev in odstranitev robnika iz cementnega betona | C29: 135 | D29: m1 | F29: 0
B30: Rušenje betona | C30: 5 | D30: m3 | F30: 0
B31: Čiščenje asfalta | C31: 9307 | D31: m2 | F31: 0
B32: Pobrizg asfalta z bitumensko emulzijo | C32: 9307 | D32: m2 | F32: 0
B33: Predhodna obdelava stika in premaz z bitumensko lepilno zmesjo po celotni višin | C33: 303 | D33: m1 | F33: 0
B34: Pazljiv izkop in presaditev žive meje | C34: 70 | D34: m1 | F34: 0
B35: Odstranitev avtobusne nadstrešnice | C35: 2 | D35: kos | F35: 0
B36: Pazljiv izkop in prestavitev oz. presaditev manjših dreves / grmovnic | C36: 50 | D36: kos | F36: 0
A37: 1.2 | B37: Čiščenje terena | F37: =SUM(F19:F36) -> 0
A39: 1.3 | B39: Ostala preddela
A41: 1.3 | B41: Ostala preddela | F41: 0
A43: 1. | B43: PREDDELA | F43: =F16+F37+F41 -> 0
A46: 2. | B46: ZEMELJSKA DELA
A47: 2.1 | B47: Izkopi
A48: 21 114 | B48: Površinski izkop plodne zemljine – 1. kategorije – strojno z nakladanjem | C48: 236 | D48: m3 | F48: =C48 * E48 -> 0
A49: 21 224 | B49: Široki izkop vezljive zemljine – 3. kategorije – strojno z nakladanjem | C49: 8155 | D49: m3 | F49: =C49 * E49 -> 0
A50: 21 215 | B50: Široki izkop vezljive zemljine – 5. kategorije – strojno z nakladanjem | C50: 1315 | D50: m3 | F50: =C50 * E50 -> 0
A51: 21 314 | B51: Izkop vezljive zemljine/zrnate kamnine – 3. kategorije za temelje, kanalske rove, prepuste, jaške in drenaže, širine do 1,0 m in globine do 1,0 m – strojno, planiranje dna ročno - METEORNA KANALIZACIJA | C51: 380 | D51: m3 | F51: 0
A52: 21 325 | B52: Izkop vezljive zemljine/zrnate kamnine – 5. kategorije za temelje, kanalske rove, prepuste, jaške in drenaže, širine do 1,0 m in globine do 2,0 m – strojno, planiranje dna ročno - METEORNA KANALIZACIJA | C52: 294 | D52: m3 | F52: =C52 * E52 -> 0
A53: 2.1 | B53: Izkopi | F53: =SUM(F48:F52) -> 0
A55: 2.2 | B55: Planum temeljnih tal
A56: 22 112 | B56: Ureditev planuma temeljnih tal vezljive zemljine – 3. - 5. kategorije | C56: 10648 | D56: m2 | F56: =C56 * E56 -> 0
A57: 2.2. | B57: Planum temeljnih tal | F57: =SUM(F56:F56) -> 0
A59: 2.3 | B59: Ločilne, drenažne in filtrske plasti ter delovni plato
A60: 23 116 | B60: Izdelava drenažne plasti iz kamnitega materiala v debelini nad 40cm | C60: 426 | D60: m3 | F60: =C60 * E60 -> 0
A61: 23 315 | B61: Dobava in vgraditev geotekstilije za ločilno plast, natezna trdnost nad 18 kN/m2 (armaturni geosintetik, kratkotrajna natezna trdnost vsaj 40 kN/m) | C61: 12202 | D61: m2 | F61: =C61 * E61 -> 0
A62: 2.3 | B62: Ločilne, drenažne in filtrske plasti ter delovni plato | F62: =SUM(F60:F61) -> 0
A64: 2.4 | B64: Nasipi, zasipi, klini, posteljica in glinasti naboj
A65: 24 118 | B65: Izdelava nasipa iz zrnate kamnine - 3.kategorije z dobavo iz gramoznice - kvaliteten kamnit nasipni material frakcije 0/125 | C65: 107 | D65: m3 | F65: =C65 * E65 -> 0
A66: 24 219 | B66: Zasip z zrnato kamnino - 3.kategorije z dobavo iz gramoznice - METEORNA KANALIZACIJA | C66: 145 | D66: m3 | F66: =C66 * E66 -> 0
A67: 24 229 | B67: Zasip cevi s peskom 0/4 - METEORNA KANALIZACIJA | C67: 45 | D67: m3 | F67: 0
A68: 24 461 | B68: Vgraditev posteljice v debelini plasti do 50cm iz zrnate kamnine – 3.kategorije (posteljica 0/125, kvalitetni drobljenec, zmrzlinsko odpornega kamnitega materiala) | C68: 6334 | D68: m3 | F68: 0
A69: 2.4 | B69: Nasipi, zasipi, klini, posteljica in glinasti naboj | F69: =SUM(F65:F68) -> 0
A71: 2.5 | B71: Brežine in zelenice
A72: 25 122 | B72: Humuziranje brežine z valjanjem, v debelini do 15cm - strojno | C72: 453 | D72: m2 | F72: =C72 * E72 -> 0
A73: 25 142 | B73: Humuziranje zelenice z valjanjem, v debelini do 15 cm - strojno | C73: 31 | D73: m2 | F73: =C73 * E73 -> 0
B74: Zasaditev s travnim semenom | C74: 484 | D74: m2 | F74: 0
A75: 2.5 | B75: Brežine in zelenice | F75: =SUM(F72:F74) -> 0
A77: 2.9 | B77: Prevozi, razprostiranje in ureditev deponij materiala
A78: 29 121 | B78: Prevoz materiala na razdaljo nad 10 do 15 km | C78: 21385 | D78: t | F78: =C78 * E78 -> 0
A79: 29 131 | B79: Razprostiranje odvečne plodne zemljine - 1.kategorije | C79: 163 | D79: m3 | F79: =C79 * E79 -> 0
A80: 29 152 | B80: Odlaganje odpadne zmesi zemljine in kamnine, vključno s takso in priskrbitvijo evidenčnih listov | C80: 19984 | D80: t | F80: 0
A81: 29 153 | B81: Odlaganje odpadnega asfalta na komunalno deponijo, vključno s takso in priskrbitvijo evidenčnih listov | C81: 1590 | D81: t | F81: 0
A82: 29 154 | B82: Odlaganje odpadnega cementnega betona na komunalno deponijo, vključno s takso in priskrbitvijo evidenčnih listov | C82: 18 | D82: t | F82: 0
A83: 29 155 | B83: Odlaganje mešanih gradbenih odpadkov z do 25 m.-% nemineralnih primesi, vključno s takso in priskrbitvijo evidenčnih listov | C83: 10 | D83: t | F83: 0
A84: 2.9 | B84: Prevozi, razprostiranje in ureditev deponij materiala | F84: =SUM(F78:F83) -> 0
A86: 2. | B86: ZEMELJSKA DELA | F86: =F53+F57+F62+F69+F75+F84 -> 0
A89: 3. | B89: VOZIŠČNE KONSTRUKCIJE
A90: 3.1 | B90: Nosilne plasti
A91: 31 132 | B91: Izdelava nevezane nosilne plasti enakomerno zrnatega drobljenca TD32 iz kamnine v debelini 21 do 30cm | C91: 3288 | D91: m3 | F91: =C91 * E91 -> 0
A92: 31 372 | B92: Izdelava zgornje nosilne plasti v debelini 6cm - AC 16 bin PmB 45/80-65, A2 - G2-106 + uvozi desno | C92: 8168 | D92: m2 | F92: =C92 * E92 -> 0
A93: 31 314 | B93: Izdelava zgornje nosilne plasti v debelini 7 cm - AC 22 base B50/70 A2 - G2-106 + uvozi desno | C93: 8168 | D93: m2 | F93: 0
A94: 31 314 | B94: Izdelava zgornje nosilne plasti v debelini 7 cm - AC 22 base B70/100 A3 - OBČINSKE CESTE + uvozi levo | C94: 1139 | D94: m2 | F94: 0
A95: 3.1 | B95: Nosilne plasti | F95: =SUM(F91:F94) -> 0
A97: 3.2 | B97: Obrabne plasti
A98: 32 237 | B98: Izdelava obrabne in zaporne plasti v debelini 30mm - AC8 surf B50/70 A3 - OBČINSKE CESTE + uvozi levo | C98: 1139 | D98: m2 | F98: =C98 * E98 -> 0
A99: 32 293 | B99: Izdelava obrabne in zaporne plasti v debelini 40 mm - SMA 11 PmB45/80-65 A2 - G2-106 + uvozi desno | C99: 8168 | D99: m2 | F99: =C99 * E99 -> 0
A100: 3.2 | B100: Obrabne plasti | F100: =SUM(F98:F99) -> 0
A102: 3.4 | B102: Tlakovane obrabne plasti
B103: Dobava in vgraditev prodca ob objektih | C103: 19 | D103: m2 | F103: =C103 * E103 -> 0
A104: 34 152 | B104: Izdelava obrabne plasti iz betonskih tlakovcev, stiki zaliti s cementno malto | C104: 86 | D104: m2 | F104: =C104 * E104 -> 0
A105: 34 913 | B105: Izdelava podložne plasti za tlakovano obrabno plast iz cementnega betona v debelini 10cm | C105: 86 | D105: m2 | F105: 0
A106: 3.4 | B106: Tlakovane obrabne plasti | F106: =SUM(F103:F105) -> 0
A108: 3.5 | B108: Robni elementi vozišč
A109: 35 214 | B109: Dobava in vgraditev predfabriciranega dvignjenega robnika iz cementnega betona s prerezom 15/25cm | C109: 1281 | D109: m1 | F109: =C109 * E109 -> 0
A110: 35 235 | B110: Dobava in vgraditev predfabriciranega pogreznjenega robnika iz cementnega betona s prerezom 15/25cm | C110: 146 | D110: m1 | F110: =C110 * E110 -> 0
A111: 3.5 | B111: Robni elementi vozišč | F111: =SUM(F109:F110) -> 0
A113: 3.6 | B113: Bankine
A114: 36 131 | B114: Izdelava bankine iz drobljenca, široke do 0,50m | C114: 3 | D114: m3 | F114: =C114 * E114 -> 0
A115: 36 134 | B115: Izdelava bankine iz drobljenca, široke nad 1,00m | C115: 146 | D115: m3 | F115: =C115 * E115 -> 0
A116: 3.6 | B116: Bankine | F116: =SUM(F114:F115) -> 0
A118: 3. | B118: VOZIŠČNE KONSTRUKCIJE | F118: =F95+F100+F111+F116+F106 -> 0
A121: 4. | B121: ODVODNJAVANJE
A122: 4.1. | B122: Površinsko odvodnjavanje
A123: 41 131 | B123: Tlakovanje jarka z lomljencem, d=max.20cm, stiki zapolnjeni s cementno malto, na podložni plasti cementnega betona C12/15, debeli 10cm, grobo tlakovanje (mestoma se izpostavi določene kamne tako, da gledajo izven ravnine mulde, fuge se ne izvedejo do vrha) - NA IZTOKIH | C123: 6 | D123: m2 | F123: =C123 * E123 -> 0
A124: 41 321 | B124: Izdelava koritnice iz bitumenskega betona, ob že zgrajenem robniku iz cementnega betona, široke 50cm (asfalt je zajet v postavkah "voziščna konstrukcija") | C124: 108 | D124: m1 | F124: =C124 * E124 -> 0
B125: Izdelava asfaltne mulde, široke 50cm (asfalt je zajet v postavkah "voziščna konstrukcija") | C125: 63 | D125: m1 | F125: 0
A126: 4.1. | B126: Površinsko odvodnjavanje | F126: =SUM(F123:F125) -> 0
A128: 4.2. | B128: Globinsko odvodnjavanje - drenaže
A129: 42 133 | B129: Izdelava vzdolžne in prečne drenaže, globoke do 1,0 m, na podložni plasti iz cementnega betona, debeline 10 cm, z gibljivimi plastičnimi cevmi premera 10 cm | C129: 1065 | D129: m1 | F129: =C129 * E129 -> 0
A130: 42 483 | B130: Izdelava izpusta drenaže, po načrtu, ne glede na globino ali oviranje z opažem, premera 10cm | C130: 19 | D130: kos | F130: =C130 * E130 -> 0
A131: 4.2. | B131: Globinsko odvodnjavanje - drenaže | F131: =SUM(F129:F130) -> 0
A133: 4.3 | B133: Globinsko odvodnjavanje - kanalizacija
A134: 43 191 | B134: Izdelava kanalizacije iz cevi iz polietilena, vključno s podložno plastjo iz cementnega betona, premera DN160, v globini do 1,0m | C134: 211 | D134: m1 | F134: =C134 * E134 -> 0
A135: 43 192 | B135: Izdelava kanalizacije iz cevi iz polietilena, vključno s podložno plastjo iz cementnega betona, premera DN200, v globini do 1,0m, SN 8 | C135: 233 | D135: m1 | F135: =C135 * E135 -> 0
A136: 43 292 | B136: Obbetoniranje cevi za kanalizacijo s cementnim betonom C 16/20, po detajlu iz načrta, premera DN160 | C136: 25 | D136: m1 | F136: 0
A137: 43 292 | B137: Obbetoniranje cevi za kanalizacijo s cementnim betonom C 16/20, po detajlu iz načrta, premera DN200 | C137: 120 | D137: m1 | F137: 0
A138: 4.3 | B138: Globinsko odvodnjavanje - kanalizacija | F138: =SUM(F134:F137) -> 0
A140: 4.4 | B140: Jaški
A141: 44 333 | B141: Dobava in vgradnja jaška iz polietilena, krožnega prereza s premerom 50cm, globokega 1,5 do 2,0m | C141: 25 | D141: kos | F141: =C141 * E141 -> 0
A142: 44 341 | B142: Dobava in vgradnja jaška iz polietilena, krožnega prereza s premerom 60 cm, globokega do 1,0 m | C142: 1 | D142: kos | F142: 0
A143: 44 342 | B143: Dobava in vgradnja jaška iz polietilena, krožnega prereza s premerom 60 cm, globokega 1,0m do 1,5 m | C143: 1 | D143: kos | F143: 0
A144: 44 362 | B144: Dobava in vgradnja jaška iz polietilena, krožnega prereza s premerom 80 cm, globokega 1,0 do 1,5 m | C144: 4 | D144: kos | F144: 0
A145: 44 363 | B145: Dobava in vgradnja jaška iz polietilena, krožnega prereza s premerom 80 cm, globokega 1,5 do 2,0 m | C145: 1 | D145: kos | F145: 0
A146: 44 365 | B146: Dobava in vgradnja jaška iz polietilena, krožnega prereza s premerom 80 cm, globokega nad 2,5 m | C146: 5 | D146: kos | F146: 0
A147: 44 854 | B147: Dobava in vgraditev rešetke iz duktilne litine z nosilnostjo 400 kN, s prerezom 500/500mm | C147: 3 | D147: kos | F147: 0
A148: 44 961 | B148: Dobava in vgraditev pokrova iz duktilne litine z nosilnostjo 250kN, krožnega prereza s premerom 500mm - tipska robna rešetka | C148: 15 | D148: kos | F148: 0
A149: 44 961 | B149: Dobava in vgraditev pokrova iz duktilne litine z nosilnostjo 250kN, krožnega prereza s premerom 500mm - C250 | C149: 8 | D149: kos | F149: 0
A150: 44 962 | B150: Dobava in vgraditev pokrova iz duktilne litine z nosilnostjo 250kN, krožnega prereza s premerom 600mm - C250 | C150: 9 | D150: kos | F150: 0
A151: 44 971 | B151: Dobava in vgraditev pokrova iz duktilne litine z nosilnostjo 400 kN, krožnega prereza s premerom 500 mm - D400 | C151: 1 | D151: kos | F151: 0
A152: 44 972 | B152: Dobava in vgraditev pokrova iz duktilne litine z nosilnostjo 400 kN, krožnega prereza s premerom 600 mm - D400 | C152: 1 | D152: kos | F152: 0
A153: 44 991 | B153: Višinska prilagoditev obstoječega jaška (do 50cm) | C153: 2 | D153: kos | F153: 0
A154: 4.4 | B154: Jaški | F154: =SUM(F141:F153) -> 0
A156: 4.6 | B156: Izviri, vodnjaki, ponikovalnice, vrtače
A157: 46 334 | B157: Ureditev ponikovalnice s perforirano cevjo iz cementnega betona, krožnega prereza, s premerom 80cm, globine 3,1 do 4,0m, vključno s pokrovom iz duktilne litine z nosilnostjo 250kN, krožnega prereza s premerom 600mm, z zaklepom | C157: 2 | D157: kos | F157: =C157 * E157 -> 0
A158: 46 354 | B158: Ureditev ponikovalnice s perforirano cevjo iz cementnega betona, krožnega prereza, s premerom 100 cm, globine 3,1 do 4,0 m, vključno s pokrovom iz duktilne litine z nosilnostjo 250kN, krožnega prereza s premerom 600mm, z zaklepom | C158: 2 | D158: kos | F158: =C158 * E158 -> 0
A159: 4.6 | B159: Izviri, vodnjaki, ponikovalnice, vrtače | F159: =SUM(F157:F158) -> 0
A161: 4. | B161: ODVODNJAVANJE | F161: =F131+F138+F154+F126+F159 -> 0
A164: 5. | B164: GRADBENA IN OBRTNIŠKA DELA
B165: Izdelava nadomestnega kamnitega zidca | C165: 8 | D165: m1 | F165: =C165 * E165 -> 0
A166: 5. | B166: GRADBENA IN OBRTNIŠKA DELA | F166: =F165 -> 0
A169: 6. | B169: OPREMA CEST
A170: 6.1 | B170: Pokončna oprema ceste
A171: 61 122 | B171: Izdelava temelja iz cementnega betona C 12/15, globine 80cm, premera 30cm | C171: 14 | D171: kos | F171: =C171 * E171 -> 0
A172: 61 216 | B172: Dobava in vgraditev stebrička za prometni znak iz vroče cinkane jeklene cevi s premerom 64mm, dolge 3000mm | C172: 4 | D172: kos | F172: =C172 * E172 -> 0
A173: 61 217 | B173: Dobava in vgraditev stebrička za prometni znak iz vroče cinkane jeklene cevi s premerom 64mm, dolge 3500mm | C173: 3 | D173: kos | F173: 0
A174: 61 218 | B174: Dobava in vgraditev stebrička za prometni znak iz vroče cinkane jeklene cevi s premerom 64mm, dolge 4000mm | C174: 6 | D174: kos | F174: 0
A175: 61 219 | B175: Dobava in vgraditev stebrička za prometni znak iz vroče cinkane jeklene cevi s premerom 64mm, dolge 4500mm | C175: 1 | D175: kos | F175: 0
A177: 61 452 | B177: Dobava in pritrditev trikotnega prometnega znaka, podloga iz aluminijaste pločevine, znak z RA2, dolžina stranice a=900mm | C177: 3 | D177: kos | F177: 0
A178: 61 642 | B178: Dobava in pritrditev okroglega prometnega znaka, podloga iz aluminijaste pločevine, znak z RA2, premera 600 mm | C178: 3 | D178: kos | F178: 0
A179: 61 723 | B179: Dobava in pritrditev prometnega znaka, podloga iz aluminijaste pločevine, znak z RA2, velikost 0,21 do 0,40m2 | C179: 6 | D179: kos | F179: 0
B181: Doplačilo za pritrditev znaka na drog JR | C181: 8 | D181: kos | F181: 0
B183: Ponovna postavitev predhodno demontiranih prometnih znakov | C183: 20 | D183: kos | F183: 0
A184: 6.1 | B184: Pokončna oprema ceste | F184: =SUM(F171:F183) -> 0
A186: 6.2 | B186: Označbe na vozišču
A187: 62 121 | B187: Izdelava tankoslojne vzdolžne označbe na vozišču z enokomponentno belo barvo, vključno 250 g/m2 posipa z drobci / kroglicami stekla, strojno, debelina plasti suhe snovi 250 mm, širina črte 10cm | C187: 44 | D187: m1 | F187: =C187 * E187 -> 0
A188: 62 251 | B188: Doplačilo za izdelavo prekinjenih vzdolžnih označb na vozišču, širina črte 10cm | C188: 5 | D188: m1 | F188: =C188 * E188 -> 0
A190: 62 123 | B190: Izdelava tankoslojne vzdolžne označbe na vozišču z enokomponentno belo barvo, vključno 250 g/m2 posipa z drobci / kroglicami stekla, strojno, debelina plasti suhe snovi 250 mm, širina črte 15 cm | C190: 3216 | D190: m1 | F190: =C190 * E190 -> 0
A191: 62 253 | B191: Doplačilo za izdelavo prekinjenih vzdolžnih označb na vozišču, širina črte 15cm | C191: 575 | D191: m1 | F191: =C191 * E191 -> 0
A193: 62 168 | B193: Izdelava tankoslojne prečne in ostalih označb na vozišču z enokomponentno belo barvo, vključno 250 g/m2 posipa z drobci / kroglicami stekla, strojno, debelina plasti suhe snovi 250 mm, površina označbe nad 1,5 m2 | C193: 175 | D193: m2 | F193: =C193 * E193 -> 0
A194: 62 244 | B194: Doplačilo za ročno izdelavo ostalih označb na vozišču, posamezna površina označbe nad 1,5 m2 | C194: 175 | D194: m2 | F194: =C194 * E194 -> 0
A195: 6.2 | B195: Označbe na vozišču | F195: =SUM(F187:F194) -> 0
A197: 6.4. | B197: Oprema za zavarovanje prometa
B198: Ponovna postavitev predhodno demontirane lesene ograje | C198: 53 | D198: m1 | F198: =C198 * E198 -> 0
B199: Dobava in posaditev žive meje | C199: 51 | D199: m1 | F199: =C199 * E199 -> 0
B200: Dobava in postavitev prikazovalnika hitrosti | C200: 2 | D200: kos | F200: =C200 * E200 -> 0
A201: 6.4. | B201: Oprema za zavarovanje prometa | F201: =SUM(F198:F200) -> 0
A203: 6. | B203: PROMETNA OPREMA | F203: =F184+F195+F201 -> 0
A206: 7. | B206: TUJE STORITVE
A207: 7.9. | B207: Preskusi, nadzor in tehnična dokumentacija
A208: 79 311 | B208: Projektantski nadzor | C208: 145 | D208: ura | E208: 45 | F208: =C208 * E208 -> 6525
A209: 79 351 | B209: Geotehnični nadzor | C209: 80 | D209: ura | E209: 45 | F209: =C209 * E209 -> 3600
A210: 79 514 | B210: Izdelava projektne dokumentacije za projekt izvedenih del | C210: 1 | D210: kos | F210: =C210 * E210 -> 0
B211: Izdelava navodil za obratovanje in vzdrževanje, obrazcev za vpis v BCP | C211: 1 | D211: kos | F211: =C211 * E211 -> 0
A212: 7.9. | B212: Preskusi, nadzor in tehnična dokumentacija | F212: =SUM(F208:F211) -> 10125
A214: 7. | B214: TUJE STORITVE | F214: =SUM(F212) -> 10125
A217: 8. | B217: OSTALO
B218: Izvedba cestne zapore (v ceni zajeta izdelava elaborata, pridobitev zapore za celotno izvedbo del). | C218: 270 | D218: dan | E218: 160 | F218: =C218 * E218 -> 43200
A219: 8. | B219: OSTALO | F219: =SUM(F218:F218) -> 43200
B221: SKUPAJ | F221: =F43+F86+F118+F161+F203+F214+F166+F219 -> 53325

Sheet REKAPITULACIJA PLOČNIK
A1: objekt: | B1: Glavna cesta G2-106, odsek 0263 Žlebič – Kočevje, od km 1,230 do km 2,350
B2: skozi naselji GRIČ IN BREG
A4: načrt: | B4: 3/1 - načrt ceste
A5: faza: | B5: PZI | C5: datum: | E5: maj 2018, po recenziji
A6: št.proj. | B6: 1531 | E6: == PLOČNIK ==
A12: REKAPITULACIJA
A17: 1. | B17: PREDDELA | F17: =PLOČNIK!F19 -> 0
A19: 2. | B19: ZEMELJSKA DELA | F19: =PLOČNIK!F60 -> 0
A21: 3. | B21: VOZIŠČNE KONSTRUKCIJE | F21: =PLOČNIK!F77 -> 0
A23: 6. | B23: OPREMA CEST | F23: =PLOČNIK!F87 -> 0
A25: 8. | B25: OSTALO | F25: =PLOČNIK!F92 -> 0
B27: SKUPAJ | F27: =SUM(F17:F26) -> 0

Sheet PLOČNIK
A1: objekt: | B1: Glavna cesta G2-106, odsek 0263 Žlebič – Kočevje, od km 1,230 do km 2,350
B2: skozi naselji GRIČ IN BREG
A4: načrt: | B4: 3/1 - načrt ceste
A5: faza: | B5: PZI
A6: št.proj. | B6: 1531 | E6: == PLOČNIK ==
A8: šifra | B8: opis dela | C8: količina | D8: enota | E8: cena/enota | F8: znesek
A9: 1. | B9: PREDDELA
A10: 1.1 | B10: Geodetska dela
A11: 11 631 | B11: Posnetek višine in položaja točke na terenu/objektu | C11: 200 | D11: kos | F11: =C11 * E11 -> 0
A12: 1.1 | B12: Geodetska dela | F12: =SUM(F11:F11) -> 0
A14: 1.2 | B14: Čiščenje terena
A15: 12 381 | B15: Rezanje asfaltne plasti s talno diamantno žago, debele do 5cm | C15: 23 | D15: m1 | F15: =C15 * E15 -> 0
B16: Predhodna obdelava stika in premaz z bitumensko lepilno zmesjo po celotni višin | C16: 23 | D16: m1 | F16: =C16 * E16 -> 0
A17: 1.2 | B17: Čiščenje terena | F17: =SUM(F15:F16) -> 0
A19: 1. | B19: PREDDELA | F19: =F12+F17 -> 0
A22: 2. | B22: ZEMELJSKA DELA
A23: 2.1 | B23: Izkopi
A24: 21 114 | B24: Površinski izkop plodne zemljine – 1. kategorije – strojno z nakladanjem | C24: 433 | D24: m3 | F24: =C24 * E24 -> 0
A25: 21 224 | B25: Široki izkop vezljive zemljine – 3. kategorije – strojno z nakladanjem | C25: 481 | D25: m3 | F25: =C25 * E25 -> 0
A26: 21 215 | B26: Široki izkop vezljive zemljine – 5. kategorije – strojno z nakladanjem | C26: 326 | D26: m3 | F26: =C26 * E26 -> 0
A27: 21 314 | B27: Izkop vezljive zemljine/zrnate kamnine – 3. kategorije za temelje, kanalske rove, prepuste, jaške in drenaže, širine do 1,0 m in globine do 1,0 m – strojno, planiranje dna ročno - JR+TK VOD | C27: 185 | D27: m3 | F27: 0
A28: 21 324 | B28: Izkop vezljive zemljine/zrnate kamnine –5. kategorije za temelje, kanalske rove, prepuste, jaške in drenaže, širine do 1,0 m in globine do 2,0 m – strojno, planiranje dna ročno - JR+TK VOD | C28: 96 | D28: m3 | F28: =C28 * E28 -> 0
A29: 2.1 | B29: Izkopi | F29: =SUM(F24:F28) -> 0
A31: 2.2 | B31: Planum temeljnih tal
A32: 22 112 | B32: Ureditev planuma temeljnih tal vezljive zemljine – 3. - 5. kategorije | C32: 2539 | D32: m2 | F32: =C32 * E32 -> 0
A33: 22 112 | B33: Ureditev planuma temeljnih tal vezljive zemljine – 3. - 5. kategorije - JR+TK VOD | C33: 730 | D33: m2 | F33: =C33 * E33 -> 0
A34: 2.2. | B34: Planum temeljnih tal | F34: =SUM(F32:F33) -> 0
A36: 2.3 | B36: Ločilne, drenažne in filtrske plasti ter delovni plato
A37: 23 315 | B37: Dobava in vgraditev geotekstilije za ločilno plast, natezna trdnost nad 18 kN/m2 (armaturni geosintetik, kratkotrajna natezna trdnost vsaj 40 kN/m) | C37: 2401 | D37: m2 | F37: =C37 * E37 -> 0
A38: 2.3 | B38: Ločilne, drenažne in filtrske plasti ter delovni plato | F38: =SUM(F37:F37) -> 0
A40: 2.4 | B40: Nasipi, zasipi, klini, posteljica in glinasti naboj
A41: 24 118 | B41: Izdelava nasipa iz zrnate kamnine - 3.kategorije z dobavo iz gramoznice - kvaliteten kamnit nasipni material frakcije 0/125; od dna izkopa do dna planuma posteljice | C41: 348 | D41: m3 | F41: =C41 * E41 -> 0
A42: 24 219 | B42: Zasip z zrnato kamnino - 3.kategorije z dobavo iz gramoznice - JR+TK VOD | C42: 190 | D42: m3 | F42: =C42 * E42 -> 0
A43: 24 229 | B43: Zasip cevi s peskom 0/4 - JR+TK VOD | C43: 40 | D43: m3 | F43: 0
A44: 24 421 | B44: Vgraditev posteljice v debelini plasti do 30cm iz zrnate kamnine – 3.kategorije (posteljica 0/64, kvalitetni drobljenec, zmrzlinsko odpornega kamnitega materiala) | C44: 746 | D44: m3 | F44: 0
A45: 2.4 | B45: Nasipi, zasipi, klini, posteljica in glinasti naboj | F45: =SUM(F41:F44) -> 0
A47: 2.5 | B47: Brežine in zelenice
A48: 25 122 | B48: Humuziranje brežine z valjanjem, v debelini do 15cm - strojno | C48: 1197 | D48: m2 | F48: =C48 * E48 -> 0
A49: 25 142 | B49: Humuziranje zelenice z valjanjem, v debelini do 15 cm - strojno | C49: 312 | D49: m2 | F49: =C49 * E49 -> 0
B50: Zasaditev s travnim semenom | C50: 1509 | D50: m2 | F50: 0
A51: 2.5 | B51: Brežine in zelenice | F51: =SUM(F48:F50) -> 0
A53: 2.9 | B53: Prevozi, razprostiranje in ureditev deponij materiala
A54: 29 121 | B54: Prevoz materiala na razdaljo nad 10 do 15 km | C54: 1666 | D54: t | F54: =C54 * E54 -> 0
A55: 29 131 | B55: Razprostiranje odvečne plodne zemljine - 1.kategorije | C55: 207 | D55: m3 | F55: =C55 * E55 -> 0
A56: 29 152 | B56: Odlaganje odpadne zmesi zemljine in kamnine, vključno s takso in priskrbitvijo evidenčnih listov | C56: 1324 | D56: t | F56: 0
A57: 29 155 | B57: Odlaganje mešanih gradbenih odpadkov z do 25 m.-% nemineralnih primesi, vključno s takso in priskrbitvijo evidenčnih listov | C57: 5 | D57: t | F57: 0
A58: 2.9 | B58: Prevozi, razprostiranje in ureditev deponij materiala | F58: =SUM(F54:F57) -> 0
A60: 2. | B60: ZEMELJSKA DELA | F60: =F29+F34+F38+F45+F51+F58 -> 0
A63: 3. | B63: VOZIŠČNE KONSTRUKCIJE
A64: 3.1 | B64: Nosilne plasti
A65: 31 131 | B65: Izdelava nevezane nosilne plasti enakomerno zrnatega drobljenca iz kamnine v debelini do 20cm - tamponski drobljenec TD22 | C65: 657 | D65: m3 | F65: =C65 * E65 -> 0
A66: 3.1 | B66: Nosilne plasti | F66: =SUM(F65:F65) -> 0
A68: 3.2 | B68: Obrabne plasti
A69: 32 234 | B69: Izdelava obrabne in zaporne ali zaščitne plasti bitumenskega betona v debelini 40mm - AC 8 surf 70/100 A5 | C69: 2168 | D69: m2 | F69: =C69 * E69 -> 0
A70: 3.2 | B70: Obrabne plasti | F70: =SUM(F69:F69) -> 0
A72: 3.5 | B72: Robni elementi vozišč
A73: 35 214 | B73: Dobava in vgraditev predfabriciranega dvignjenega robnika iz cementnega betona s prerezom 15/25cm | C73: 31 | D73: m1 | F73: =C73 * E73 -> 0
A74: 35 313 | B74: Izdelava obrobe iz malih tlakovcev iz naravnega kamna velikosti 10cm/10cm/10cm | C74: 1172 | D74: m1 | F74: =C74 * E74 -> 0
A75: 3.5 | B75: Robni elementi vozišč | F75: =SUM(F73:F74) -> 0
A77: 3. | B77: VOZIŠČNE KONSTRUKCIJE | F77: =F66+F70+F75 -> 0
A80: 6. | B80: OPREMA CEST
B81: Taktilne označbe
B82: Dobava in vgradnja taktilnih označb - čepkaste (mehurčkaste), dimenzija plošče 30x30cm (svetlega odtenka!), vključno lepljenjem in fugiranjem z epoksi lepilom. Označbe morajo biti skladne s standardom SIST 1186. | C82: 41 | D82: m1 | F82: =C82 * E82 -> 0
B83: Dobava in vgradnja taktilnih označb - čepkaste (mehurčkaste), dimenzija plošče 30x30cm (svetlega odtenka!), vključno lepljenjem in fugiranjem z epoksi lepilom. Označbe morajo biti skladne s standardom SIST 1186. | C83: 4 | D83: m2 | F83: =C83 * E83 -> 0
B84: Dobava in vgradnja taktilnih označb - vzdolžne (vodilne), dimenzija plošče 30x30cm (svetlega odtenka!), vključno lepljenjem in fugiranjem z epoksi lepilom. Označbe morajo biti skladne s standardom SIST 1186. | C84: 4 | D84: m1 | F84: 0
B85: Taktilne označbe | F85: =SUM(F82:F84) -> 0
A87: 6. | B87: PROMETNA OPREMA | F87: =F85 -> 0
A90: 8. | B90: OSTALO
C91: 0 | D91: kos | E91: =F19+F60+F77+F87 -> 0 | F91: =C91 * E91 -> 0
A92: 8. | B92: OSTALO | F92: =SUM(F91:F91) -> 0
B94: SKUPAJ | F94: =F19+F60+F77+F87 -> 0

Sheet REKAPITULACIJA JR
C1: POPIS MATERIALA IN DEL
C4: REKAPITULACIJA
B6: 1. | C6: CESTNA RAZSVETLJAVA | I6: =JR!G19 -> 0
B7: 2. | C7: GRADBENA DELA CESTNE RAZSVETLJAVE | I7: =JR!G30 -> 0
B8: 3. | C8: DEMONTAŽNA DELA | I8: =JR!G47 -> 0
B9: 4. | C9: OSTALA DELA | I9: =JR!G66 -> 1800
C10: SKUPAJ | I10: =SUM(I6:I9) -> 1800

Sheet JR
B1: 1. | C1: CESTNA RAZSVETLJAVA
D2: EM | E2: KOL | F2: CENA/EM | G2: VREDNOST
B3: 1 | C3: Priklop kabla NAYY-0 4x16+1,5mm2 v obstoječi omarici cestne razsvetljave, komplet z drobnim montažnim materialom in stiklanimi manipulacijami | D3: kpl | E3: 2 | G3: =E3*F3 -> 0
B5: =B3+1 -> 2 | C5: Dobava in polaganje kabla NAYY-0 4x16+1,5mm2 v zaščitno cev | D5: m | E5: 1390 | G5: =E5*F5 -> 0
B7: =B5+1 -> 3 | C7: Dobava in polaganje opozorilnega traku | D7: m | E7: 1220 | G7: =E7*F7 -> 0
B9: =B7+1 -> 4 | C9: Dobava in polaganje vročecinkanega valjanca FeZn 25x4mm. | D9: m | E9: 1315 | G9: =E9*F9 -> 0
B11: =B9+1 -> 5 | C11: Dobava križnih sponk 60x60 in izdelava križnih stikov z dekoral trakom | D11: kos | E11: 64 | G11: =E11*F11 -> 0
B13: =B11+1 -> 6 | C13: Izdelava ozemljitvenih spojev z vijačenjem valjanca na kandelabre z dvema vijakoma M8 | D13: kos | E13: 38 | G13: =E13*F13 -> 0
B15: =B13+1 -> 7 | C15: Dobava in montaža vsadnega klasičnega droga svetle višine 9m, komplet s priključno zbiralko in priključnim kablom NYY-J 4x1,5mm2, vetrna cona 1, za katero velja Vref,0 = 20m/s | D15: kos | E15: 37 | G15: =E15*F15 -> 0
B17: =B15+1 -> 8 | C17: Dobava in montaža LED svetilke svetlobni tok več od 8000 lm, skupna priključna moč sistema manj kot 85W, svetilna učinkovitost več kot 100 lm/W oblikovno in tehnično enakovredna kot Lumenia, ELUM (48.080.010_PR) | D17: kos | E17: 37 | G17: =E17*F17 -> 0
C19: CESTNA RAZSVETLJAVA SKUPAJ | G19: =SUM(G3:G18) -> 0
B22: 2. | C22: GRADBENA DELA CESTNE RAZSVETLJAVE
D23: EM | E23: KOL | F23: CENA/EM | G23: VREDNOST
B24: 1 | C24: Dobava in polaganje MAPITEL cevi DWP 110 | D24: m | E24: 1315 | G24: =E24*F24 -> 0
B26: 2 | C26: Izdelava vsadnega betonskega temelja iz betonske cevi fi 80cm dolžine 1m za montažo vsadnega droga po priloženem detajlu | D26: kos | E26: 38 | G26: =E26*F26 -> 0
B28: =B26+1 -> 3 | C28: Izdelava betonskega jaška iz betonske cevi fi 60cm dolžine 1m z litoželeznim pokrovom nosilnosti 125kN in napisom JAVNA RAZSVETLJAVA | D28: kos | E28: 39 | G28: =E28*F28 -> 0
C30: GRADBENA DELA CESTNE RAZSVETLJAVE SKUPAJ | G30: =SUM(G24:G29) -> 0
B33: 3. | C33: DEMONTAŽNA DELA
D34: EM | E34: KOL | F34: CENA/EM | G34: VREDNOST
B35: 1 | C35: Demontaža obstoječe svetilke montirane na žici preko cestišča, odvoz v skladišče koncesionarja | D35: kpl | E35: 3 | G35: =E35*F35 -> 0
B37: =B35+1 -> 2 | C37: Demontaža obstoječe svetilke, komplet z drogom cestne razsvetljave, odvoz v skladišče koncesionarja ali na ustrezno deponijo | D37: kpl | E37: 8 | G37: =E37*F37 -> 0
B39: =B37+1 -> 3 | C39: Odklop in demontaža obstoječega kabla zračnega voda cestne razsvetljave, odvoz v skladišče koncesionarja ali na ustrezno deponijo | D39: m | E39: 70 | G39: =E39*F39 -> 0
B41: =B39+1 -> 4 | C41: Prestavitev obstoječe svetilke, komplet z drogom cestne razsvetljave na nov temelj ob novem robu cestišča | D41: kpl | E41: 1 | G41: =E41*F41 -> 0
B43: =B41+1 -> 5 | C43: Prestavitev ob nov rob cestišča obstoječega prižigališča RJR1, komplet z izgradnjo novega temelja in podaljšanjem ter prestavitvijo obstoječih vodnikov. | D43: kpl | E43: 1 | G43: =E43*F43 -> 0
B45: =B43+1 -> 6 | C45: Rušenje obstoječega temelja droga, odvoz gradbenega odpadka na ustrezno deponijo | D45: kpl | E45: 7 | G45: =E45*F45 -> 0
C47: DEMONTAŽNA DELA SKUPAJ | G47: =SUM(G35:G46) -> 0
B50: 4. | C50: OSTALA DELA
D51: EM | E51: KOL | F51: CENA/EM | G51: VREDNOST
B52: 1 | C52: Odkaz obstoječih komunalnih vodov | D52: kpl | E52: 1 | G52: =E52*F52 -> 0
B54: =B52+1 -> 2 | C54: Zakoličenje novega kablovoda | D54: kpl | E54: 1 | G54: =E54*F54 -> 0
B56: =B54+1 -> 3 | C56: Izvedba električnih in svetlobno tehničnih meritev (svetlost in osvetljenost) ter izdelava merilnega protokola | D56: kp | E56: 1 | G56: =E56*F56 -> 0
B58: =B56+1 -> 4 | C58: Testiranje in vstavitev v pogon (funkc. preizskus) | D58: kos | E58: 1 | G58: =E58*F58 -> 0
B60: =B58+1 -> 5 | C60: Vris trase JR v podzemni kataster | D60: kpl | E60: 1 | G60: =E60*F60 -> 0
B62: =B60+1 -> 6 | C62: Izdelava PID in NOV dokumentacije v štirih izvodih | D62: kpl | E62: 1 | G62: =E62*F62 -> 0
B64: =B62+1 -> 7 | C64: Projektantski nadzor | D64: ur | E64: 40 | F64: 45 | G64: =E64*F64 -> 1800
C66: OSTALA DELA SKUPAJ | G66: =SUM(G52:G65) -> 1800

Sheet REKAPITULACIJA EL
B1: r | C1: PROJEKTANTSKI POPIS DEL
C3: REKAPITULACIJA
B5: 1 | C5: ZAŠČITA OBSTOJEČIH ELEKTROVODOV | I5: =EL!G11 -> 0
B6: 2 | C6: OSTALA DELA | I6: =EL!G25 -> 630
C7: SKUPAJ | I7: =SUM(I5:I6) -> 630

Sheet EL
B1: 1. | C1: PRESTAVITEV OBSTOJEČIH ELEKTROVODOV
D2: EM | E2: KOL | F2: CENA / EM | G2: VREDNOST
B3: 1 | C3: Prestavitev obstoječega NN ''A'' droga za 1m, komplet z odklopom obstoječih vodnikov, ponovni priklop vodnikov, izkop za postavitev droga, demontažo in ponovno montažo droga | D3: kpl | E3: 1 | G3: =E3*F3 -> 0
B5: =B3+1 -> 2 | C5: Dobava in montaža zračnega vodnika X00/0-A 3x70+71,5 + 2x16 mm2 | D5: m | E5: 40 | G5: =E5*F5 -> 0
B7: =B5+1 -> 3 | C7: Demontaža obstoječega NN droga, odvoz v skladišče distributerja ali na ustrezno deponijo | D7: kpl | E7: 1 | G7: =E7*F7 -> 0
B9: =B7+1 -> 4 | C9: Odklop in demontaža obstoječega kabla zračnega NN voda, odvoz v skladišče distributerja ali na ustrezno deponijo | D9: m | E9: 20 | G9: =E9*F9 -> 0
C11: SKUPAJ | G11: =SUM(G3:G10) -> 0
B13: 2. | C13: OSTALA DELA
D14: EM | E14: KOL | F14: CENA / EM | G14: VREDNOST
B15: 1 | C15: Obeleženje trase obstoječih energetskih kablov | D15: kpl | E15: 1 | G15: =E15*F15 -> 0
B17: =B15+1 -> 2 | C17: Manipulativna dela za odklop elektro omrežja v času del | D17: kpl | E17: 1 | G17: =E17*F17 -> 0
B19: =B17+1 -> 3 | C19: Nadzor s strani pristojnega upravljavca distribicijskega omrežja | D19: ur | E19: 4 | F19: 45 | G19: =E19*F19 -> 180
B21: =B19+1 -> 4 | C21: Izdelava PID dokumentacije v štirih izvodih | D21: kpl | E21: 1 | G21: =E21*F21 -> 0
B23: =B21+1 -> 5 | C23: Projektantski nadzor | D23: ur | E23: 10 | F23: 45 | G23: =E23*F23 -> 450
C25: SKUPAJ | G25: =SUM(G15:G24) -> 630

Sheet REKAPITULACIJA TKV
C1: PROJEKTANTSKI POPIS DEL
C3: REKAPITULACIJA
B5: 1. | C5: ZAŠČITA TK VODOV | I5: =TKV!I11 -> 0
B6: 2. | C6: ZAŠČITA KKS VODOV | I6: =TKV!I20 -> 0
B7: 3. | C7: KABELSKA KANALIZACIJA | I7: =TKV!I31 -> 0
B8: 4. | C8: OSTALA DELA | I8: =TKV!I48 -> 2700
C9: SKUPAJ | I9: =SUM(I5:I8) -> 2700

Sheet TKV
B1: 1. | C1: ZAŠČITA TK VODOV
D2: EM | E2: KOL | F2: CENA / EM | G2: VREDNOST
B3: 1 | C3: Dobava cevi PVC fi 110mm, vzdolžno rezanje in zaobjetje obstoječih telekomunikacijskih kablov | D3: m | E3: 470 | G3: =E3*F3 -> 0 | I3: =E3*H3 -> 0
B5: =B3+1 -> 2 | C5: Dobava in polaganje opozorilnega traku | D5: m | E5: 470 | G5: =E5*F5 -> 0 | I5: =E5*H5 -> 0
B7: =B5+1 -> 3 | C7: Prestavitev obstoječega TK droga za 1m, komplet z odklopom obstoječih vodnikov, ponovni priklop vodnikov, izkop za postavitev droga, demontažo in ponovno montažo droga | D7: kpl | E7: 2 | G7: =E7*F7 -> 0 | I7: 0
B9: =B7+1 -> 4 | C9: Prilagoditev pokrovov obstoječih telekomunikacijskih jaškov novi niveleti cestišča, komplet s potrebnim materialom | D9: kpl | E9: 5 | G9: =E9*F9 -> 0 | I9: 0
C11: SKUPAJ | G11: =SUM(G3:G10) -> 0 | I11: =SUM(I3:I10) -> 0
B14: 2. | C14: ZAŠČITA KKS VODOV
D15: EM | E15: KOL | F15: CENA / EM | G15: VREDNOST
B16: 1 | C16: Dobava cevi PVC fi 110mm, vzdolžno rezanje in zaobjetje obstoječih KKS kablov | D16: m | E16: 5 | G16: =E16*F16 -> 0 | I16: =E16*H16 -> 0
B18: 2 | C18: Dobava in polaganje opozorilnega traku | D18: m | E18: 5 | G18: =E18*F18 -> 0 | I18: =E18*H18 -> 0
C20: SKUPAJ | G20: =SUM(G16:G19) -> 0 | I20: =SUM(I16:I19) -> 0
B23: 3. | C23: KABELSKA KANALIZACIJA
D24: EM | E24: KOL | F24: CENA / EM | G24: VREDNOST
B25: 1 | C25: Izdelava betonskega jaška iz betonske cevi fi 0,8m dolžine 1m z litoželeznim pokrovom nosilnosti 250kN in napisom TELEKOMUNIKACIJE | D25: kos | E25: 18 | G25: =E25*F25 -> 0 | I25: =E25*H25 -> 0
B27: =B25+1 -> 2 | C27: Izdelava kabelske kanalizacije iz cevi PVC fi 110mm | D27: m | E27: 1180 | G27: =E27*F27 -> 0 | I27: =E27*H27 -> 0
B29: =B27+1 -> 3 | C29: Dobava in polaganje opozorilnega traku | D29: m | E29: 1180 | G29: =E29*F29 -> 0 | I29: =E29*H29 -> 0
C31: SKUPAJ | G31: =SUM(G25:G30) -> 0 | I31: =SUM(I25:I30) -> 0
B34: 4. | C34: OSTALA DELA
D35: EM | E35: KOL | F35: CENA / EM | G35: VREDNOST
B36: 1 | C36: Obeleženje trase obstoječih telefonskih in energetskih kablov, vodovoda ter kanalizacije in drugih komunalnih vodov | D36: kpl | E36: 1 | G36: =E36*F36 -> 0 | I36: =E36*H36 -> 0
B38: =B36+1 -> 2 | C38: Trasiranje trase kab. kanalizacije z označevanjem | D38: m | E38: 1180 | G38: =E38*F38 -> 0 | I38: =E38*H38 -> 0
B40: =B38+1 -> 3 | C40: Vris trase v podzemni kataster | D40: kpl | E40: 1 | G40: =E40*F40 -> 0 | I40: 0
B42: =B40+1 -> 4 | C42: Izdelava PID dokumentacije v štirih izvodih | D42: kpl | E42: 1 | G42: =E42*F42 -> 0 | I42: 0
B44: =B42+1 -> 5 | C44: Nadzor s strani pristojnega upravljavca omrežja | D44: ur | E44: 24 | G44: =E44*F44 -> 0 | H44: 45 | I44: 1080
B46: =B44+1 -> 6 | C46: Projektantski nadzor | D46: ur | E46: 36 | G46: =E46*F46 -> 0 | H46: 45 | I46: 1620
C48: SKUPAJ | G48: =SUM(G36:G47) -> 0 | I48: =SUM(I36:I47) -> 2700

Sheet VODOVOD-splošno
B2: 3/2.4.3 | D2: POPIS DEL S PREDIZMERAMI IN PROJEKT. OCENA STROŠKOV
C4: POPIS DEL IN PREDIZMERE ZA POTREBE INVESTITORJA
C5: Za projekt:
D6: Cesta Žlebič – Kočevje: Vodovod v naseljih Grič in Breg
B8: zap. št. | D8: Opis del | E8: količina | F8: enota | G8: cena/enoto | H8: skupaj
C10: SPLOŠNE ZAHTEVE
B11: 1. Za gradnjo je dovoljeno uporabljati samo proizvode, ki imajo pridobljene ustrezne listine o skladnosti in so skladni s slovenskimi tehničnimi predpisi in slovenskimi standardi. Vsi vgrajeni gradbeni materiali (cevi, revizijski jaški, pokrovi itd.) in ostali polizdelki, ki se vgrajujejo v objekt morajo vsebovati vtisnjene ali na drug način razvidne podatke iz katerih je mogoče razbrati in slediti poreklo materiala (serijska številka, tip, št. šarže itd.), najmanj pa izjave o lastnostih.
B12: 2. Izvajalec gradnje mora izvajalcu gospodarske javne službe pravočasno sporočiti datume izvajanja preizkusov vodotesnosti in snemanja kanalov oz. vodovodov, da bo upravljavec lahko zagotovil prisotnost nadzora. Strošek upravljavcev je potrebno všteti v ponudbo.
B13: 3. Pred začetkom izgradnje je izvajalec dolžan zapisniško ugotoviti in dokumentirati obstoječe stanje vseh sosednjih objektov (predvsem zaščitenih), drugih površin in dostopnih poti. Po končanih delih je dolžan povrniti uporabljeno lokacijo v prvotno stanje in odpraviti vse poškodbe nastale zaradi gradnje na drugih objektih, napravah, površinah ter na dostopnih poteh (cestišču). Dokumentiranje stanja pomeni fotografiranje stanja ali snemanje stanja s kamero pred pričetkom del, in sicer območje bodočega gradbišča in njegove okolice (objekti ter površine, ki jih bo uporabljal v času gradnje). V primeru pomanjkanja foto-dokazov o stanju pred gradnjo stroške uveljavljanja odškodnin nosi izvajalec. V tej točki zahtevano dokumentacijo mora izvajalec hraniti najmanj do konca garancijskega obdobja, ter dokumentacijo ob njenem nastanku dostaviti naročniku. Enote kulturne in naravne dediščine (po potrebi pa tudi drugi objekti) se zaščitijo z gradbenimi paneli. V ceni zajeti tudi ureditev okolice po končani gradnji.
B14: Ponudnik mora v cene po enoti všteti vse potrebne stroške v kolikor ni samostojna postavka popisa del:
B15: 4. vse stroške pridobitve potrebnih soglasij in dovoljenj v zvezi s prevozi (tudi morebiti nastale stroške v zvezi s potrebnimi začasnimi parkirišči za prebivalce), zaporo cest (občinskih in državnih), morebitne stroške, začasnih sprememb prometnega režima, prečkanj komunalnih vodov, stroške zaščite komunalnih naprav in stroške upravljavcev ali njihovih predstavnikov, stroške raznih pristojbin, stroške posebnih in/ali začasnih služnostnih pravicah poti, ki jih izvajalec potrebuje, vključno s tistimi za dostop na gradbišče, stroške pri organizaciji in opremi gradbišča, zagotavljanju vseh potrebnih zavarovanj in označb gradbišča s predpisano signalizacijo (gradbiščna tabla, ograja, vrvice, označbe, svetlobna telesa,…) - postavitev in odstranitev po končanih delih, kot tudi stroške pri pripravi gradbišča z odstranitvijo morebitnih ovir na trasi, zagotovitev delovnih platojev na in/ali izven gradbišča ter s tem povezanih stroškov.
B16: 5. izdelati projekt ureditve gradbišča ter stroške organizacije, ureditve deponij, priprave in opreme gradbišča.
B17: 6. Stroške priprave in izvedbe začasnih dostopov do in na gradbišču (izdelava vseh potrebnih začasnih prehodov, dovozov, dostopov) in stroški vsakodnevnega zagotavljanja dostopa oz. dovoza stanovalcem do objektov. V kolikor to ne bo mogoče, je potrebno stanovalcem in poslovnim subjektom pravočasno posredovati obvestilo - vsaj dva tedna pred začetkom del. Enako velja za stroške izvedbe začasnega obhoda (prehoda) mimo ograjenega gradbišča za pešce in sprehajalce (ves čas gradnje). Navesti je treba tudi predviden čas, ko dostop do objektov ne bo možen.
B18: 7. izdelava varnostnega načrta skladno z Uredbo o zagotavljanju varnosti in zdravja pri delu na začasnih in premičnih gradbiščih
B19: 8. priprava gradbišča z odstranitvijo eventualnih ovir na trasi, zagotovitev dostopnih poti in delovnih platojev, vključno z vzpostavitvijo v prvotno stanje...
B20: 9. predvideti prometno ureditev v času gradnje - pridobitev dovoljenj za cestno zaporo z ureditvijo prometnega režima v času gradnje, z obvestili, zavarovanje gradbene jame in gradbišča ter postavitev prometne signalizacije. Po končanih delih je prometno signalizacijo odstraniti in prometni režim vzpostaviti v prvotno stanje.
B21: 10. Zagotavljanje varnosti pri delu na gradbišču skladno z veljavnimi predpisi o zagotavljanju varnosti in zdravja pri delu na začasnih in premičnih gradbiščih.
B22: 11. Namestitev jeklenih plošč za prehod vozil čez izkope, vključno z najemom, namestitvijo in prestavitvijo plošč ter spremljanje premikov.
B23: 12. Zaščita zelenice s plohi, ali PVC folijo. Vkolikor se na zelenice oz. na zaščito odlaga zemeljski material, ga je potrebno po končani gradnji odstraniti in zelenico vzpostaviti v prvotno stanje.
B24: 13. izdelava lesenih provizorij dostopov in hodnikov za pešce, z upoštevanjem vseh varnostnih predpisov.
B25: 14. Stroški nastali v zvezi z zavarovanjem gradbišča po ZGO, ureditvijo gradbišča in stroške deponije odvečnega gradbenega materiala na pooblaščene deponije po izbiri izvajalca ali na lokacije za predelavo gradbenih materialov po izbiri izvajalca. Dokazila o primernem deponiranju (lokacija in količina materiala) je potrebno redno dostavljati naročniku oziroma nadzornemu organu naročnika, kot prilogo k situacijam. Izvajalec mora v ponudbo vključiti tudi vse stroške izdelave poročila o ravnanju z gradbenimi odpadki.
B26: 15. Zagotoviti projektantski in geološki oz. geomehanski nadzor
B27: 16. Stroški vseh meritev (kot npr. vgrajenih materialov vključno s poročilom, meritve posameznih slojev nasipov,...), izdelovanja poročil in pregledov za izdelavo dokazil o zanesljivosti objektov (vodotesnost, zbitost, ustreznost izvedenih elektroinštalacij, ustreznost vgrajene opreme,...) in podobno oz. stroški za vso dokumentacijo, ki je potrebna za uspešno opravljen tehnični pregled oz. primoredajo.
B28: 17. Voditi vso, po predpisih zahtevano dokumentacijo o kvaliteti materialov in tehnološkemu postopku gradnje dokumentacijo je potrebno zbrati, jo pripraviti in predložiti na tehničnem pregledu oz. primopredaji. Stroški sprotnega dokumentiranja in posredovanja nadzorniku vseh dokazil o zanesljivosti objektov, atestov, certifikatov,.... ter sprememb za izdelavo projekta izvedenih del, tako da bo PID projektna dokumentacija izdelana pred primopredajo objekta. Dokumentacija mora biti skladna z navodili upravljavcev.
B29: 18. Vse stroške stalnih in začasnih deponij všteti v ceno (takse, odškodnine, cena razplaniranja…)
B30: 19. Sprotno čiščenje vozil in čiščenje gradbišča po končanih delih (vključno z zaključnim čiščenjem) in odvoz odvečnega materiala, ter vzpostavitev terena v prvotno stanje.
B31: 20. Izvajalec mora v času gradnje na gradbišču zagotoviti opremljen kontejner za potrebe naročnika in nadzorne službe (ustrezno hlajen oziroma ogrevan). Pridobiti mora lokacije za začasne gradbiščne objekte in za priročno skladiščenje materiala, uporaba za ves čas gradnje infrastrukture, vzpostavitev prvotnega stanja po zaključku gradbenih del, morebitna prestavitev objektov in najemnina zemljišča za gradbiščne objekte in priročno skladišče materiala ter za začasne deponije po izbiri izvajalca.
B32: 21. Vsa dela za odvodnjavanje padavinske, izvorne in podtalne vode med gradnjo (vključno s potrebnim črpanjem), tako da se zagotovi stalno in kontrolirano odvajanje ter prepreči zamakanje in zadrževanje vode.
B33: 22. Stroški izdelave obratovalnih in vzdrževalnih navodil in projektov za varno delo ter ostala dokumentacija, ki jo bo pri vzdrževanju potreboval izvajalec gospodarske javne službe, prav tako pa tudi stroški šolanja osebja izvajalca gospodarske javne službe za upravljanje z zgrajenimi infrastrukturnimi objekti in napravami.
B34: 23. Postavitev linijskih pomičnih zaščitnih ograj pri gradnji skozi naselje ali vzporedno z glavno cesto z vso potrebno opremo za zavarovanje gradbene jame in postavitvijo signalizacije in svetlobnih teles za nočno osvetlitev ovire. Zavarovanje je fiksno in stabilno za ves čas trajanja gradnje odseka. V ceni je zajeta tudi večkratna prestavitev ograje skladno z napredovanjem del.
B35: 24. Pri zemeljskih delih se vsa izkopna dela in transporti izkopnih materialov obračunajo po prostornini zemljine v raščenem stanju. Vsa razsipna dela se obračunajo po prostornini zemljine v vgrajenem stanju. Izračun količin na podlagi profilov, posnetih pred in po izkopih. V ceno je vključen tudi višek količin zaradi faktorja razrahljivosti.
B36: 25. Vsa sprotna in zaključna čiščenja cevi so všteta v ceno.
B37: 26. Vse manipulativne stroške.
B38: 27. Vkolikor ni samostojne postavke, v ceno všteta vzpostavitev obstoječega stanja, sanacija poškodb na elementih obstoječih objektov nastalih zaradi izgradnje zaradi del po tem projektu (popravki raznih AB in kamnitih zidov, odstranitev in ponovna vzpostavitev ali sanacija ograj, popravki na fasadah objektov, ureditev linijskih požiralnikov, hortikulturna ureditev...), nalaganje in odvoz ruševin na stalno deponijo po izbiri izvajalca, z vključenimi vsemi stroški deponiranja.
B39: 28. Izvajalec si mora ogledati predvideno traso na celotni dolžini in v zagotoviti vsa potrebna dela pri organizaciji, pripravi in zavarovanju gradbišča.
B40: 29. Stroške električne energije, vode, TK priključkov, razsvetljave za nočno delo in morebitne ostale stroške za potrebe gradbišča v času gradnje.
B41: 30. Kot dodatna dela (po vpisu in potrditvi v gradbeno knjigo) se obračuna prilagoditev obstoječih komunalnih in inštalacijskih vodov na novopredvideno stanje (rušenje, prestavitev, nadvišanje, obdelave, zamenjave pokrovov, AB venci, zaščita v času gradnje...), nalaganje in odvoz ruševin na stalno deponijo po izbiri izvajalca, z vključenimi vsemi stroški deponiranja. Vkolikor bodo posamezni upravljavci sočasno polagali inštalacije v isti izkop (Elektro, Telekom, optika, javna razsvetljava,…) jim mora izvajalec to omogočiti, zamudo pri delu pa vključiti v ceno.
B42: 31. Za vse gradbene odpadke je potrebno voditi evidenčne liste, odpadke pa oddati v pooblaščeno zbiralnico po izbiri izvajalca; kot dokaz je h gradbeni knjigi potrebno priložiti račun iz zbiralnice. Stroške odvoza, deponiranje in stroške deponije je potrebno všteti v ceno.
B43: 32. Materiali: Za vse vgrajene materiale velja, da jih izvajalec lahko predlaga, vendar je pred vgradnjo potrebna potrditev investitorja, nadzora in projektanta. Že pred vgradnjo je obvezno priložiti dokazila o ustreznosti. Za vse cevne elemente (jaški, cevi) je obvezna uporaba cevi iz umetnih mas, ki ustrezajo standardom in imajo togost SN8. Izvajalec material lahko predlaga, vendar ga morajo pred vgrajevanjem potrditi investitor, nadzor in projektant. Dokazila je potrebno priložiti že pred vgradnjo.
B44: 33 Označba gradbišča s tablo v skladu z navodilom o informiranju in obveščanju javnosti o kohezijskih in strukturnih skladih v programskem obdobju.
B45: 34. Za vsako spremembo je potrebno pridobiti soglasje projektanta in jo zajeti v projekt izvršenih del.
B46: 35. Mejnike, ki jih izvajalec odstrani za potrebe gradnje, jih je po končani gradnji potrebno vzpostaviti po pravilih geodetske stroke.
B47: 36. Upoštevanje celotnega projekta: Izvajalec si mora v fazi razpisa - (pred oddajo ponudbe) ogledati celoten projekt in v ponudbi upoštevati tudi dela, ki jih projekt predpisuje, vendar v popisu niso posebej navedena oz. jih zaradi obsežnosti popisa ni smiselno navajati. Tovrstna dela bo seveda potrebno izvesti, vendar ne bodo priznana kot dodatna dela, ampak je njihovo vrednost potrebno upoštevati v osnovni ponudbi.

Sheet REKAPITULACIJA VODOVOD
C1: POPIS DEL VODOVOD
C3: REKAPITULACIJA
B5: 1. | C5: VODOVOD 1 | I5: =VODOVOD_1!H277 -> 5850
B6: 2. | C6: VODOVOD 2 | I6: =VODOVOD_2!H222 -> 2025
B7: 3. | C7: VODOVOD 3 | I7: =VODOVOD_3!H177 -> 1620
B8: 4. | C8: VODOVOD 4 | I8: =VODOVOD_4!H191 -> 2835
C9: SKUPAJ | I9: =SUM(I5:I8) -> 12330

Sheet VODOVOD_1
B3: zap. št. | D3: Opis del | E3: količina | F3: enota | G3: cena/enoto | H3: skupaj
B4: V1 | D4: PRIMARNI VODOVOD 1 (L = 947m)
B6: V1 | C6: -10/00 | D6: CEVNI MATERIAL (franko gradbišče)
B7: V1 | C7: -12/00 | D7: CEVI
D8: NL cevi vodo morajo biti izdelane v skladu s standardom SIST EN 545:2011,
D9: tlačni razred (glej spodaj). Cevi morajo biti na notranji strani zaščitene s cementno
D10: oblogo, ki je nanesena po postopku centrifugiranja. Na zunanji strani so cevi
D11: zaščitene (400gr/m2) z zlitino cinka in aluminija (razmerje 85%-15%) in epoxi
D12: premazom. Dolžina cevi 6m ali več. Vključno z dodatkom 2%.
D13: Proizvajalec za cevi je lahko Saint Gobain group, Duktus, Svobodny sokol,
D14: ostale cevi po dogovoru z nadzorom, investitorjem ali projektantom.
D16: Vkolikor so predpisana VI tesnila, pomeni, da so samo v 30% spojih ter na odcepih
D17: lokih,… ostali spoji so lahko standard spoj. Vi spoj mora biti tudi na prvih dveh in
D18: zadnjih dveh ceveh na posameznem kraku.
D20: PP Cevi so tlačnega razreda 16bar in izdelane v skladu s standardom
D21: SIST ISO 4427, SIST EN 12201 in SIST EN 15014
B23: V1 | C23: 1 | D23: Cevi NL duktil, C50, z natural zaščito, DN 150, L=6m, Tyton spoji, z Vi tesnili (glavni vodovod) | E23: 947 | F23: m | H23: =+G23*E23 -> 0
B25: V1 | C25: 2 | D25: Cevi NL duktil, C50, z natural zaščito, DN 150, L=6m, Tyton spoji, z Vi tesnili (odcepi) | E25: 12 | F25: m | H25: =+G25*E25 -> 0
B27: V1 | C27: 3 | D27: Cevi NL duktil, C50, z natural zaščito, DN 100, L=6m, Tyton spoji, z Vi tesnili (odcepi) | E27: 105 | F27: m | H27: =+G27*E27 -> 0
B29: V1 | C29: 4 | D29: Cevi PE (ali PE RC), DN 90/16; K 100M, stikovane elektrofuzijsko (z ELGEF spojkami) SDR11, vključno s spojkami in elektrovarilnim materialom. | E29: 6 | F29: m | H29: =+G29*E29 -> 0
B31: V1 | C31: 5 | D31: Cevi PE (ali PE RC), DN 50/16; K 100M, stikovane elektrofuzijsko (z ELGEF spojkami) SDR11, vključno s spojkami in elektrovarilnim materialom. | E31: 45 | F31: m | H31: =+G31*E31 -> 0
B33: V1 | C33: 6 | D33: Za čas gradnje: Polaganje in prevezava priključkov na PE cev DN 110, vključno s hišnimi priključki. | E33: 600 | F33: m | H33: =+G33*E33 -> 0
B35: V1 | C35: -14/00 | D35: NL FAZONSKI KOSI (vključno z VI tesnili in vijaki); vse PN 10-16, ISO 2531.
D36: za prirobnične spoje se uporabljajo gumi tesnila z jeklenim jedrom
D37: Vijačni material Inox A2. Cena franko gradbišče.
B39: V1 | C39: 1 | D39: Cestna kapa vodovodna DN 200mm; na podstavku iz betona | E39: 26 | F39: kos | H39: =+G39*E39 -> 0
B41: V1 | C41: 2 | D41: Cestna kapa DN 200mm; ovalna hidrantna | E41: 1 | F41: kos | H41: =+G41*E41 -> 0
B43: V1 | C43: 3 | D43: E kos DN 150mm; | E43: 16 | F43: kos | H43: =+G43*E43 -> 0
B45: V1 | C45: 4 | D45: E kos DN 100mm; | E45: 20 | F45: kos | H45: =+G45*E45 -> 0
B47: V1 | C47: 5 | D47: F kos DN 150mm; | E47: 5 | F47: kos | H47: =+G47*E47 -> 0
B49: V1 | C49: 6 | D49: F kos DN 100mm; | E49: 7 | F49: kos | H49: =+G49*E49 -> 0
B51: V1 | C51: 7 | D51: FF kos DN 150mm; L=1000mm | E51: 4 | F51: kos | H51: =+G51*E51 -> 0
B53: V1 | C53: 8 | D53: FF kos DN 100mm; L=1000mm | E53: 2 | F53: kos | H53: =+G53*E53 -> 0
B55: V1 | C55: 9 | D55: FF kos DN 80mm; L=400mm | E55: 2 | F55: kos | H55: =+G55*E55 -> 0
B57: V1 | C57: 10 | D57: FFK 11,25° DN 150mm | E57: 1 | F57: kos | H57: =+G57*E57 -> 0
B59: V1 | C59: 11 | D59: FFK 22,5/30° DN 150mm | E59: 2 | F59: kos | H59: =+G59*E59 -> 0
B61: V1 | C61: 12 | D61: FFK 22,5/30° DN 100mm | E61: 2 | F61: kos | H61: =+G61*E61 -> 0
B63: V1 | C63: 13 | D63: FFQ 90° DN 80mm | E63: 2 | F63: kos | H63: =+G63*E63 -> 0
B65: V1 | C65: 14 | D65: MMK 45° DN 100mm | E65: 1 | F65: kos | H65: =+G65*E65 -> 0
B67: V1 | C67: 15 | D67: MMK 22,5/30° DN 100mm | E67: 7 | F67: kos | H67: =+G67*E67 -> 0
B69: V1 | C69: 16 | D69: FFR DN 150/100mm | E69: 5 | F69: kos | H69: =+G69*E69 -> 0
B71: V1 | C71: 17 | D71: FFR DN 100/80mm | E71: 2 | F71: kos | H71: =+G71*E71 -> 0
B73: V1 | C73: 18 | D73: MMA kos DN 150/100mm | E73: 8 | F73: kos | H73: =+G73*E73 -> 0
B75: V1 | C75: 19 | D75: Montažno demontažni kos DN 150mm; | E75: 2 | F75: kos | H75: =+G75*E75 -> 0
B77: V1 | C77: 20 | D77: Montažno demontažni kos DN 100mm; | E77: 2 | F77: kos | H77: =+G77*E77 -> 0
B79: V1 | C79: 21 | D79: N kos DN 150mm; 90° | E79: 1 | F79: kos | H79: =+G79*E79 -> 0
B81: V1 | C81: 22 | D81: N kos DN 100mm; 90° | E81: 1 | F81: kos | H81: =+G81*E81 -> 0
B83: V1 | C83: 23 | D83: N kos DN 80mm; 90° | E83: 3 | F83: kos | H83: =+G83*E83 -> 0
B85: V1 | C85: 24 | D85: T kos DN 150/150mm | E85: 3 | F85: kos | H85: =+G85*E85 -> 0
B87: V1 | C87: 25 | D87: T kos DN 150/100mm | E87: 5 | F87: kos | H87: =+G87*E87 -> 0
B89: V1 | C89: 26 | D89: T kos DN 150/80mm | E89: 1 | F89: kos | H89: =+G89*E89 -> 0
B91: V1 | C91: 27 | D91: T kos DN 100/80mm | E91: 2 | F91: kos | H91: =+G91*E91 -> 0
B93: V1 | C93: 28 | D93: TT kos DN 150/100mm | E93: 2 | F93: kos | H93: =+G93*E93 -> 0
B95: V1 | C95: 29 | D95: Univerzalna spojka DN 100mm; tip 3057 (+GF+) | E95: 15 | F95: kos | H95: =+G95*E95 -> 0
B97: V1 | C97: 30 | D97: ELGEF varilna prirobnica DN 90/80 | E97: 6 | F97: kos | H97: =+G97*E97 -> 0
B99: V1 | C99: 31 | D99: ELGEF varilna prirobnica DN 50/40 | E99: 1 | F99: kos | H99: =+G99*E99 -> 0
D102: VODOVODNA ARMATURA
B104: V1 | C104: 1 | D104: EV zasun DN 150mm; F4, z ročnim kolesom | E104: 4 | F104: kos | H104: =+G104*E104 -> 0
B106: V1 | C106: 2 | D106: EV zasun DN 100mm; F4, z ročnim kolesom | E106: 2 | F106: kos | H106: =+G106*E106 -> 0
B108: V1 | C108: 3 | D108: EV zasun DN 80mm; F4, z ročnim kolesom | E108: 2 | F108: kos | H108: =+G108*E108 -> 0
B110: V1 | C110: 4 | D110: EV zasun DN 150mm; z vgradbeno garnituro (daljša - 2m), teleskopska | E110: 10 | F110: kos | H110: =+G110*E110 -> 0
B112: V1 | C112: 5 | D112: EV zasun DN 100mm; z vgradbeno garnituro (daljša - 2m), teleskopska | E112: 12 | F112: kos | H112: =+G112*E112 -> 0
B114: V1 | C114: 6 | D114: EV zasun DN 80mm; z vgradbeno garnituro (daljša - 2m), teleskopska | E114: 3 | F114: kos | H114: =+G114*E114 -> 0
B116: V1 | C116: 7 | D116: EV zasun DN 50mm; z vgradbeno garnituro (daljša - 2m), teleskopska | E116: 1 | F116: kos | H116: =+G116*E116 -> 0
B118: V1 | C118: 8 | D118: Hidrant nadtalni lomni DN 80/1250mm, Inox izvedba | E118: 2 | F118: kos | H118: =+G118*E118 -> 0
B120: V1 | C120: 9 | D120: Hidrant podtalni DN 80mm (H1000) | E120: 1 | F120: kos | H120: =+G120*E120 -> 0
B122: V1 | C122: 10 | D122: Zračnik prirobnični na eno kroglo DN 80mm za montažo v jašku (npr. Hawle ali ARI D-060 oz. boljši). | E122: 2 | F122: kos | H122: =+G122*E122 -> 0
D124: HIŠNI PRIKLJUČKI (odcepi)
B126: V1 | C126: 1 | D126: Cestna kapa DN 125mm; vodovodna | E126: 16 | F126: kos | H126: =+G126*E126 -> 0
B128: V1 | C128: 2 | D128: Cevi PE, DN 32/16; K 100M - cev za hišne priključke | E128: 245 | F128: m | H128: =+G128*E128 -> 0
B130: V1 | C130: 3 | D130: Cevi PE, DN 63/16; K 100M - zaščitna cev za hišne priključke | E130: 108 | F130: m | H130: =+G130*E130 -> 0
B132: V1 | C132: 4 | D132: Navrtno sedlo (oklep) na cevi NL ali PP ( za klasično montažo) z vgradbeno garnituro za hišne priključke - teleskopska 1,3 do 2,0m. Vključno zmanjševalnim kosom in prehodno ločno spojko. | E132: 16 | F132: kos | H132: =+G132*E132 -> 0
B134: V1 | C134: 5 | D134: Spiranje hišnih priključkov | E134: 16 | F134: kos | H134: =+G134*E134 -> 0
G136: SKUPAJ cevni material | H136: =SUM(H23:H135) -> 0
B139: V1 | C139: -20/00 | D139: MONTAŽNA DELA
B140: V1 | C140: 1 | D140: Prenos, spuščanje in polaganje NL cevi v jarek ter poravnava cevi v vertikalni in horizontalni smeri. | E140: 1064 | F140: m | H140: =+G140*E140 -> 0
B142: V1 | C142: 2 | D142: Prenos, spuščanje in polaganje PE cevi v jarek ter poravnava cevi v vertikalni in horizontalni smeri. | E142: 51 | F142: m | H142: =+G142*E142 -> 0
B144: V1 | C144: 3 | D144: Montaža cevi na predhodno pripravljeno ležišče oz. posteljico. | E144: 1115 | F144: m | H144: =+G144*E144 -> 0
B146: V1 | C146: 4 | D146: Prenos in spuščanje fazonskih kosov in vodovodnih armatur do teže 100kg/kos, poravnavanje v smeri. | E146: 196 | F146: kos | H146: =+G146*E146 -> 0
B148: V1 | C148: 5 | D148: Montaža NL duktil fazonskih kosov in vodovodnih armatur na predhodno pripravljeno ležišče oz. posteljico, ter dokončna obdelava in zaščita spojev. | E148: 157 | F148: kos | H148: =+G148*E148 -> 0
B150: V1 | C150: 6 | D150: Montaža zasunov z vgradbeno garnituro in cestno varovalno kapo, na predhodno pripravljeno ležišče oz. posteljico, vključno s podbetoniranjem. | E150: 26 | F150: kos | H150: =+G150*E150 -> 0
B152: V1 | C152: 7 | D152: Montaža zasunov z ročnim kolesom - v jašku. | E152: 8 | F152: kos | H152: =+G152*E152 -> 0
B154: V1 | C154: 8 | D154: Montaža nadtalnih hidrantov z vgradbeno garnituro na predhodno pripravljeno ležišče oz. posteljico, vključno s podbetoniranjem. Vgradbena globina 1,5m. | E154: 2 | F154: kos | H154: =+G154*E154 -> 0
B156: V1 | C156: 9 | D156: Montaža podtalnih hidrantov z vgradbeno garnituro na predhodno pripravljeno ležišče oz. posteljico, vključno s podbetoniranjem. Vgradbena globina 1,5m. | E156: 1 | F156: kos | H156: =+G156*E156 -> 0
B158: V1 | C158: 10 | D158: Montaža in preskus delovanja zračnikov na predhodno pripravljeno ležišče oz. posteljico, vključno s podbetoniranjem | E158: 2 | F158: kos | H158: =+G158*E158 -> 0
B160: V1 | C160: 11 | D160: Montaža hišnih priključkov - končnih. Montaža vključuje navrtavanje na NL ali PP cev, priključitev cevi PP 32mm, dolžine 3 do 5m, montaža vgradbene garniture in montažo cestne kape usklajene z niveleto ceste, vključno z betonskim podstavkom. Vključno z zaključnim spiranjem pred priklopom. | E160: 16 | F160: kos | H160: =+G160*E160 -> 0
B162: V1 | C162: 12 | D162: Montaža hišnih priključkov - za čas gradnje. Montaža vključuje navrtavanje na PP cev, priključitev na obstoječo cev montaža zasuna 32mm, vključno z zaključnim spiranjem pred priklopom. | E162: 16 | F162: kos | H162: =+G162*E162 -> 0
B164: V1 | C164: 13 | D164: Nabava, dobava in postavitev oznak (signalne tablice) za podzemne armature zasune, hidrante, zračnike…), modre barve, komplet z zaščitno ploščo z robom iz aluminija dimenzije 140/200 mm (PSIST 1005), objemko za montažo na steber 6/4, pocinkanim stebrom 50x2000 mm s plastično kapo, EKO sidrom iz pocinkanega materiala in betonskim temeljem C16/20 (MB 20); 0,30 m3/kos. | E164: 31 | F164: kos | H164: =+G164*E164 -> 0
B166: V1 | C166: 14 | D166: Tlačni preizkus vodovoda, po opisu v tehničnem poročilu, z digitalnim izpisom, skladno s standardom SIST EN 805 (priporočilo 10 bar). | E166: 1115 | F166: m | H166: =+G166*E166 -> 0
B168: V1 | C168: 15 | D168: Spiranje in dezinfekcija cevovoda po končani gradnji, z odvzemom vzorcev vode, analizami ter strokovnim mnenjem; skladno s standardom SIST EN 805:2000 | E168: 1115 | F168: m | H168: =+G168*E168 -> 0
B170: V1 | C170: 16 | D170: Nabava, dobava in polaganje signalnega traku nad vodovodno cevjo - PVC trak modre barve z napisom POZOR VODOVOD. | E170: 1140 | F170: m | H170: =+G170*E170 -> 0
B172: V1 | C172: 17 | D172: Preskus hidrantov po Pravilniku o preizkušanju hidrantnih omrežij, s strani organizacije (s pooblastilom RS uprave za zaščito in reševanje), vključno z izdelavo potrdila o brezhibnem delovanju hidrantnega omrežja. | E172: 3 | F172: kos | H172: =+G172*E172 -> 0
B174: V1 | C174: 18 | D174: Zapiranja in odpiranja vode, sodelovanje upravljavca pri prevezavah vodovodnega omrežja. | E174: 1 | F174: kpl | H174: =+G174*E174 -> 0
B176: V1 | C176: 20 | D176: Urna postavka NK monter | E176: 1 | F176: ur
D177: Urna postavka PK monter | E177: 1 | F177: ur
D178: Urna postavka KV monter | E178: 1 | F178: ur
D179: Urna postavka VKV monter | E179: 1 | F179: ur
G181: SKUPAJ montažna dela | H181: =SUM(H140:H180) -> 0
B184: V1 | C184: -40/00 | D184: GRADBENA DELA
D185: - opomba: obračunane so samo količine pod cestnim ustrojem; d=60cm
D186: - opomba: obračunana so samo dodatne dela glede na načrt ceste
B187: V1 | C187: -41/00 | D187: Preddela
B188: V1 | C188: 1 | D188: Zakoličba projektiranih osi vodovoda postavitev prečnih profilov ali zakoličbenih točk, določitev nivoja za merjenje globine vodovoda, prenos višin, z zavarovanjem izven operativnega pasu. | E188: 960 | F188: m | H188: =+G188*E188 -> 0
B190: V1 | C190: 2 | D190: Trasna in višinska zakoličba obstoječih komunalnih vodov in oznake križanj, vključno s stroški dodatnega nadzora upravljavcev komunalnih vodov. Obračun na osnovi vpisa v dnevnik (vodovod, plin, elektrika, Telekom...). | E190: 960 | F190: m | H190: =+G190*E190 -> 0
B192: V1 | C192: 3 | D192: Rušenje obstoječih vodovodnih cevi (salonit, Fe, NL, PVC, PE, Mannesman…), vseh premerov, vključno z odvozom na deponijo po izbiri izvajalca, s stroški deponiranja in zapiranje (X kos) cevi, ki se opustijo. | E192: 770 | F192: m | H192: =+G192*E192 -> 0
B194: V1 | C194: -50/00 | D194: Zemeljska dela
B195: V1 | C195: 1 | D195: Odriv humusa v dejanski debelini (cca 30cm) z direktnim nakladanjem na kamion in odvozom na gradbiščno deponijo po izbiri izvajalca, ali odrivom izven operativnega pasu.
D196: samo dodatek glede na cesto | E196: 105 | F196: m3 | H196: =+G196*E196 -> 0
B198: V1 | C198: 2 | D198: Deloma strojna, deloma ročna ureditev brežin (planiranje) po končanem zasipu.
D199: samo dodatek glede na cesto | E199: 520 | F199: m2 | H199: =+G199*E199 -> 0
B201: V1 | C201: 3 | D201: Humusiranje z materialom iz odriva ali odvoza, ureditev terena po končani gradnji, gnojenje z umetnim gnojilom, zatravitev in uvaljanje. Upoštevati pokrivanje sejane površine s tanko plastjo humusa in negovanje trave do popolne ozelenitve.
D202: samo dodatek glede na cesto | E202: 105 | F202: m3 | H202: =+G202*E202 -> 0
B204: V1 | C204: 4 | D204: Strojni izkop jarkov širine 2,0 do 5,0m, za polaganje vodovodne cevi, globine 2,0 do 4,0m, širina v dnu 0,60 do 0,80m (DN cevi +2x 30cm), v zemljini III. kat, naklon izkopa 60° do 80° (se prilagodi karakteristikam zemljine), z odlaganjem materiala direktno na kamion. Pri obračunu količin za vsak odsek od točke do točke usklajevati količine z masno črto iz grafične priloge - vzdolžnega profila.
D205: 68 | E205: 2376 | F205: m3 | H205: =+G205*E205 -> 0
B207: V1 | C207: 5 | D207: Strojni izkop jarkov širine 2,0 do 5,0m, za polaganje vodovodne cevi, globine 2,0 do 4,0m, širina v dnu 0,60 do 0,80m (DN cevi +2x 30cm), v zemljini III. kat, naklon izkopa 60° do 80° (se prilagodi karakteristikam zemljine), z odlaganjem, materiala v dosegu ročice bagra (ob rob gradbene jame + 1x premet, če je potrebno). Pri obračunu količin za vsak odsek od točke do točke usklajevati količine z masno črto iz grafične priloge - vzdolžnega profila.
D208: 20 | E208: 740 | F208: m3 | H208: =+G208*E208 -> 0
B210: V1 | C210: 37 | D210: Ročni izkop jarkov širine do 3,0m, za polaganje vodovodne cevi, globine do 3,0m, v zemljini III. kat, z odlaganjem, materiala ob rob gradbene jame.
D211: 2 | E211: 64 | F211: m3 | H211: =+G211*E211 -> 0
B213: V1 | C213: 38 | D213: Strojni izkop jarkov širine 2,0 do 5,0m, za polaganje vodovodne cevi, globine 2,0 do 4,0m, širina v dnu 0,60 do 0,80m (DN cevi +2x 30cm), v mehki kamnini V. kat (brez miniranja), naklon izkopa 60° do 80° (se prilagodi karakteristikam zemljine), z odlaganjem, materiala direktno na kamion. Pri obračunu količin za vsak odsek od točke do točke usklajevati količine z masno črto iz grafične priloge - vzdolžnega profila.
D214: 10 | E214: 355 | F214: m3 | H214: =+G214*E214 -> 0
B216: V1 | C216: 39 | D216: Splošni opis: Dodatna dela pri križanjih z obstoječimi in predvidenimi komunalnimi vodi, vključno z dodatnimi deli zaradi vzporednega poteka komunalij:
D217: - zakoličba vodov skladno z zahtevami upravljavca,
D218: - nadzor upravljavcev
D219: - dodatni ročni in strojni izkop v območju križanj
D220: - zavarovanje gradbene jame v času gradnje in pri zasipavanju
D221: - zasip z drobnozrnatim peščenim materialom ali obbetoniranjem
D222: Vkolikor tehnologija odstopa od projekta je potrebno pridobiti tudi pozitivno mnenje upravljavca. Vse poškodbe so breme izvajalca, ki krije vso nastalo škodo). Vse poškodbe so breme izvajalca, ki krije vso nastalo škodo). | E222: 25 | F222: kos | H222: =+G222*E222 -> 0
B224: V1 | C224: 40 | D224: Dodatek za odvoz viška materiala iz prejšnjih postavk na stalno deponijo po izbiri izvajalca, z razgrinjanjem, vse eventualne stroške deponije (vključno s takso, razgradnjo, odškodninami,...) je zajeti v ceno. | E224: 1966 | F224: m3 | H224: =+G224*E224 -> 0
B226: V1 | C226: 41 | D226: Dodatek za odvoz viška materiala iz prejšnjih postavk na začasno deponijo po izbiri izvajalca, z razgrinjanjem, vse eventualne stroške deponije je zajeti v ceno (taksa, odškodnina,…). Vključno s prevozom nazaj na gradbišče. | E226: 555 | F226: m3 | H226: =+G226*E226 -> 0
B228: V1 | C228: 42 | D228: Ročno planiranje dna gradbene jame po strojnem izkopu, s planuumom padca - z izkopom ali dosipom materiala do 0,1m3/m2, z natančnostjo +-3cm, do potrebne zbitosti (Ev2 ≥ 20 MPa) , v III do V. ktg. | E228: 710 | F228: m2 | H228: =+G228*E228 -> 0
B230: V1 | C230: 43 | D230: Nabava, dobava in izdelava posteljice in obsip kanalizacijske cevi; okroglozrnate granulacije, do višine 30cm nad temenom cevi, vključno z utrjevanjem. Pri obračunu količin za vsak odsek od točke do točke usklajevati količine z masno črto iz grafične priloge - vzdolžnega profila. Uporaba recikliranega materiala ni dovoljena.
D231: - v primeru grobozrnatega, peščenega ali prodnega zemljišča je granulacija obsipa 4-8mm
D232: - v primeru finozrnatega zemljišča je granulacija obsipa 1-4mm | E232: 665 | F232: m3 | H232: =+G232*E232 -> 0
B234: V1 | C234: 44 | D234: Nabava, dobava in strojni zasip, z gramoznim materialom, po končanih delih, z utrjevanjem v slojih po 30cm, zahtevana stopnja komprimacije M=80MPa (8-10% CBR). Upoštevan zasip do tampona - 54cm pod nivojem pločnika. Pri obračunu količin za vsak odsek od točke do točke usklajevati količine z masno črto iz grafične priloge - vzdolžnega profila. Uporaba recikliranega materiala ni dovoljena.
D235: 78 | E235: 536 | F235: m3 | H235: =+G235*E235 -> 0
B237: V1 | C237: 45 | D237: Zasip po končanih delih, z izkopanim materialom, z utrjevanjem v slojih po 30cm - zahtevana stopnja komprimacije M=40 Mpa (8-10% CBR). Upoštevan zasip do tampona - 54cm pod nivojem pločnika.
D238: 22 | E238: 735 | F238: m3 | H238: =+G238*E238 -> 0
B240: V1 | C240: 46 | D240: Kompletna izdelava betonskih blokov za sidranje fazonov in armatur; vključno z objemkami in podložno gumo (0.15-0,40m3/kos). | E240: 32 | F240: kos | H240: =+G240*E240 -> 0
D242: Hišni priključki
D243: (se vgrajujejo samo na podlagi soglasja upravljavca vodovoda in skladno z njim).
D244: Zakoličba projektiranih osi in zaščita točk, Izkop jarkov v zemljini III, ktg., Širine do 0,80 min globine do 1,50 m,( cca 0,20 m3/m1) ter deponiranje materiala, na začasni deponiji po izbiri izvajalca, za kasnejši zasip. Ročni izkop jarkov v zemljini III, ktg. širine do 1,00m, in globine do 1,50m, (cca 1,0 m3/m1) ter odmet materiala vsaj 1.00 m od roba izkopa. Kompletna izdelava prebojev oziroma podbojev pod obstoječimi betonskimi in kamnitimi opornimi zidovi,ograjami, parapeti (ocena količine 0,03kom/m1).
D245: Kompletna izdelava posteljice iz separacije, granulacije 4-8 mm peska v debelini 10 cm (cca 0,07 m3/m1). Nabava, dobava raznos in montaža pod tlakom cevi PE 3/4", 1", DN63mm po gradbišču in spuščanje v jarek z gradbeno mehanizacijo. Obračun pa m1. Izdelava zasipa cevi s separacijo granulacije 4-8 mm v debelini vsaj 10-20 cm nad temenom cevi (cca 0,22 m3/m1). Ureditev terena v prvotno stanje (asfalt ali ureditev zelenice). Ročno zasipanje jarkov z izkopanim materialom v slojih po 30 cm z utrjevanjem (cca 0,90m3/m). Nakladanje in dovoz odvečnega materiala III. ktg, s kamioni na razdaljo do 14 km ter grobo razprostiranje pripeljanega materiala (cca 0,30 m3/m1). | E245: 245 | F245: m | H245: =+G245*E245 -> 0
E246: 16 | F246: kos | H246: =+G246*E246 -> 0
B248: V1 | C248: -60/00 | D248: IZDELAVA AB JAŠKOV:
B249: V1 | C249: 1 | D249: - Postavitev gradbenih profilov za izgradnjo jaška.
D250: - ZEMELJSKA DELA: Strojni izkop za jašek v zemljini III. in IV kat., z nakladanjem materiala direktno na kamion, z dodatkom za odvoz materiala na stalno deponijo po izbiri izvajalca, z razplaniranjem na deponiji, stroške deponije všteti v ceno, ročno planiranje gradbene jame po strojnem izkopu, v zemljini III. in IV. kat., uvaljanje temeljnih tal do zbitosti 95% po Proctorju, Ev2= 100-120 MN/m2. Vkolikor tla niso dovolj nosilna je všteti tudi: Nabava, dobava in vgrajevanje gramozne blazine iz gramoznega materiala, debeline 40cm, uvaljanje temeljnih tal do zbitosti 95% po Proctorju, Ev2= 100-120 MN/m2. Zasip po končanih delih. Dobava in vgrajevanje - zasipanje z utrjevanjem po slojih - po končani izdelavi objekta. Zahteve: gramozni nevezan material 0/32 - okroglozrnat, Ev2=100 do 120MN/m2, zbitost 95% po Proctorju).
D251: - OPAŽERSKA DELA: Opaženje, razopaženje in čiščenje enostavnega enostranskega opaža za konstrukcijo jaška - temeljna plošča, dvostranskega opaža za okvirno konstrukcijo jaška ter enostavnega dvostranskega opaža za zgornjo ploščo jaška, s podpiranjem do višine 3m, dvostranskega opaža za vstopne odprtine in poglobitve v tleh. V ceno všteti tudi delovni in/ali lovilne odre, vključno z ograjo in potrebnimi sidranji ter podpiranji, oz varovanje po tehnologiji izvajalca.
D252: - ŽELEZOKRIVSKA IN BETONERSKA DELA: Nabava, dobava in vgradnja podložnega betona C 12/15 pod temelji, pod prehodnimi ploščami in temelji kril. Nabava, dobava in polaganje rebraste in mrežne armature, srednje komplicirana armatura (po detajlu iz priloge). Nabava, dobava in vgrajevanje betona v okvirno konstrukcijo jaška (stene, strop, talna plošča, vstopne odprtine, poglobitev v tleh) v vnaprej pripravljen opaž in vstavljeno armaturo: Zahteve za beton: C30/37, z dodatkom superplastifikatorja za vodotesen beton (PV-II), sistem bele kadi, dodatki XF2, XD2. Nabava, dobava in strojno vgrajevanje naklonskega betona in izdelava mulde, prereza med 0,10 in 0,30m2/m3. Zahteve za beton: C30/37, z dodatkom superplastifikatorja za vodotesen beton (PV-II), dodatki XD1, HF2. Izdelava vodotesnega delovnega stika po tehnologiji "Sigi" ali boljši - Intec perforiran trak in injeciranje z poliuretanom. Dodatna dela pri priključevanju vodovodov na jašek.
D253: POKROV: Nabava in vgrajevanje pokrova v vnaprej pripravljeno odprtino za vstop v jaška - pokrov povozni LTŽ (na javnih cestah klasa D, standard EN 144/2), 80*80cm, z zaklepom, niveletno usklajen.
D254: LESTEV: Nabava, dobava in vgrajevanje lestve z varnostnim vodilom in nastavkom za varen vstop.
D255: -IZOLATERSKA DELA: Zaokroženje vogalov po celotni dolžini - r=5cm, z maso HIDROSTOP KIT. Tesnjenje stikov na preboju s tesnilno maso ISOTAL - cca 5kg za 1 preboj
D256: - OSTALA DELA: Ureditev okolice jaška - humusiranje in zatravitev neutrjenih površin. Ureditev utrjenih površin in vzpostavitev asfalta v prvotno stanje vkolikor je jašek na utrjenih površinah.
D258: Kompletna izdelava armirano betonskega vodovodnega jaška po opisu.
D259: jašek: 10 in 122 in 130 notranjih dimenzij: B*L=2,3m* 2,3m*2,00m | E259: 3 | F259: kos | H259: =+G259*E259 -> 0
B261: V1 | C261: -71/00 | D261: Vgraditev jeklene zaščitne cevi
B262: V1 | C262: 1 | D262: Nabava, dobava in vgradnja zaščitne jeklene cevi 267/6,3mm (41kg/m), z distančniki za centriranje medialne cevi, vključno z dodatnim izkopom in uvlačenjem medialne cevi. Vse dodatne stroške in stroške v zvezi z zamudo pri deli všteti v tej postavki. Po koncu uvlačenja medialne cevi se zaščitne cev na začetku in koncu začepi ter obbetonira na začetku in koncu ter na vsakem spoju. Spajanje cevi do 20m obvezno z varjenjem v delavnici. Prečkanje je potrebno posebej obdelati v varnostnem načrtu, ki ga mora potrdit izbrani koordinator za varnost in zdravje pri delu. Zemeljska dela niso všteta v tej postavki. | E262: 12 | F262: m | H262: =+G262*E262 -> 0
B264: V1 | C264: 2 | D264: Nabava, dobava in vgradnja zaščitne jeklene cevi 324/7,1mm (56kg/m), z distančniki za centriranje medialne cevi, vključno z dodatnim izkopom in uvlačenjem medialne cevi. Vse dodatne stroške in stroške v zvezi z zamudo pri deli všteti v tej postavki. Po koncu uvlačenja medialne cevi se zaščitne cev na začetku in koncu začepi ter obbetonira na začetku in koncu ter na vsakem spoju. Spajanje cevi do 20m obvezno z varjenjem v delavnici. Prečkanje je potrebno posebej obdelati v varnostnem načrtu, ki ga mora potrdit izbrani koordinator za varnost in zdravje pri delu. Zemeljska dela niso všteta v tej postavki. | E264: 50 | F264: m | H264: =+G264*E264 -> 0
B266: V1 | C266: -80/00 | D266: OSTALA DELA
B267: V1 | C267: 1 | D267: Dodatna in nepredvidena dela pri priključitvi na obstoječ vodovod - izven jaška. | E267: 16 | F267: kos | H267: =+G267*E267 -> 0
B269: V1 | C269: 2 | D269: Nadzor upravljavca vodovoda | E269: 60 | F269: ur | G269: 45 | H269: =+G269*E269 -> 2700
B271: V1 | C271: 3 | D271: Projektantski nadzor in usklajevanje projekta z dejansko ugotovljenim stanjem na terenu. Obračun po dejanskih urah (+stroški prevoza). | E271: 70 | F271: ur | G271: 45 | H271: =+G271*E271 -> 3150
B273: V1 | C273: 4 | D273: Geodetski posnetek pri odprti trasi (pred zasutjem), za glavne cevovod in hišne priključke, izdelava PID v papirni in elektronski obliki skladno s pravilnikom in navodili Komunalnega podjetja Hydrovod vključno z vodilno mapo in dokazilom o zanesljivosti, dokumentacija za tehnični pregled, izvajalski del dokumentacije za pridobitev uporabnega dovoljenja (atesti, certifikati, izjave o lastnostih).. glej tudi tehnično poročilo. | E273: 1 | F273: znesek | H273: =+G273*E273 -> 0
G275: SKUPAJ gradbena dela | H275: =SUM(H184:H273) -> 5850
D277: SKUPAJ VODOVOD 1 | H277: =H275+H181+H136 -> 5850

Sheet VODOVOD_2
B3: zap. št. | D3: Opis del | E3: količina | F3: enota | G3: cena/enoto | H3: skupaj
B4: V2 | D4: SEKUNDARNI VODOVOD 2 (L = 303m)
B6: V2 | C6: -10/00 | D6: CEVNI MATERIAL (franko gradbišče)
B7: V2 | C7: -12/00 | D7: CEVI
D8: NL cevi vodo morajo biti izdelane v skladu s standardom SIST EN 545:2011,
D9: tlačni razred (glej spodaj). Cevi morajo biti na notranji strani zaščitene s cementno
D10: oblogo, ki je nanesena po postopku centrifugiranja. Na zunanji strani so cevi
D11: zaščitene (400gr/m2) z zlitino cinka in aluminija (razmerje 85%-15%) in epoxi
D12: premazom. Dolžina cevi 6m ali več. Vključno z dodatkom 2%.
D13: Proizvajalec za cevi je lahko Saint Gobain group, Duktus, Svobodny sokol,
D14: ostale cevi po dogovoru z nadzorom, investitorjem ali projektantom.
D16: Vkolikor so predpisana VI tesnila, pomeni, da so samo v 30% spojih ter na odcepih
D17: lokih,… ostali spoji so lahko standard spoj. Vi spoj mora biti tudi na prvih dveh in
D18: zadnjih dveh ceveh na posameznem kraku.
D20: PP Cevi so tlačnega razreda 16bar in izdelane v skladu s standardom
D21: SIST ISO 4427, SIST EN 12201 in SIST EN 15014
B23: V2 | C23: 1 | D23: Cevi NL duktil, C50, z natural zaščito, DN 150, L=6m, Tyton spoji, z Vi tesnili (glavni vodovod) | E23: 12 | F23: m | H23: =+G23*E23 -> 0
B25: V2 | C25: 2 | D25: Cevi NL duktil, C50, z natural zaščito, DN 100, L=6m, Tyton spoji, z Vi tesnili (glavni vodovod) | E25: 291 | F25: m | H25: =+G25*E25 -> 0
B27: V2 | C27: 3 | D27: Cevi NL duktil, C50, z natural zaščito, DN 100, L=6m, Tyton spoji, z Vi tesnili (odcepi) | E27: 2 | F27: m | H27: =+G27*E27 -> 0
B29: V2 | C29: 4 | D29: Cevi PE (ali PE RC), DN 90/16; K 100M, stikovane elektrofuzijsko (z ELGEF spojkami) SDR11, vključno s spojkami in elektrovarilnim materialom. | E29: 6 | F29: m | H29: =+G29*E29 -> 0
B31: V2 | C31: 5 | D31: Za čas gradnje: Polaganje in prevezava priključkov na PE cev DN 90, vključno s hišnimi priključki. | E31: 150 | F31: m | H31: =+G31*E31 -> 0
B33: V2 | C33: -14/00 | D33: NL FAZONSKI KOSI (vključno z VI tesnili in vijaki); vse PN 10-16, ISO 2531.
D34: za prirobnične spoje se uporabljajo gumi tesnila z jeklenim jedrom
D35: Vijačni material Inox A2. Cena franko gradbišče.
B37: V2 | C37: 1 | D37: Cestna kapa vodovodna DN 200mm; na podstavku iz betona | E37: 3 | F37: kos | H37: =+G37*E37 -> 0
B39: V2 | C39: 2 | D39: E kos DN 150mm; | E39: 1 | F39: kos | H39: =+G39*E39 -> 0
B41: V2 | C41: 3 | D41: F kos DN 100mm; | E41: 1 | F41: kos | H41: =+G41*E41 -> 0
B43: V2 | C43: 4 | D43: FF kos DN 150mm; L=1000mm | E43: 2 | F43: kos | H43: =+G43*E43 -> 0
B45: V2 | C45: 5 | D45: FF kos DN 100mm; L=1000mm | E45: 1 | F45: kos | H45: =+G45*E45 -> 0
B47: V2 | C47: 6 | D47: FF kos DN 80mm; L=400mm | E47: 3 | F47: kos | H47: =+G47*E47 -> 0
B49: V2 | C49: 7 | D49: FFK 22,5/30° DN 100mm | E49: 0 | F49: kos | H49: =+G49*E49 -> 0
B51: V2 | C51: 8 | D51: FFQ 90° DN 80mm | E51: 1 | F51: kos | H51: =+G51*E51 -> 0
B53: V2 | C53: 9 | D53: MMK 22,5/30° DN 100mm | E53: 2 | F53: kos | H53: =+G53*E53 -> 0
B55: V2 | C55: 10 | D55: FFR DN 100/80mm | E55: 1 | F55: kos | H55: =+G55*E55 -> 0
B57: V2 | C57: 11 | D57: MMA kos DN 100/80mm | E57: 2 | F57: kos | H57: =+G57*E57 -> 0
B59: V2 | C59: 12 | D59: Montažno demontažni kos DN 150mm; | E59: 1 | F59: kos | H59: =+G59*E59 -> 0
B61: V2 | C61: 13 | D61: Montažno demontažni kos DN 100mm; | E61: 1 | F61: kos | H61: =+G61*E61 -> 0
B63: V2 | C63: 14 | D63: N kos DN 80mm; 90° | E63: 3 | F63: kos | H63: =+G63*E63 -> 0
B65: V2 | C65: 15 | D65: T kos DN 100/80mm | E65: 1 | F65: kos | H65: =+G65*E65 -> 0
B67: V2 | C67: 16 | D67: TT kos DN 150/100mm | E67: 1 | F67: kos | H67: =+G67*E67 -> 0
B69: V2 | C69: 17 | D69: X kos DN 150mm; | E69: 1 | F69: kos | H69: =+G69*E69 -> 0
B71: V2 | C71: 18 | D71: ELGEF varilna prirobnica DN 90/80 | E71: 6 | F71: kos | H71: =+G71*E71 -> 0
D73: VODOVODNA ARMATURA
B75: V2 | C75: 1 | D75: EV zasun DN 150mm; F4, z ročnim kolesom | E75: 2 | F75: kos | H75: =+G75*E75 -> 0
B77: V2 | C77: 2 | D77: EV zasun DN 100mm; F4, z ročnim kolesom | E77: 1 | F77: kos | H77: =+G77*E77 -> 0
B79: V2 | C79: 3 | D79: EV zasun DN 80mm; F4, z ročnim kolesom | E79: 1 | F79: kos | H79: =+G79*E79 -> 0
B81: V2 | C81: 4 | D81: EV zasun DN 80mm; z vgradbeno garnituro (daljša - 2m), teleskopska | E81: 3 | F81: kos | H81: =+G81*E81 -> 0
B83: V2 | C83: 5 | D83: Hidrant nadtalni lomni DN 80/1250mm, Inox izvedba | E83: 3 | F83: kos | H83: =+G83*E83 -> 0
B85: V2 | C85: 6 | D85: Zračnik prirobnični na eno kroglo DN 80mm za montažo v jašku (npr. Hawle ali ARI D-060 oz. boljši). | E85: 1 | F85: kos | H85: =+G85*E85 -> 0
D88: HIŠNI PRIKLJUČKI (odcepi)
B90: V2 | C90: 1 | D90: Cestna kapa DN 125mm; vodovodna | E90: 9 | F90: kos | H90: =+G90*E90 -> 0
B92: V2 | C92: 2 | D92: Cevi PE, DN 32/16; K 100M - cev za hišne priključke | E92: 203 | F92: m | H92: =+G92*E92 -> 0
B94: V2 | C94: 3 | D94: Cevi PE, DN 63/16; K 100M - zaščitna cev za hišne priključke | E94: 45 | F94: m | H94: =+G94*E94 -> 0
B96: V2 | C96: 4 | D96: Navrtno sedlo (oklep) na cevi NL ali PP ( za klasično montažo) z vgradbeno garnituro za hišne priključke - teleskopska 1,3 do 2,0m. Vključno zmanjševalnim kosom in prehodno ločno spojko. | E96: 9 | F96: kos | H96: =+G96*E96 -> 0
B98: V2 | C98: 5 | D98: Spiranje hišnih priključkov | E98: 9 | F98: kos | H98: =+G98*E98 -> 0
G100: SKUPAJ cevni material | H100: =SUM(H23:H99) -> 0
B103: V2 | C103: -20/00 | D103: MONTAŽNA DELA
B104: V2 | C104: 1 | D104: Prenos, spuščanje in polaganje NL cevi v jarek ter poravnava cevi v vertikalni in horizontalni smeri. | E104: 305 | F104: m | H104: =+G104*E104 -> 0
B106: V2 | C106: 2 | D106: Prenos, spuščanje in polaganje PE cevi v jarek ter poravnava cevi v vertikalni in horizontalni smeri. | E106: 6 | F106: m | H106: =+G106*E106 -> 0
B108: V2 | C108: 3 | D108: Montaža cevi na predhodno pripravljeno ležišče oz. posteljico. | E108: 311 | F108: m | H108: =+G108*E108 -> 0
B110: V2 | C110: 4 | D110: Prenos in spuščanje fazonskih kosov in vodovodnih armatur do teže 100kg/kos, poravnavanje v smeri. | E110: 42 | F110: kos | H110: =+G110*E110 -> 0
B112: V2 | C112: 5 | D112: Montaža NL duktil fazonskih kosov in vodovodnih armatur na predhodno pripravljeno ležišče oz. posteljico, ter dokončna obdelava in zaščita spojev. | E112: 31 | F112: kos | H112: =+G112*E112 -> 0
B114: V2 | C114: 6 | D114: Montaža zasunov z vgradbeno garnituro in cestno varovalno kapo, na predhodno pripravljeno ležišče oz. posteljico, vključno s podbetoniranjem. | E114: 3 | F114: kos | H114: =+G114*E114 -> 0
B116: V2 | C116: 7 | D116: Montaža zasunov z ročnim kolesom - v jašku. | E116: 4 | F116: kos | H116: =+G116*E116 -> 0
B118: V2 | C118: 8 | D118: Montaža nadtalnih hidrantov z vgradbeno garnituro na predhodno pripravljeno ležišče oz. posteljico, vključno s podbetoniranjem. Vgradbena globina 1,5m. | E118: 3 | F118: kos | H118: =+G118*E118 -> 0
B120: V2 | C120: 9 | D120: Montaža in preskus delovanja zračnikov na predhodno pripravljeno ležišče oz. posteljico, vključno s podbetoniranjem | E120: 1 | F120: kos | H120: =+G120*E120 -> 0
B122: V2 | C122: 10 | D122: Montaža hišnih priključkov - končnih. Montaža vključuje navrtavanje na NL ali PP cev, priključitev cevi PP 32mm, dolžine 3 do 5m, montaža vgradbene garniture in montažo cestne kape usklajene z niveleto ceste, vključno z betonskim podstavkom. Vključno z zaključnim spiranjem pred priklopom. | E122: 9 | F122: kos | H122: =+G122*E122 -> 0
B124: V2 | C124: 11 | D124: Montaža hišnih priključkov - za čas gradnje. Montaža vključuje navrtavanje na PP cev, priključitev na obstoječo cev montaža zasuna 32mm, vključno z zaključnim spiranjem pred priklopom. | E124: 3 | F124: kos | H124: =+G124*E124 -> 0
B126: V2 | C126: 12 | D126: Nabava, dobava in postavitev oznak (signalne tablice) za podzemne armature zasune, hidrante, zračnike…), modre barve, komplet z zaščitno ploščo z robom iz aluminija dimenzije 140/200 mm (PSIST 1005), objemko za montažo na steber 6/4, pocinkanim stebrom 50x2000 mm s plastično kapo, EKO sidrom iz pocinkanega materiala in betonskim temeljem C16/20 (MB 20); 0,30 m3/kos. | E126: 7 | F126: kos | H126: =+G126*E126 -> 0
B128: V2 | C128: 13 | D128: Tlačni preizkus vodovoda, po opisu v tehničnem poročilu, z digitalnim izpisom, skladno s standardom SIST EN 805 (priporočilo 10 bar). | E128: 311 | F128: m | H128: =+G128*E128 -> 0
B130: V2 | C130: 14 | D130: Spiranje in dezinfekcija cevovoda po končani gradnji, z odvzemom vzorcev vode, analizami ter strokovnim mnenjem; skladno s standardom SIST EN 805:2000 | E130: 311 | F130: m | H130: =+G130*E130 -> 0
B132: V2 | C132: 15 | D132: Nabava, dobava in polaganje signalnega traku nad vodovodno cevjo - PVC trak modre barve z napisom POZOR VODOVOD. | E132: 320 | F132: m | H132: =+G132*E132 -> 0
B134: V2 | C134: 16 | D134: Preskus hidrantov po Pravilniku o preizkušanju hidrantnih omrežij, s strani organizacije (s pooblastilom RS uprave za zaščito in reševanje), vključno z izdelavo potrdila o brezhibnem delovanju hidrantnega omrežja. | E134: 3 | F134: kos | H134: =+G134*E134 -> 0
B136: V2 | C136: 17 | D136: Zapiranja in odpiranja vode, sodelovanje upravljavca pri prevezavah vodovodnega omrežja. | E136: 1 | F136: kpl | H136: =+G136*E136 -> 0
B138: V2 | C138: 19 | D138: Urna postavka NK monter | E138: 1 | F138: ur
D139: Urna postavka PK monter | E139: 1 | F139: ur
D140: Urna postavka KV monter | E140: 1 | F140: ur
D141: Urna postavka VKV monter | E141: 1 | F141: ur
G143: SKUPAJ montažna dela | H143: =SUM(H104:H142) -> 0
B146: V2 | C146: -40/00 | D146: GRADBENA DELA
D147: - opomba: obračunane so samo količine pod cestnim ustrojem; d=60cm
D148: - opomba: obračunana so samo dodatne dela glede na načrt ceste
B149: V2 | C149: -41/00 | D149: Preddela
B150: V2 | C150: 1 | D150: Zakoličba projektiranih osi vodovoda postavitev prečnih profilov ali zakoličbenih točk, določitev nivoja za merjenje globine vodovoda, prenos višin, z zavarovanjem izven operativnega pasu. | E150: 320 | F150: m | H150: =+G150*E150 -> 0
B152: V2 | C152: 2 | D152: Trasna in višinska zakoličba obstoječih komunalnih vodov in oznake križanj, vključno s stroški dodatnega nadzora upravljavcev komunalnih vodov. Obračun na osnovi vpisa v dnevnik (vodovod, plin, elektrika, Telekom...). | E152: 320 | F152: m | H152: =+G152*E152 -> 0
B154: V2 | C154: -50/00 | D154: Zemeljska dela
B155: V2 | C155: 1 | D155: Odriv humusa v dejanski debelini (cca 30cm) z direktnim nakladanjem na kamion in odvozom na gradbiščno deponijo po izbiri izvajalca, ali odrivom izven operativnega pasu.
D156: samo dodatek glede na cesto | E156: 35 | F156: m3 | H156: =+G156*E156 -> 0
B158: V2 | C158: 2 | D158: Deloma strojna, deloma ročna ureditev brežin (planiranje) po končanem zasipu.
D159: samo dodatek glede na cesto | E159: 180 | F159: m2 | H159: =+G159*E159 -> 0
B161: V2 | C161: 3 | D161: Humusiranje z materialom iz odriva ali odvoza, ureditev terena po končani gradnji, gnojenje z umetnim gnojilom, zatravitev in uvaljanje. Upoštevati pokrivanje sejane površine s tanko plastjo humusa in negovanje trave do popolne ozelenitve.
D162: samo dodatek glede na cesto | E162: 35 | F162: m3 | H162: =+G162*E162 -> 0
B164: V2 | C164: 4 | D164: Strojni izkop jarkov širine 2,0 do 5,0m, za polaganje vodovodne cevi, globine 2,0 do 4,0m, širina v dnu 0,60 do 0,80m (DN cevi +2x 30cm), v zemljini III. kat, naklon izkopa 60° do 80° (se prilagodi karakteristikam zemljine), z odlaganjem materiala direktno na kamion. Pri obračunu količin za vsak odsek od točke do točke usklajevati količine z masno črto iz grafične priloge - vzdolžnega profila.
D165: 68 | E165: 696 | F165: m3 | H165: =+G165*E165 -> 0
B167: V2 | C167: 5 | D167: Strojni izkop jarkov širine 2,0 do 5,0m, za polaganje vodovodne cevi, globine 2,0 do 4,0m, širina v dnu 0,60 do 0,80m (DN cevi +2x 30cm), v zemljini III. kat, naklon izkopa 60° do 80° (se prilagodi karakteristikam zemljine), z odlaganjem, materiala v dosegu ročice bagra (ob rob gradbene jame + 1x premet, če je potrebno). Pri obračunu količin za vsak odsek od točke do točke usklajevati količine z masno črto iz grafične priloge - vzdolžnega profila.
D168: 20 | E168: 213 | F168: m3 | H168: =+G168*E168 -> 0
B170: V2 | C170: 20 | D170: Ročni izkop jarkov širine do 3,0m, za polaganje vodovodne cevi, globine do 3,0m, v zemljini III. kat, z odlaganjem, materiala ob rob gradbene jame.
D171: 2 | E171: 19 | F171: m3 | H171: =+G171*E171 -> 0
B173: V2 | C173: 21 | D173: Strojni izkop jarkov širine 2,0 do 5,0m, za polaganje vodovodne cevi, globine 2,0 do 4,0m, širina v dnu 0,60 do 0,80m (DN cevi +2x 30cm), v mehki kamnini V. kat (brez miniranja), naklon izkopa 60° do 80° (se prilagodi karakteristikam zemljine), z odlaganjem, materiala direktno na kamion. Pri obračunu količin za vsak odsek od točke do točke usklajevati količine z masno črto iz grafične priloge - vzdolžnega profila.
D174: 10 | E174: 128 | F174: m3 | H174: =+G174*E174 -> 0
B176: V2 | C176: 22 | D176: Splošni opis: Dodatna dela pri križanjih z obstoječimi in predvidenimi komunalnimi vodi, vključno z dodatnimi deli zaradi vzporednega poteka komunalij:
D177: - zakoličba vodov skladno z zahtevami upravljavca,
D178: - nadzor upravljavcev
D179: - dodatni ročni in strojni izkop v območju križanj
D180: - zavarovanje gradbene jame v času gradnje in pri zasipavanju
D181: - zasip z drobnozrnatim peščenim materialom ali obbetoniranjem
D182: Vkolikor tehnologija odstopa od projekta je potrebno pridobiti tudi pozitivno mnenje upravljavca. Vse poškodbe so breme izvajalca, ki krije vso nastalo škodo). Vse poškodbe so breme izvajalca, ki krije vso nastalo škodo). | E182: 7 | F182: kos | H182: =+G182*E182 -> 0
B184: V2 | C184: 23 | D184: Dodatek za odvoz viška materiala iz prejšnjih postavk na stalno deponijo po izbiri izvajalca, z razgrinjanjem, vse eventualne stroške deponije (vključno s takso, razgradnjo, odškodninami,...) je zajeti v ceno. | E184: 613 | F184: m3 | H184: =+G184*E184 -> 0
B186: V2 | C186: 24 | D186: Dodatek za odvoz viška materiala iz prejšnjih postavk na začasno deponijo po izbiri izvajalca, z razgrinjanjem, vse eventualne stroške deponije je zajeti v ceno (taksa, odškodnina,…). Vključno s prevozom nazaj na gradbišče. | E186: 185 | F186: m3 | H186: =+G186*E186 -> 0
B188: V2 | C188: 25 | D188: Ročno planiranje dna gradbene jame po strojnem izkopu, s planuumom padca - z izkopom ali dosipom materiala do 0,1m3/m2, z natančnostjo +-3cm, do potrebne zbitosti (Ev2 ≥ 20 MPa) , v III do V. ktg. | E188: 215 | F188: m2 | H188: =+G188*E188 -> 0
B190: V2 | C190: 26 | D190: Nabava, dobava in izdelava posteljice in obsip kanalizacijske cevi; okroglozrnate granulacije, do višine 30cm nad temenom cevi, vključno z utrjevanjem. Pri obračunu količin za vsak odsek od točke do točke usklajevati količine z masno črto iz grafične priloge - vzdolžnega profila. Uporaba recikliranega materiala ni dovoljena.
D191: - v primeru grobozrnatega, peščenega ali prodnega zemljišča je granulacija obsipa 4-8mm
D192: - v primeru finozrnatega zemljišča je granulacija obsipa 1-4mm | E192: 180 | F192: m3 | H192: =+G192*E192 -> 0
B194: V2 | C194: 27 | D194: Nabava, dobava in strojni zasip, z gramoznim materialom, po končanih delih, z utrjevanjem v slojih po 30cm, zahtevana stopnja komprimacije M=80MPa (8-10% CBR). Upoštevan zasip do tampona - 50cm pod nivojem bankine Pri obračunu količin za vsak odsek od točke do točke usklajevati količine z masno črto iz grafične priloge - vzdolžnega profila. Uporaba recikliranega materiala ni dovoljena.
D195: 78 | E195: 196 | F195: m3 | H195: =+G195*E195 -> 0
B197: V2 | C197: 28 | D197: Zasip po končanih delih, z izkopanim materialom, z utrjevanjem v slojih po 30cm - zahtevana stopnja komprimacije M=40 Mpa (8-10% CBR). Upoštevan zasip do tampona - 50cm pod nivojem bankine.
D198: 22 | E198: 229 | F198: m3 | H198: =+G198*E198 -> 0
B200: V2 | C200: 29 | D200: Kompletna izdelava betonskih blokov za sidranje fazonov in armatur; vključno z objemkami in podložno gumo (0.15-0,40m3/kos). | E200: 7 | F200: kos | H200: =+G200*E200 -> 0
D202: Hišni priključki
D203: (se vgrajujejo samo na podlagi soglasja upravljavca vodovoda in skladno z njim).
D204: Zakoličba projektiranih osi in zaščita točk, Izkop jarkov v zemljini III, ktg., Širine do 0,80 min globine do 1,50 m,( cca 0,20 m3/m1) ter deponiranje materiala, na začasni deponiji po izbiri izvajalca, za kasnejši zasip. Ročni izkop jarkov v zemljini III, ktg. širine do 1,00m, in globine do 1,50m, (cca 1,0 m3/m1) ter odmet materiala vsaj 1.00 m od roba izkopa. Kompletna izdelava prebojev oziroma podbojev pod obstoječimi betonskimi in kamnitimi opornimi zidovi,ograjami, parapeti (ocena količine 0,03kom/m1).
D205: Kompletna izdelava posteljice iz separacije, granulacije 4-8 mm peska v debelini 10 cm (cca 0,07 m3/m1). Nabava, dobava raznos in montaža pod tlakom cevi PE 3/4", 1", DN63mm po gradbišču in spuščanje v jarek z gradbeno mehanizacijo. Obračun pa m1. Izdelava zasipa cevi s separacijo granulacije 4-8 mm v debelini vsaj 10-20 cm nad temenom cevi (cca 0,22 m3/m1). Ureditev terena v prvotno stanje (asfalt ali ureditev zelenice). Ročno zasipanje jarkov z izkopanim materialom v slojih po 30 cm z utrjevanjem (cca 0,90m3/m). Nakladanje in dovoz odvečnega materiala III. ktg, s kamioni na razdaljo do 14 km ter grobo razprostiranje pripeljanega materiala (cca 0,30 m3/m1). | E205: 203 | F205: m | H205: =+G205*E205 -> 0
E206: 9 | F206: kos | H206: =+G206*E206 -> 0
B208: V2 | C208: -71/00 | D208: Vgraditev jeklene zaščitne cevi
B209: V2 | C209: 1 | D209: Nabava, dobava in vgradnja zaščitne jeklene cevi 324/7,1mm (56kg/m), z distančniki za centriranje medialne cevi, vključno z dodatnim izkopom in uvlačenjem medialne cevi. Vse dodatne stroške in stroške v zvezi z zamudo pri deli všteti v tej postavki. Po koncu uvlačenja medialne cevi se zaščitne cev na začetku in koncu začepi ter obbetonira na začetku in koncu ter na vsakem spoju. Spajanje cevi do 20m obvezno z varjenjem v delavnici. Prečkanje je potrebno posebej obdelati v varnostnem načrtu, ki ga mora potrdit izbrani koordinator za varnost in zdravje pri delu. Zemeljska dela niso všteta v tej postavki. | E209: 10 | F209: m | H209: =+G209*E209 -> 0
B211: V2 | C211: -80/00 | D211: OSTALA DELA
B212: V2 | C212: 1 | D212: Dodatna in nepredvidena dela pri priključitvi na obstoječ vodovod - izven jaška. | E212: 2 | F212: kos | H212: =+G212*E212 -> 0
B214: V2 | C214: 2 | D214: Nadzor upravljavca vodovoda | E214: 20 | F214: ur | G214: 45 | H214: =+G214*E214 -> 900
B216: V2 | C216: 3 | D216: Projektantski nadzor in usklajevanje projekta z dejansko ugotovljenim stanjem na terenu. Obračun po dejanskih urah (+stroški prevoza). | E216: 25 | F216: ur | G216: 45 | H216: =+G216*E216 -> 1125
B218: V2 | C218: 4 | D218: Geodetski posnetek pri odprti trasi (pred zasutjem), za glavne cevovod in hišne priključke, izdelava PID v papirni in elektronski obliki skladno s pravilnikom in navodili Komunalnega podjetja Hydrovod vključno z vodilno mapo in dokazilom o zanesljivosti, dokumentacija za tehnični pregled, izvajalski del dokumentacije za pridobitev uporabnega dovoljenja (atesti, certifikati, izjave o lastnostih).. glej tudi tehnično poročilo. | E218: 1 | F218: znesek | H218: =+G218*E218 -> 0
G220: SKUPAJ gradbena dela | H220: =SUM(H146:H218) -> 2025
D222: SKUPAJ VODOVOD 2 | H222: =H220+H143+H100 -> 2025

Sheet VODOVOD_3
B3: zap. št. | D3: Opis del | E3: količina | F3: enota | G3: cena/enoto | H3: skupaj
B4: V3 | D4: SEKUNDARNI VODOVOD 3 (L = 250,80m)
B6: V3 | C6: -10/00 | D6: CEVNI MATERIAL (franko gradbišče)
B7: V3 | C7: -12/00 | D7: CEVI
D8: NL cevi vodo morajo biti izdelane v skladu s standardom SIST EN 545:2011,
D9: tlačni razred (glej spodaj). Cevi morajo biti na notranji strani zaščitene s cementno
D10: oblogo, ki je nanesena po postopku centrifugiranja. Na zunanji strani so cevi
D11: zaščitene (400gr/m2) z zlitino cinka in aluminija (razmerje 85%-15%) in epoxi
D12: premazom. Dolžina cevi 6m ali več. Vključno z dodatkom 2%.
D13: Proizvajalec za cevi je lahko Saint Gobain group, Duktus, Svobodny sokol,
D14: ostale cevi po dogovoru z nadzorom, investitorjem ali projektantom.
D16: Vkolikor so predpisana VI tesnila, pomeni, da so samo v 30% spojih ter na odcepih
D17: lokih,… ostali spoji so lahko standard spoj. Vi spoj mora biti tudi na prvih dveh in
D18: zadnjih dveh ceveh na posameznem kraku.
D20: PP Cevi so tlačnega razreda 16bar in izdelane v skladu s standardom
D21: SIST ISO 4427, SIST EN 12201 in SIST EN 15014
B23: V3 | C23: 1 | D23: Cevi NL duktil, C50, z natural zaščito, DN 150, L=6m, Tyton spoji, z Vi tesnili (glavni vodovod) | E23: 10 | F23: m | H23: =+G23*E23 -> 0
B25: V3 | C25: 2 | D25: Cevi NL duktil, C50, z natural zaščito, DN 100, L=6m, Tyton spoji, z Vi tesnili (glavni vodovod) | E25: 240.8 | F25: m | H25: =+G25*E25 -> 0
B27: V3 | C27: 3 | D27: Cevi PE (ali PE RC), DN 90/16; K 100M, stikovane elektrofuzijsko (z ELGEF spojkami) SDR11, vključno s spojkami in elektrovarilnim materialom. | E27: 4 | F27: m | H27: =+G27*E27 -> 0
B29: V3 | C29: 4 | D29: Za čas gradnje: Polaganje in prevezava priključkov na PE cev DN 90, vključno s hišnimi priključki. | E29: 150 | F29: m | H29: =+G29*E29 -> 0
B31: V3 | C31: -14/00 | D31: NL FAZONSKI KOSI (vključno z VI tesnili in vijaki); vse PN 10-16, ISO 2531.
D32: za prirobnične spoje se uporabljajo gumi tesnila z jeklenim jedrom
D33: Vijačni material Inox A2. Cena franko gradbišče.
B35: V3 | C35: 1 | D35: Cestna kapa vodovodna DN 200mm; na podstavku iz betona | E35: 2 | F35: kos | H35: =+G35*E35 -> 0
B37: V3 | C37: 2 | D37: E kos DN 100mm; | E37: 1 | F37: kos | H37: =+G37*E37 -> 0
B39: V3 | C39: 3 | D39: FF kos DN 80mm; L=400mm | E39: 2 | F39: kos | H39: =+G39*E39 -> 0
B41: V3 | C41: 4 | D41: MMA kos DN 100/80mm | E41: 2 | F41: kos | H41: =+G41*E41 -> 0
B43: V3 | C43: 5 | D43: N kos DN 80mm; 90° | E43: 2 | F43: kos | H43: =+G43*E43 -> 0
B45: V3 | C45: 5 | D45: Univerzalna spojka DN 100mm; tip 3057 (+GF+) | E45: 1 | F45: kos | H45: =+G45*E45 -> 0
B47: V3 | C47: 7 | D47: ELGEF varilna prirobnica DN 90/80 | E47: 4 | F47: kos | H47: =+G47*E47 -> 0
D49: VODOVODNA ARMATURA
B51: V3 | C51: 1 | D51: EV zasun DN 80mm; z vgradbeno garnituro (daljša - 2m), teleskopska | E51: 2 | F51: kos | H51: =+G51*E51 -> 0
B53: V3 | C53: 2 | D53: Hidrant nadtalni lomni DN 80/1250mm, Inox izvedba | E53: 2 | F53: kos | H53: =+G53*E53 -> 0
D56: HIŠNI PRIKLJUČKI (odcepi)
B58: V3 | C58: 1 | D58: Cestna kapa DN 125mm; vodovodna | E58: 7 | F58: kos | H58: =+G58*E58 -> 0
B60: V3 | C60: 2 | D60: Cevi PE, DN 32/16; K 100M - cev za hišne priključke | E60: 105 | F60: m | H60: =+G60*E60 -> 0
B62: V3 | C62: 3 | D62: Cevi PE, DN 63/16; K 100M - zaščitna cev za hišne priključke | E62: 35 | F62: m | H62: =+G62*E62 -> 0
B64: V3 | C64: 4 | D64: Navrtno sedlo (oklep) na cevi NL ali PP ( za klasično montažo) z vgradbeno garnituro za hišne priključke - teleskopska 1,3 do 2,0m. Vključno zmanjševalnim kosom in prehodno ločno spojko. | E64: 7 | F64: kos | H64: =+G64*E64 -> 0
B66: V3 | C66: 5 | D66: Spiranje hišnih priključkov | E66: 7 | F66: kos | H66: =+G66*E66 -> 0
G68: SKUPAJ cevni material | H68: =SUM(H23:H67) -> 0
B71: V3 | C71: -20/00 | D71: MONTAŽNA DELA
B72: V3 | C72: 1 | D72: Prenos, spuščanje in polaganje NL cevi v jarek ter poravnava cevi v vertikalni in horizontalni smeri. | E72: 250.8 | F72: m | H72: =+G72*E72 -> 0
B74: V3 | C74: 2 | D74: Prenos, spuščanje in polaganje PE cevi v jarek ter poravnava cevi v vertikalni in horizontalni smeri. | E74: 4 | F74: m | H74: =+G74*E74 -> 0
B76: V3 | C76: 3 | D76: Montaža cevi na predhodno pripravljeno ležišče oz. posteljico. | E76: 254.8 | F76: m | H76: =+G76*E76 -> 0
B78: V3 | C78: 4 | D78: Prenos in spuščanje fazonskih kosov in vodovodnih armatur do teže 100kg/kos, poravnavanje v smeri. | E78: 18 | F78: kos | H78: =+G78*E78 -> 0
B80: V3 | C80: 5 | D80: Montaža NL duktil fazonskih kosov in vodovodnih armatur na predhodno pripravljeno ležišče oz. posteljico, ter dokončna obdelava in zaščita spojev. | E80: 14 | F80: kos | H80: =+G80*E80 -> 0
B82: V3 | C82: 6 | D82: Montaža zasunov z vgradbeno garnituro in cestno varovalno kapo, na predhodno pripravljeno ležišče oz. posteljico, vključno s podbetoniranjem. | E82: 2 | F82: kos | H82: =+G82*E82 -> 0
B84: V3 | C84: 7 | D84: Montaža nadtalnih hidrantov z vgradbeno garnituro na predhodno pripravljeno ležišče oz. posteljico, vključno s podbetoniranjem. Vgradbena globina 1,5m. | E84: 2 | F84: kos | H84: =+G84*E84 -> 0
B86: V3 | C86: 8 | D86: Montaža hišnih priključkov - končnih. Montaža vključuje navrtavanje na NL ali PP cev, priključitev cevi PP 32mm, dolžine 3 do 5m, montaža vgradbene garniture in montažo cestne kape usklajene z niveleto ceste, vključno z betonskim podstavkom. Vključno z zaključnim spiranjem pred priklopom. | E86: 7 | F86: kos | H86: =+G86*E86 -> 0
B88: V3 | C88: 9 | D88: Montaža hišnih priključkov - za čas gradnje. Montaža vključuje navrtavanje na PP cev, priključitev na obstoječo cev montaža zasuna 32mm, vključno z zaključnim spiranjem pred priklopom. | E88: 7 | F88: kos | H88: =+G88*E88 -> 0
B90: V3 | C90: 10 | D90: Nabava, dobava in postavitev oznak (signalne tablice) za podzemne armature zasune, hidrante, zračnike…), modre barve, komplet z zaščitno ploščo z robom iz aluminija dimenzije 140/200 mm (PSIST 1005), objemko za montažo na steber 6/4, pocinkanim stebrom 50x2000 mm s plastično kapo, EKO sidrom iz pocinkanega materiala in betonskim temeljem C16/20 (MB 20); 0,30 m3/kos. | E90: 4 | F90: kos | H90: =+G90*E90 -> 0
B92: V3 | C92: 11 | D92: Tlačni preizkus vodovoda, po opisu v tehničnem poročilu, z digitalnim izpisom, skladno s standardom SIST EN 805 (priporočilo 10 bar). | E92: 254.8 | F92: m | H92: =+G92*E92 -> 0
B94: V3 | C94: 12 | D94: Spiranje in dezinfekcija cevovoda po končani gradnji, z odvzemom vzorcev vode, analizami ter strokovnim mnenjem; skladno s standardom SIST EN 805:2000 | E94: 254.8 | F94: m | H94: =+G94*E94 -> 0
B96: V3 | C96: 13 | D96: Nabava, dobava in polaganje signalnega traku nad vodovodno cevjo - PVC trak modre barve z napisom POZOR VODOVOD. | E96: 260 | F96: m | H96: =+G96*E96 -> 0
B98: V3 | C98: 14 | D98: Preskus hidrantov po Pravilniku o preizkušanju hidrantnih omrežij, s strani organizacije (s pooblastilom RS uprave za zaščito in reševanje), vključno z izdelavo potrdila o brezhibnem delovanju hidrantnega omrežja. | E98: 2 | F98: kos | H98: =+G98*E98 -> 0
B100: V3 | C100: 15 | D100: Zapiranja in odpiranja vode, sodelovanje upravljavca pri prevezavah vodovodnega omrežja. | E100: 1 | F100: kpl | H100: =+G100*E100 -> 0
B102: V3 | C102: 17 | D102: Urna postavka NK monter | E102: 1 | F102: ur
D103: Urna postavka PK monter | E103: 1 | F103: ur
D104: Urna postavka KV monter | E104: 1 | F104: ur
D105: Urna postavka VKV monter | E105: 1 | F105: ur
G107: SKUPAJ montažna dela | H107: =SUM(H72:H106) -> 0
B110: V3 | C110: -40/00 | D110: GRADBENA DELA
D111: - opomba: obračunane so samo količine pod cestnim ustrojem; d=60cm
D112: - opomba: obračunana so samo dodatne dela glede na načrt ceste
B113: V3 | C113: -41/00 | D113: Preddela
B114: V3 | C114: 1 | D114: Zakoličba projektiranih osi vodovoda postavitev prečnih profilov ali zakoličbenih točk, določitev nivoja za merjenje globine vodovoda, prenos višin, z zavarovanjem izven operativnega pasu. | E114: 260 | F114: m | H114: =+G114*E114 -> 0
B116: V3 | C116: 2 | D116: Trasna in višinska zakoličba obstoječih komunalnih vodov in oznake križanj, vključno s stroški dodatnega nadzora upravljavcev komunalnih vodov. Obračun na osnovi vpisa v dnevnik (vodovod, plin, elektrika, Telekom...). | E116: 260 | F116: m | H116: =+G116*E116 -> 0
B118: V3 | C118: 3 | D118: Rušenje obstoječih vodovodnih cevi (salonit, Fe, NL, PVC, PE, Mannesman…), vseh premerov, vključno z odvozom na deponijo po izbiri izvajalca, s stroški deponiranja in zapiranje (X kos) cevi, ki se opustijo. | E118: 150 | F118: m | H118: =+G118*E118 -> 0
B120: V3 | C120: -50/00 | D120: Zemeljska dela
B121: V3 | C121: 1 | D121: Odriv humusa v dejanski debelini (cca 30cm) z direktnim nakladanjem na kamion in odvozom na gradbiščno deponijo po izbiri izvajalca, ali odrivom izven operativnega pasu.
D122: samo dodatek glede na cesto | E122: 30 | F122: m3 | H122: =+G122*E122 -> 0
B124: V3 | C124: 2 | D124: Deloma strojna, deloma ročna ureditev brežin (planiranje) po končanem zasipu.
D125: samo dodatek glede na cesto | E125: 150 | F125: m2 | H125: =+G125*E125 -> 0
B127: V3 | C127: 3 | D127: Humusiranje z materialom iz odriva ali odvoza, ureditev terena po končani gradnji, gnojenje z umetnim gnojilom, zatravitev in uvaljanje. Upoštevati pokrivanje sejane površine s tanko plastjo humusa in negovanje trave do popolne ozelenitve.
D128: samo dodatek glede na cesto | E128: 30 | F128: m3 | H128: =+G128*E128 -> 0
B130: V3 | C130: 4 | D130: Strojni izkop jarkov širine 2,0 do 5,0m, za polaganje vodovodne cevi, globine 2,0 do 4,0m, širina v dnu 0,60 do 0,80m (DN cevi +2x 30cm), v zemljini III. kat, naklon izkopa 60° do 80° (se prilagodi karakteristikam zemljine), z odlaganjem materiala direktno na kamion. Pri obračunu količin za vsak odsek od točke do točke usklajevati količine z masno črto iz grafične priloge - vzdolžnega profila.
D131: 68 | E131: 594 | F131: m3 | H131: =+G131*E131 -> 0
B133: V3 | C133: 5 | D133: Strojni izkop jarkov širine 2,0 do 5,0m, za polaganje vodovodne cevi, globine 2,0 do 4,0m, širina v dnu 0,60 do 0,80m (DN cevi +2x 30cm), v zemljini III. kat, naklon izkopa 60° do 80° (se prilagodi karakteristikam zemljine), z odlaganjem, materiala v dosegu ročice bagra (ob rob gradbene jame + 1x premet, če je potrebno). Pri obračunu količin za vsak odsek od točke do točke usklajevati količine z masno črto iz grafične priloge - vzdolžnega profila.
D134: 20 | E134: 185 | F134: m3 | H134: =+G134*E134 -> 0
B136: V3 | C136: 20 | D136: Ročni izkop jarkov širine do 3,0m, za polaganje vodovodne cevi, globine do 3,0m, v zemljini III. kat, z odlaganjem, materiala ob rob gradbene jame.
D137: 2 | E137: 18 | F137: m3 | H137: =+G137*E137 -> 0
B139: V3 | C139: 21 | D139: Strojni izkop jarkov širine 2,0 do 5,0m, za polaganje vodovodne cevi, globine 2,0 do 4,0m, širina v dnu 0,60 do 0,80m (DN cevi +2x 30cm), v mehki kamnini V. kat (brez miniranja), naklon izkopa 60° do 80° (se prilagodi karakteristikam zemljine), z odlaganjem, materiala direktno na kamion. Pri obračunu količin za vsak odsek od točke do točke usklajevati količine z masno črto iz grafične priloge - vzdolžnega profila.
D140: 10 | E140: 96 | F140: m3 | H140: =+G140*E140 -> 0
B142: V3 | C142: 22 | D142: Dodatek za odvoz viška materiala iz prejšnjih postavk na stalno deponijo po izbiri izvajalca, z razgrinjanjem, vse eventualne stroške deponije (vključno s takso, razgradnjo, odškodninami,...) je zajeti v ceno. | E142: 513 | F142: m3 | H142: =+G142*E142 -> 0
B144: V3 | C144: 23 | D144: Dodatek za odvoz viška materiala iz prejšnjih postavk na začasno deponijo po izbiri izvajalca, z razgrinjanjem, vse eventualne stroške deponije je zajeti v ceno (taksa, odškodnina,…). Vključno s prevozom nazaj na gradbišče. | E144: 157 | F144: m3 | H144: =+G144*E144 -> 0
B146: V3 | C146: 24 | D146: Ročno planiranje dna gradbene jame po strojnem izkopu, s planuumom padca - z izkopom ali dosipom materiala do 0,1m3/m2, z natančnostjo +-3cm, do potrebne zbitosti (Ev2 ≥ 20 MPa) , v III do V. ktg. | E146: 175 | F146: m2 | H146: =+G146*E146 -> 0
B148: V3 | C148: 25 | D148: Nabava, dobava in izdelava posteljice in obsip kanalizacijske cevi; okroglozrnate granulacije, do višine 30cm nad temenom cevi, vključno z utrjevanjem. Pri obračunu količin za vsak odsek od točke do točke usklajevati količine z masno črto iz grafične priloge - vzdolžnega profila. Uporaba recikliranega materiala ni dovoljena.
D149: - v primeru grobozrnatega, peščenega ali prodnega zemljišča je granulacija obsipa 4-8mm
D150: - v primeru finozrnatega zemljišča je granulacija obsipa 1-4mm | E150: 165 | F150: m3 | H150: =+G150*E150 -> 0
B152: V3 | C152: 26 | D152: Nabava, dobava in strojni zasip, z gramoznim materialom, po končanih delih, z utrjevanjem v slojih po 30cm, zahtevana stopnja komprimacije M=80MPa (8-10% CBR). Upoštevan zasip do tampona - 50cm pod nivojem bankine Pri obračunu količin za vsak odsek od točke do točke usklajevati količine z masno črto iz grafične priloge - vzdolžnega profila. Uporaba recikliranega materiala ni dovoljena.
D153: 78 | E153: 194 | F153: m3 | H153: =+G153*E153 -> 0
B155: V3 | C155: 27 | D155: Zasip po končanih delih, z izkopanim materialom, z utrjevanjem v slojih po 30cm - zahtevana stopnja komprimacije M=40 Mpa (8-10% CBR). Upoštevan zasip do tampona - 50cm pod nivojem bankine.
D156: 22 | E156: 176 | F156: m3 | H156: =+G156*E156 -> 0
B158: V3 | C158: 28 | D158: Kompletna izdelava betonskih blokov za sidranje fazonov in armatur; vključno z objemkami in podložno gumo (0.15-0,40m3/kos). | E158: 4 | F158: kos | H158: =+G158*E158 -> 0
D160: Hišni priključki
D161: (se vgrajujejo samo na podlagi soglasja upravljavca vodovoda in skladno z njim).
D162: Zakoličba projektiranih osi in zaščita točk, Izkop jarkov v zemljini III, ktg., Širine do 0,80 min globine do 1,50 m,( cca 0,20 m3/m1) ter deponiranje materiala, na začasni deponiji po izbiri izvajalca, za kasnejši zasip. Ročni izkop jarkov v zemljini III, ktg. širine do 1,00m, in globine do 1,50m, (cca 1,0 m3/m1) ter odmet materiala vsaj 1.00 m od roba izkopa. Kompletna izdelava prebojev oziroma podbojev pod obstoječimi betonskimi in kamnitimi opornimi zidovi,ograjami, parapeti (ocena količine 0,03kom/m1).
D163: Kompletna izdelava posteljice iz separacije, granulacije 4-8 mm peska v debelini 10 cm (cca 0,07 m3/m1). Nabava, dobava raznos in montaža pod tlakom cevi PE 3/4", 1", DN63mm po gradbišču in spuščanje v jarek z gradbeno mehanizacijo. Obračun pa m1. Izdelava zasipa cevi s separacijo granulacije 4-8 mm v debelini vsaj 10-20 cm nad temenom cevi (cca 0,22 m3/m1). Ureditev terena v prvotno stanje (asfalt ali ureditev zelenice). Ročno zasipanje jarkov z izkopanim materialom v slojih po 30 cm z utrjevanjem (cca 0,90m3/m). Nakladanje in dovoz odvečnega materiala III. ktg, s kamioni na razdaljo do 14 km ter grobo razprostiranje pripeljanega materiala (cca 0,30 m3/m1). | E163: 105 | F163: m | H163: =+G163*E163 -> 0
E164: 7 | F164: kos | H164: =+G164*E164 -> 0
B166: V3 | C166: -80/00 | D166: OSTALA DELA
B167: V3 | C167: 1 | D167: Dodatna in nepredvidena dela pri priključitvi na obstoječ vodovod - izven jaška. | E167: 2 | F167: kos | H167: =+G167*E167 -> 0
B169: V3 | C169: 2 | D169: Nadzor upravljavca vodovoda | E169: 16 | F169: ur | G169: 45 | H169: =+G169*E169 -> 720
B171: V3 | C171: 3 | D171: Projektantski nadzor in usklajevanje projekta z dejansko ugotovljenim stanjem na terenu. Obračun po dejanskih urah (+stroški prevoza). | E171: 20 | F171: ur | G171: 45 | H171: =+G171*E171 -> 900
B173: V3 | C173: 4 | D173: Geodetski posnetek pri odprti trasi (pred zasutjem), za glavne cevovod in hišne priključke, izdelava PID v papirni in elektronski obliki skladno s pravilnikom in navodili Komunalnega podjetja Hydrovod vključno z vodilno mapo in dokazilom o zanesljivosti, dokumentacija za tehnični pregled, izvajalski del dokumentacije za pridobitev uporabnega dovoljenja (atesti, certifikati, izjave o lastnostih).. glej tudi tehnično poročilo. | E173: 1 | F173: znesek | H173: =+G173*E173 -> 0
G175: SKUPAJ gradbena dela | H175: =SUM(H110:H173) -> 1620
D177: SKUPAJ VODOVOD 3 | H177: =H175+H107+H68 -> 1620

Sheet VODOVOD_4
B3: zap. št. | D3: Opis del | E3: količina | F3: enota | G3: cena/enoto | H3: skupaj
B4: V4 | D4: SEKUNDARNI VODOVOD 4-1, 4-2, 4-3 in 4-4 (L = 142+57+42+41=282m)
B6: V4 | C6: -10/00 | D6: CEVNI MATERIAL (franko gradbišče)
B7: V4 | C7: -12/00 | D7: CEVI
D8: NL cevi vodo morajo biti izdelane v skladu s standardom SIST EN 545:2011,
D9: tlačni razred (glej spodaj). Cevi morajo biti na notranji strani zaščitene s cementno
D10: oblogo, ki je nanesena po postopku centrifugiranja. Na zunanji strani so cevi
D11: zaščitene (400gr/m2) z zlitino cinka in aluminija (razmerje 85%-15%) in epoxi
D12: premazom. Dolžina cevi 6m ali več. Vključno z dodatkom 2%.
D13: Proizvajalec za cevi je lahko Saint Gobain group, Duktus, Svobodny sokol,
D14: ostale cevi po dogovoru z nadzorom, investitorjem ali projektantom.
D16: Vkolikor so predpisana VI tesnila, pomeni, da so samo v 30% spojih ter na odcepih
D17: lokih,… ostali spoji so lahko standard spoj. Vi spoj mora biti tudi na prvih dveh in
D18: zadnjih dveh ceveh na posameznem kraku.
D20: PP Cevi so tlačnega razreda 16bar in izdelane v skladu s standardom
D21: SIST ISO 4427, SIST EN 12201 in SIST EN 15014
B23: V4 | C23: 1 | D23: Cevi NL duktil, C50, z natural zaščito, DN 100, L=6m, Tyton spoji, z Vi tesnili | E23: 282 | F23: m | H23: =+G23*E23 -> 0
B25: V4 | C25: 2 | D25: Cevi PE (ali PE RC), DN 90/16; K 100M, stikovane elektrofuzijsko (z ELGEF spojkami) SDR11, vključno s spojkami in elektrovarilnim materialom. | E25: 10 | F25: m | H25: =+G25*E25 -> 0
B27: V4 | C27: 3 | D27: Za čas gradnje: Polaganje in prevezava priključkov na PE cev DN 90, vključno s hišnimi priključki. | E27: 210 | F27: m | H27: =+G27*E27 -> 0
B29: V4 | C29: -14/00 | D29: NL FAZONSKI KOSI (vključno z VI tesnili in vijaki); vse PN 10-16, ISO 2531.
D30: za prirobnične spoje se uporabljajo gumi tesnila z jeklenim jedrom
D31: Vijačni material Inox A2. Cena franko gradbišče.
B33: V4 | C33: 1 | D33: Cestna kapa vodovodna DN 200mm; na podstavku iz betona | E33: 8 | F33: kos | H33: =+G33*E33 -> 0
B35: V4 | C35: 2 | D35: E kos DN 100mm; | E35: 8 | F35: kos | H35: =+G35*E35 -> 0
B37: V4 | C37: 3 | D37: FF kos DN 80mm; L=400mm | E37: 1 | F37: kos | H37: =+G37*E37 -> 0
B39: V4 | C39: 4 | D39: FFK 11,25° DN 100mm | E39: 2 | F39: kos | H39: =+G39*E39 -> 0
B41: V4 | C41: 5 | D41: FFK 22,5/30° DN 100mm | E41: 3 | F41: kos | H41: =+G41*E41 -> 0
B43: V4 | C43: 6 | D43: MMK 45° DN 100mm | E43: 1 | F43: kos | H43: =+G43*E43 -> 0
B45: V4 | C45: 7 | D45: MMA kos DN 100/100mm | E45: 2 | F45: kos | H45: =+G45*E45 -> 0
B47: V4 | C47: 8 | D47: MMA kos DN 100/80mm | E47: 1 | F47: kos | H47: =+G47*E47 -> 0
B49: V4 | C49: 9 | D49: N kos DN 80mm; 90° | E49: 4 | F49: kos | H49: =+G49*E49 -> 0
B51: V4 | C51: 10 | D51: T kos DN 100/100mm | E51: 1 | F51: kos | H51: =+G51*E51 -> 0
B53: V4 | C53: 11 | D53: T kos DN 100/80mm | E53: 4 | F53: kos | H53: =+G53*E53 -> 0
B55: V4 | C55: 12 | D55: X kos DN 100mm; | E55: 5 | F55: kos | H55: =+G55*E55 -> 0
B57: V4 | C57: 13 | D57: ELGEF varilna prirobnica DN 90/80 | E57: 6 | F57: kos | H57: =+G57*E57 -> 0
D60: VODOVODNA ARMATURA
B62: V4 | C62: 1 | D62: EV zasun DN 100mm; z vgradbeno garnituro (daljša - 2m), teleskopska | E62: 3 | F62: kos | H62: =+G62*E62 -> 0
B64: V4 | C64: 2 | D64: EV zasun DN 80mm; z vgradbeno garnituro (daljša - 2m), teleskopska | E64: 4 | F64: kos | H64: =+G64*E64 -> 0
B66: V4 | C66: 3 | D66: Hidrant nadtalni lomni DN 80/1250mm, Inox izvedba | E66: 4 | F66: kos | H66: =+G66*E66 -> 0
B68: V4 | C68: 4 | D68: Zračnik prirobnični na eno kroglo DN 80mm z vgradbeno garnituro (npr. Hawle ali ARI D-060 oz. boljši). | E68: 1 | F68: kos | H68: =+G68*E68 -> 0
D71: HIŠNI PRIKLJUČKI (odcepi)
B73: V4 | C73: 1 | D73: Cestna kapa DN 125mm; vodovodna | E73: 15 | F73: kos | H73: =+G73*E73 -> 0
B75: V4 | C75: 2 | D75: Cevi PE, DN 32/16; K 100M - cev za hišne priključke | E75: 224 | F75: m | H75: =+G75*E75 -> 0
B77: V4 | C77: 3 | D77: Cevi PE, DN 63/16; K 100M - zaščitna cev za hišne priključke | E77: 80 | F77: m | H77: =+G77*E77 -> 0
B79: V4 | C79: 4 | D79: Navrtno sedlo (oklep) na cevi NL ali PP ( za klasično montažo) z vgradbeno garnituro za hišne priključke - teleskopska 1,3 do 2,0m. Vključno zmanjševalnim kosom in prehodno ločno spojko. | E79: 15 | F79: kos | H79: =+G79*E79 -> 0
B81: V4 | C81: 5 | D81: Spiranje hišnih priključkov | E81: 15 | F81: kos | H81: =+G81*E81 -> 0
G83: SKUPAJ cevni material | H83: =SUM(H23:H82) -> 0
B86: V4 | C86: -20/00 | D86: MONTAŽNA DELA
B87: V4 | C87: 1 | D87: Prenos, spuščanje in polaganje NL cevi v jarek ter poravnava cevi v vertikalni in horizontalni smeri. | E87: 282 | F87: m | H87: =+G87*E87 -> 0
B89: V4 | C89: 2 | D89: Prenos, spuščanje in polaganje PE cevi v jarek ter poravnava cevi v vertikalni in horizontalni smeri. | E89: 10 | F89: m | H89: =+G89*E89 -> 0
B91: V4 | C91: 3 | D91: Montaža cevi na predhodno pripravljeno ležišče oz. posteljico. | E91: 292 | F91: m | H91: =+G91*E91 -> 0
B93: V4 | C93: 4 | D93: Prenos in spuščanje fazonskih kosov in vodovodnih armatur do teže 100kg/kos, poravnavanje v smeri. | E93: 58 | F93: kos | H93: =+G93*E93 -> 0
B95: V4 | C95: 5 | D95: Montaža NL duktil fazonskih kosov in vodovodnih armatur na predhodno pripravljeno ležišče oz. posteljico, ter dokončna obdelava in zaščita spojev. | E95: 46 | F95: kos | H95: =+G95*E95 -> 0
B97: V4 | C97: 6 | D97: Montaža zasunov z vgradbeno garnituro in cestno varovalno kapo, na predhodno pripravljeno ležišče oz. posteljico, vključno s podbetoniranjem. | E97: 7 | F97: kos | H97: =+G97*E97 -> 0
B99: V4 | C99: 7 | D99: Montaža nadtalnih hidrantov z vgradbeno garnituro na predhodno pripravljeno ležišče oz. posteljico, vključno s podbetoniranjem. Vgradbena globina 1,5m. | E99: 4 | F99: kos | H99: =+G99*E99 -> 0
B101: V4 | C101: 8 | D101: Montaža in preskus delovanja zračnikov na predhodno pripravljeno ležišče oz. posteljico, vključno s podbetoniranjem | E101: 1 | F101: kos | H101: =+G101*E101 -> 0
B103: V4 | C103: 9 | D103: Montaža hišnih priključkov - končnih. Montaža vključuje navrtavanje na NL ali PP cev, priključitev cevi PP 32mm, dolžine 3 do 5m, montaža vgradbene garniture in montažo cestne kape usklajene z niveleto ceste, vključno z betonskim podstavkom. Vključno z zaključnim spiranjem pred priklopom. | E103: 15 | F103: kos | H103: =+G103*E103 -> 0
B105: V4 | C105: 10 | D105: Montaža hišnih priključkov - za čas gradnje. Montaža vključuje navrtavanje na PP cev, priključitev na obstoječo cev montaža zasuna 32mm, vključno z zaključnim spiranjem pred priklopom. | E105: 15 | F105: kos | H105: =+G105*E105 -> 0
B107: V4 | C107: 11 | D107: Tlačni preizkus vodovoda, po opisu v tehničnem poročilu, z digitalnim izpisom, skladno s standardom SIST EN 805 (priporočilo 10 bar). | E107: 292 | F107: m | H107: =+G107*E107 -> 0
B109: V4 | C109: 12 | D109: Spiranje in dezinfekcija cevovoda po končani gradnji, z odvzemom vzorcev vode, analizami ter strokovnim mnenjem; skladno s standardom SIST EN 805:2000 | E109: 292 | F109: m | H109: =+G109*E109 -> 0
B111: V4 | C111: 13 | D111: Nabava, dobava in polaganje signalnega traku nad vodovodno cevjo - PVC trak modre barve z napisom POZOR VODOVOD. | E111: 300 | F111: m | H111: =+G111*E111 -> 0
B113: V4 | C113: 14 | D113: Preskus hidrantov po Pravilniku o preizkušanju hidrantnih omrežij, s strani organizacije (s pooblastilom RS uprave za zaščito in reševanje), vključno z izdelavo potrdila o brezhibnem delovanju hidrantnega omrežja. | E113: 4 | F113: kos | H113: =+G113*E113 -> 0
B115: V4 | C115: 15 | D115: Zapiranja in odpiranja vode, sodelovanje upravljavca pri prevezavah vodovodnega omrežja. | E115: 1 | F115: kpl | H115: =+G115*E115 -> 0
B117: V4 | C117: 17 | D117: Urna postavka NK monter | E117: 1 | F117: ur
D118: Urna postavka PK monter | E118: 1 | F118: ur
D119: Urna postavka KV monter | E119: 1 | F119: ur
D120: Urna postavka VKV monter | E120: 1 | F120: ur
G122: SKUPAJ montažna dela | H122: =SUM(H87:H121) -> 0
B125: V4 | C125: -40/00 | D125: GRADBENA DELA
D126: - opomba: obračunane so samo količine pod cestnim ustrojem; d=60cm
D127: - opomba: obračunana so samo dodatne dela glede na načrt ceste
B128: V4 | C128: -41/00 | D128: Preddela
B129: V4 | C129: 1 | D129: Zakoličba projektiranih osi vodovoda postavitev prečnih profilov ali zakoličbenih točk, določitev nivoja za merjenje globine vodovoda, prenos višin, z zavarovanjem izven operativnega pasu. | E129: 300 | F129: m | H129: =+G129*E129 -> 0
B131: V4 | C131: 2 | D131: Trasna in višinska zakoličba obstoječih komunalnih vodov in oznake križanj, vključno s stroški dodatnega nadzora upravljavcev komunalnih vodov. Obračun na osnovi vpisa v dnevnik (vodovod, plin, elektrika, Telekom...). | E131: 300 | F131: m | H131: =+G131*E131 -> 0
B133: V4 | C133: 3 | D133: Rušenje obstoječih vodovodnih cevi (salonit, Fe, NL, PVC, PE, Mannesman…), vseh premerov, vključno z odvozom na deponijo po izbiri izvajalca, s stroški deponiranja in zapiranje (X kos) cevi, ki se opustijo. | E133: 245 | F133: m | H133: =+G133*E133 -> 0
B135: V4 | C135: -50/00 | D135: Zemeljska dela
B136: V4 | C136: 1 | D136: Strojni izkop jarkov širine 2,0 do 5,0m, za polaganje vodovodne cevi, globine 2,0 do 4,0m, širina v dnu 0,60 do 0,80m (DN cevi +2x 30cm), v zemljini III. kat, naklon izkopa 60° do 80° (se prilagodi karakteristikam zemljine), z odlaganjem materiala direktno na kamion. Pri obračunu količin za vsak odsek od točke do točke usklajevati količine z masno črto iz grafične priloge - vzdolžnega profila.
D137: 78 | E137: 675 | F137: m3 | H137: =+G137*E137 -> 0
B139: V4 | C139: 2 | D139: Strojni izkop jarkov širine 2,0 do 5,0m, za polaganje vodovodne cevi, globine 2,0 do 4,0m, širina v dnu 0,60 do 0,80m (DN cevi +2x 30cm), v zemljini III. kat, naklon izkopa 60° do 80° (se prilagodi karakteristikam zemljine), z odlaganjem, materiala v dosegu ročice bagra (ob rob gradbene jame + 1x premet, če je potrebno). Pri obračunu količin za vsak odsek od točke do točke usklajevati količine z masno črto iz grafične priloge - vzdolžnega profila.
D140: 10 | E140: 87 | F140: m3 | H140: =+G140*E140 -> 0
B142: V4 | C142: 48 | D142: Ročni izkop jarkov širine do 3,0m, za polaganje vodovodne cevi, globine do 3,0m, v zemljini III. kat, z odlaganjem, materiala ob rob gradbene jame.
D143: 2 | E143: 19 | F143: m3 | H143: =+G143*E143 -> 0
B145: V4 | C145: 49 | D145: Strojni izkop jarkov širine 2,0 do 5,0m, za polaganje vodovodne cevi, globine 2,0 do 4,0m, širina v dnu 0,60 do 0,80m (DN cevi +2x 30cm), v mehki kamnini V. kat (brez miniranja), naklon izkopa 60° do 80° (se prilagodi karakteristikam zemljine), z odlaganjem, materiala direktno na kamion. Pri obračunu količin za vsak odsek od točke do točke usklajevati količine z masno črto iz grafične priloge - vzdolžnega profila.
D146: 10 | E146: 86 | F146: m3 | H146: =+G146*E146 -> 0
B148: V4 | C148: 50 | D148: Splošni opis: Dodatna dela pri križanjih z obstoječimi in predvidenimi komunalnimi vodi, vključno z dodatnimi deli zaradi vzporednega poteka komunalij:
D149: - zakoličba vodov skladno z zahtevami upravljavca,
D150: - nadzor upravljavcev
D151: - dodatni ročni in strojni izkop v območju križanj
D152: - zavarovanje gradbene jame v času gradnje in pri zasipavanju
D153: - zasip z drobnozrnatim peščenim materialom ali obbetoniranjem
D154: Vkolikor tehnologija odstopa od projekta je potrebno pridobiti tudi pozitivno mnenje upravljavca. Vse poškodbe so breme izvajalca, ki krije vso nastalo škodo). Vse poškodbe so breme izvajalca, ki krije vso nastalo škodo). | E154: 17 | F154: kos | H154: =+G154*E154 -> 0
B156: V4 | C156: 51 | D156: Dodatek za odvoz viška materiala iz prejšnjih postavk na stalno deponijo po izbiri izvajalca, z razgrinjanjem, vse eventualne stroške deponije (vključno s takso, razgradnjo, odškodninami,...) je zajeti v ceno. | E156: 649 | F156: m3 | H156: =+G156*E156 -> 0
B158: V4 | C158: 52 | D158: Dodatek za odvoz viška materiala iz prejšnjih postavk na začasno deponijo po izbiri izvajalca, z razgrinjanjem, vse eventualne stroške deponije je zajeti v ceno (taksa, odškodnina,…). Vključno s prevozom nazaj na gradbišče. | E158: 95 | F158: m3 | H158: =+G158*E158 -> 0
B160: V4 | C160: 53 | D160: Ročno planiranje dna gradbene jame po strojnem izkopu, s planuumom padca - z izkopom ali dosipom materiala do 0,1m3/m2, z natančnostjo +-3cm, do potrebne zbitosti (Ev2 ≥ 20 MPa) , v III do V. ktg. | E160: 205 | F160: m2 | H160: =+G160*E160 -> 0
B162: V4 | C162: 54 | D162: Nabava, dobava in izdelava posteljice in obsip kanalizacijske cevi; okroglozrnate granulacije, do višine 30cm nad temenom cevi, vključno z utrjevanjem. Pri obračunu količin za vsak odsek od točke do točke usklajevati količine z masno črto iz grafične priloge - vzdolžnega profila. Uporaba recikliranega materiala ni dovoljena.
D163: - v primeru grobozrnatega, peščenega ali prodnega zemljišča je granulacija obsipa 4-8mm
D164: - v primeru finozrnatega zemljišča je granulacija obsipa 1-4mm | E164: 166 | F164: m3 | H164: =+G164*E164 -> 0
B166: V4 | C166: 55 | D166: Nabava, dobava in strojni zasip, z gramoznim materialom, po končanih delih, z utrjevanjem v slojih po 30cm, zahtevana stopnja komprimacije M=80MPa (8-10% CBR). Upoštevan zasip do tampona - 54cm pod nivojem lokalne ceste (ulice) Pri obračunu količin za vsak odsek od točke do točke usklajevati količine z masno črto iz grafične priloge - vzdolžnega profila. Uporaba recikliranega materiala ni dovoljena.
D167: 88 | E167: 118 | F167: m3 | H167: =+G167*E167 -> 0
B169: V4 | C169: 56 | D169: Zasip po končanih delih, z izkopanim materialom, z utrjevanjem v slojih po 30cm - zahtevana stopnja komprimacije M=40 Mpa (8-10% CBR). Upoštevan zasip do tampona - 54cm pod nivojem lokalne ceste (ulice).
D170: 12 | E170: 103 | F170: m3 | H170: =+G170*E170 -> 0
B172: V4 | C172: 57 | D172: Kompletna izdelava betonskih blokov za sidranje fazonov in armatur; vključno z objemkami in podložno gumo (0.15-0,40m3/kos). | E172: 23 | F172: kos | H172: =+G172*E172 -> 0
D174: Hišni priključki
D175: (se vgrajujejo samo na podlagi soglasja upravljavca vodovoda in skladno z njim).
D176: Zakoličba projektiranih osi in zaščita točk, Izkop jarkov v zemljini III, ktg., Širine do 0,80 min globine do 1,50 m,( cca 0,20 m3/m1) ter deponiranje materiala, na začasni deponiji po izbiri izvajalca, za kasnejši zasip. Ročni izkop jarkov v zemljini III, ktg. širine do 1,00m, in globine do 1,50m, (cca 1,0 m3/m1) ter odmet materiala vsaj 1.00 m od roba izkopa. Kompletna izdelava prebojev oziroma podbojev pod obstoječimi betonskimi in kamnitimi opornimi zidovi,ograjami, parapeti (ocena količine 0,03kom/m1).
D177: Kompletna izdelava posteljice iz separacije, granulacije 4-8 mm peska v debelini 10 cm (cca 0,07 m3/m1). Nabava, dobava raznos in montaža pod tlakom cevi PE 3/4", 1", DN63mm po gradbišču in spuščanje v jarek z gradbeno mehanizacijo. Obračun pa m1. Izdelava zasipa cevi s separacijo granulacije 4-8 mm v debelini vsaj 10-20 cm nad temenom cevi (cca 0,22 m3/m1). Ureditev terena v prvotno stanje (asfalt ali ureditev zelenice). Ročno zasipanje jarkov z izkopanim materialom v slojih po 30 cm z utrjevanjem (cca 0,90m3/m). Nakladanje in dovoz odvečnega materiala III. ktg, s kamioni na razdaljo do 14 km ter grobo razprostiranje pripeljanega materiala (cca 0,30 m3/m1). | E177: 224 | F177: m | H177: =+G177*E177 -> 0
E178: 15 | F178: kos | H178: =+G178*E178 -> 0
B180: V4 | C180: -80/00 | D180: OSTALA DELA
B181: V4 | C181: 1 | D181: Dodatna in nepredvidena dela pri priključitvi na obstoječ vodovod - izven jaška. | E181: 5 | F181: kos | H181: =+G181*E181 -> 0
B183: V4 | C183: 2 | D183: Nadzor upravljavca vodovoda | E183: 28 | F183: ur | G183: 45 | H183: =+G183*E183 -> 1260
B185: V4 | C185: 3 | D185: Projektantski nadzor in usklajevanje projekta z dejansko ugotovljenim stanjem na terenu. Obračun po dejanskih urah (+stroški prevoza). | E185: 35 | F185: ur | G185: 45 | H185: =+G185*E185 -> 1575
B187: V4 | C187: 4 | D187: Geodetski posnetek pri odprti trasi (pred zasutjem), za glavne cevovod in hišne priključke, izdelava PID v papirni in elektronski obliki skladno s pravilnikom in navodili Komunalnega podjetja Hydrovod vključno z vodilno mapo in dokazilom o zanesljivosti, dokumentacija za tehnični pregled, izvajalski del dokumentacije za pridobitev uporabnega dovoljenja (atesti, certifikati, izjave o lastnostih).. glej tudi tehnično poročilo. | E187: 1 | F187: znesek | H187: =+G187*E187 -> 0
G189: SKUPAJ gradbena dela | H189: =SUM(H125:H187) -> 2835
D191: SKUPAJ VODOVOD 4 | H191: =H189+H122+H83 -> 2835
